Invoice ID,Supplier Name,Paid Date,Subjective Code,Subjective Name,Service Area,Cost Centre Name,Invoiced
2817079,A & D JOINERY LTD#2,27/06/2013,Z1051,Work in Progress Additions,Housing GRF,Capital  General Fund,625.00
2817645,A E YATES LTD,27/06/2013,Z1051,Work in Progress Additions,Highways,Stores,950.49
2805394,A E YATES LTD,13/06/2013,20501,Engineering Work,Environmental Services,Lighting / Stores Billable Costs,"31,065.88"
2817647,A E YATES LTD,27/06/2013,Z1051,Work in Progress Additions,Highways,Stores,"8,523.93"
2801565,A W BRINDLE AND CO LTD,06/06/2013,20100,Day To Day Maintenance,Environmental Services,Assets,729.00
2816548,A1 STEAM CLEANING & RECOVERY,24/06/2013,52200,Contracted Services,Environmental Services,Transport Support Service,965.00
2801323,ABAFIELDS RESIDENTIAL HOME,06/06/2013,54301,Residential Provision,Adult Services,OA  External Provision Residential,"1,241.17"
2801324,ABAFIELDS RESIDENTIAL HOME,06/06/2013,54301,Residential Provision,Adult Services,LD Purchaser Residential Care,"3,000.16"
2801324,ABAFIELDS RESIDENTIAL HOME,06/06/2013,54301,Residential Provision,Adult Services,OA  External Provision Residential,"24,908.16"
2801401,ABBEYDALE RESIDENTIAL CARE HOME,06/06/2013,54301,Residential Provision,Adult Services,OA  External Provision Residential,"1,574.44"
2801369,ABBEYWOOD TOTTINGTON LTD,06/06/2013,54301,Residential Provision,Adult Services,OA  External Provision Residential,"1,574.44"
2812853,ACCESS TO CARE LTD,20/06/2013,52000,Vol Assoc Grants  General,Children's Services,Res Serv Agency Placements,850.00
2812857,ACCESS TO CARE LTD,20/06/2013,52000,Vol Assoc Grants  General,Children's Services,Res Serv Agency Placements,850.00
2812859,ACCESS TO CARE LTD,20/06/2013,52000,Vol Assoc Grants  General,Children's Services,Res Serv Agency Placements,850.00
2812861,ACCESS TO CARE LTD,20/06/2013,52000,Vol Assoc Grants  General,Children's Services,Res Serv Agency Placements,850.00
2812863,ACCESS TO CARE LTD,20/06/2013,52000,Vol Assoc Grants  General,Children's Services,Res Serv Agency Placements,850.00
2812866,ACCESS TO CARE LTD,20/06/2013,52000,Vol Assoc Grants  General,Children's Services,Res Serv Agency Placements,850.00
2812836,ACCESS TO CARE LTD,20/06/2013,52000,Vol Assoc Grants  General,Children's Services,Res Serv Agency Placements,850.00
2802150,ACCESS TO CARE LTD,06/06/2013,52000,Vol Assoc Grants  General,Children's Services,Res Serv Agency Placements,850.00
2801745,ACCESS TO CARE LTD,06/06/2013,52000,Vol Assoc Grants  General,Children's Services,Res Serv Agency Placements,850.00
2801746,ACCESS TO CARE LTD,06/06/2013,52000,Vol Assoc Grants  General,Children's Services,Res Serv Agency Placements,850.00
2801747,ACCESS TO CARE LTD,06/06/2013,52000,Vol Assoc Grants  General,Children's Services,Res Serv Agency Placements,850.00
2801748,ACCESS TO CARE LTD,06/06/2013,52000,Vol Assoc Grants  General,Children's Services,Res Serv Agency Placements,850.00
2801749,ACCESS TO CARE LTD,06/06/2013,52000,Vol Assoc Grants  General,Children's Services,Res Serv Agency Placements,850.00
2801750,ACCESS TO CARE LTD,06/06/2013,52000,Vol Assoc Grants  General,Children's Services,Res Serv Agency Placements,850.00
2801786,ACCESS TO CARE LTD,06/06/2013,52000,Vol Assoc Grants  General,Children's Services,Res Serv Agency Placements,850.00
2801784,ACCESS TO CARE LTD,06/06/2013,52000,Vol Assoc Grants  General,Children's Services,Res Serv Agency Placements,850.00
2801782,ACCESS TO CARE LTD,06/06/2013,52000,Vol Assoc Grants  General,Children's Services,Res Serv Agency Placements,850.00
2801776,ACCESS TO CARE LTD,06/06/2013,52000,Vol Assoc Grants  General,Children's Services,Res Serv Agency Placements,850.00
2801775,ACCESS TO CARE LTD,06/06/2013,52000,Vol Assoc Grants  General,Children's Services,Res Serv Agency Placements,850.00
2801755,ACCESS TO CARE LTD,06/06/2013,52000,Vol Assoc Grants  General,Children's Services,Res Serv Agency Placements,850.00
2801752,ACCESS TO CARE LTD,06/06/2013,52000,Vol Assoc Grants  General,Children's Services,Res Serv Agency Placements,850.00
2801788,ACCESS TO CARE LTD,06/06/2013,52000,Vol Assoc Grants  General,Children's Services,Res Serv Agency Placements,850.00
2801790,ACCESS TO CARE LTD,10/06/2013,52000,Vol Assoc Grants  General,Children's Services,Res Serv Agency Placements,850.00
2812855,ACCESS TO CARE LTD,20/06/2013,52000,Vol Assoc Grants  General,Children's Services,Res Serv Agency Placements,850.00
2812851,ACCESS TO CARE LTD,20/06/2013,52000,Vol Assoc Grants  General,Children's Services,Res Serv Agency Placements,850.00
2812838,ACCESS TO CARE LTD,20/06/2013,52000,Vol Assoc Grants  General,Children's Services,Res Serv Agency Placements,850.00
2812839,ACCESS TO CARE LTD,20/06/2013,52000,Vol Assoc Grants  General,Children's Services,Res Serv Agency Placements,850.00
2812842,ACCESS TO CARE LTD,20/06/2013,52000,Vol Assoc Grants  General,Children's Services,Res Serv Agency Placements,850.00
2812849,ACCESS TO CARE LTD,20/06/2013,52000,Vol Assoc Grants  General,Children's Services,Res Serv Agency Placements,850.00
2812852,ACCESS TO CARE LTD,20/06/2013,52000,Vol Assoc Grants  General,Children's Services,Res Serv Agency Placements,850.00
2800288,ACCESSIBLE BATHROOM SOLUTIONS LTD,06/06/2013,Z1051,Work in Progress Additions,Housing GRF,Capital  General Fund,"3,951.00"
2804868,ACORN HOUSE FOSTERING SERVICES,13/06/2013,52000,Vol Assoc Grants  General,Children's Services,Res Serv Agency Placements,"2,480.00"
2801371,ACORNS CARE CENTRE,06/06/2013,54302,Nursing Provision,Adult Services,OA  External Provision Residential,"1,494.08"
2801458,ACROSS THE BAY,06/06/2013,54301,Residential Provision,Adult Services,OA  External Provision Residential,"3,012.00"
2813092,ADAPTIVE TECHNOLOGIES LIMITED,20/06/2013,45431,Computer Software Licences,Finance Department,Libraries Info. Systems,"1,600.00"
2801487,ADLINGTON MANOR,06/06/2013,54302,Nursing Provision,Adult Services,OA  External Provision Residential,"1,868.40"
2807599,ADVANCED CHILDCARE LIMITED,13/06/2013,52000,Vol Assoc Grants  General,Children's Services,Res Serv Agency Placements,"12,838.34"
2817742,ADVANCED MACHINE TOOL SYSTEMS LTD#AMTS,27/06/2013,20100,Day To Day Maintenance,Children's Services,Technical Innovation Centre,650.00
2812350,ADVENTURE CARE LTD,20/06/2013,52000,Vol Assoc Grants  General,Children's Services,Res Serv Agency Placements,"15,600.00"
2816986,AEBI SCHMIDT UK LTD,27/06/2013,52200,Contracted Services,Environmental Services,Transport Support Service,596.70
2816996,AGE UK BOLTON#WAS AGE CONCERN,27/06/2013,21203,Fuel Oil  General,Central Corporate,Land & Property Portfolios,"1,162.70"
2805494,AGGREGATE INDUSTRIES UK LIMITED,13/06/2013,Z6008,Expense AP Accrual,Bolton MBC Balance Sheet,Bolton MBC Balance Sheet,"1,300.00"
2807508,AGGREGATE INDUSTRIES UK LIMITED,13/06/2013,Z6008,Expense AP Accrual,Bolton MBC Balance Sheet,Bolton MBC Balance Sheet,921.63
2807503,AGGREGATE INDUSTRIES UK LIMITED,13/06/2013,Z6008,Expense AP Accrual,Bolton MBC Balance Sheet,Bolton MBC Balance Sheet,914.33
2799895,AGGREGATE INDUSTRIES UK LIMITED,06/06/2013,Z6008,Expense AP Accrual,Bolton MBC Balance Sheet,Bolton MBC Balance Sheet,892.50
2814982,AGGREGATE INDUSTRIES UK LIMITED,24/06/2013,Z6008,Expense AP Accrual,Bolton MBC Balance Sheet,Bolton MBC Balance Sheet,"1,825.00"
2814992,AGGREGATE INDUSTRIES UK LIMITED,24/06/2013,Z6008,Expense AP Accrual,Bolton MBC Balance Sheet,Bolton MBC Balance Sheet,"1,656.34"
2814993,AGGREGATE INDUSTRIES UK LIMITED,24/06/2013,Z6008,Expense AP Accrual,Bolton MBC Balance Sheet,Bolton MBC Balance Sheet,"1,087.70"
2807671,AGGREGATE INDUSTRIES UK LIMITED,17/06/2013,Z6008,Expense AP Accrual,Bolton MBC Balance Sheet,Bolton MBC Balance Sheet,"1,428.00"
2811504,AGGREGATE INDUSTRIES UK LIMITED,20/06/2013,Z6008,Expense AP Accrual,Bolton MBC Balance Sheet,Bolton MBC Balance Sheet,916.15
2811528,AGGREGATE INDUSTRIES UK LIMITED,20/06/2013,Z6008,Expense AP Accrual,Bolton MBC Balance Sheet,Bolton MBC Balance Sheet,633.68
2807499,AGGREGATE INDUSTRIES UK LIMITED,13/06/2013,Z6008,Expense AP Accrual,Bolton MBC Balance Sheet,Bolton MBC Balance Sheet,628.32
2807501,AGGREGATE INDUSTRIES UK LIMITED,17/06/2013,Z6008,Expense AP Accrual,Bolton MBC Balance Sheet,Bolton MBC Balance Sheet,894.29
2812784,AGILISYS LIMITED,20/06/2013,45409,Information and Communication Technology,Finance Department,Agilisys Transformation,"6,155.90"
2816478,AGR BUILDING & FENCING CONTRACTORS LIMITED,24/06/2013,Z6008,Expense AP Accrual,Bolton MBC Balance Sheet,Bolton MBC Balance Sheet,610.00
2816524,AGR CARE SERVICES,24/06/2013,52000,Vol Assoc Grants  General,Children's Services,Res Serv Agency Placements,"9,316.00"
2816522,AGR CARE SERVICES,24/06/2013,52000,Vol Assoc Grants  General,Children's Services,Res Serv Agency Placements,"11,532.00"
2816523,AGR CARE SERVICES,24/06/2013,52000,Vol Assoc Grants  General,Children's Services,Res Serv Agency Placements,"11,842.00"
2802876,AIDAPT BATHROOMS LTD,10/06/2013,44051,Clients Aids & Adaptations,Adult Services,ICES,"1,513.40"
2811447,AIDAPT BATHROOMS LTD,20/06/2013,44051,Clients Aids & Adaptations,Adult Services,ICES,621.00
2803510,AIDAPT BATHROOMS LTD,10/06/2013,44051,Clients Aids & Adaptations,Adult Services,ICES,"1,300.92"
2801384,AINSWORTH NURSING HOME,06/06/2013,54301,Residential Provision,Adult Services,MH Residential External Provision,"6,297.76"
2801384,AINSWORTH NURSING HOME,06/06/2013,54302,Nursing Provision,Adult Services,MH Residential External Provision,"4,723.32"
2801384,AINSWORTH NURSING HOME,06/06/2013,54302,Nursing Provision,Adult Services,OA  External Provision Residential,"3,148.88"
2801497,ALEXANDER CARE HOME,06/06/2013,54301,Residential Provision,Adult Services,OA  External Provision Residential,"3,329.56"
2801496,ALEXANDER CARE HOME,06/06/2013,54301,Residential Provision,Adult Services,OA  External Provision Residential,"12,033.22"
2812724,REDACTED - PERSONAL DATA,20/06/2013,48509,Other Fees,Public Health,Get Active,"1,500.75"
2814821,ALLIANCE DISPOSABLES LTD,24/06/2013,26001,Hygiene Requisite,Property Services,Admin Buildings  General,"1,851.00"
2800453,ALLIANCE DISPOSABLES LTD,06/06/2013,26002,Other Materials,Environmental Services,Building Cleaning,815.00
2805373,ALLPAY.NET LTD,13/06/2013,48509,Other Fees,Finance Department,CSD Cashiers,"2,482.97"
2805387,ALLPAY.NET LTD,13/06/2013,48509,Other Fees,Finance Department,CSD Cashiers,557.09
2805380,ALLPAY.NET LTD,13/06/2013,48509,Other Fees,Finance Department,CSD Cashiers,"4,459.05"
2817522,ALLSTAR BUSINESS SOLUTIONS,27/06/2013,31301,Vehicle Fuel,Adult Services,ICES,561.46
2817522,ALLSTAR BUSINESS SOLUTIONS,27/06/2013,31301,Vehicle Fuel,Environmental Services,Activities and Operations,"12,090.40"
2817522,ALLSTAR BUSINESS SOLUTIONS,27/06/2013,31301,Vehicle Fuel,Environmental Services,Highway Services,"2,942.66"
2817522,ALLSTAR BUSINESS SOLUTIONS,27/06/2013,31301,Vehicle Fuel,Environmental Services,SNT Adult Servs,"4,252.01"
2817522,ALLSTAR BUSINESS SOLUTIONS,27/06/2013,31301,Vehicle Fuel,Environmental Services,SNT Childrens Servs,"1,583.03"
2817522,ALLSTAR BUSINESS SOLUTIONS,27/06/2013,31301,Vehicle Fuel,Environmental Services,Waste,"29,498.06"
2803466,ALLSTAR BUSINESS SOLUTIONS,10/06/2013,31301,Vehicle Fuel,Adult Services,ICES,523.22
2803466,ALLSTAR BUSINESS SOLUTIONS,10/06/2013,31301,Vehicle Fuel,Environmental Services,Activities and Operations,"10,602.02"
2803466,ALLSTAR BUSINESS SOLUTIONS,10/06/2013,31301,Vehicle Fuel,Environmental Services,Highway Works  Unallocated Costs,"3,138.69"
2803466,ALLSTAR BUSINESS SOLUTIONS,10/06/2013,31301,Vehicle Fuel,Environmental Services,SNT Adult Servs,"4,006.21"
2803466,ALLSTAR BUSINESS SOLUTIONS,10/06/2013,31301,Vehicle Fuel,Environmental Services,SNT Childrens Servs,"2,132.51"
2803466,ALLSTAR BUSINESS SOLUTIONS,10/06/2013,31301,Vehicle Fuel,Environmental Services,Waste,"30,563.52"
2800479,ALMOND VILLAS REHABILITATION CENTRE,06/06/2013,52200,Contracted Services,Adult Services,MH Residential External Provision,"1,337.98"
2804620,ALPHATEC 2000 LTD,13/06/2013,40143,Office Equipment Leased Rental,Central Services,Printing Services,590.00
2817926,ALSECURE GROUP LTD,27/06/2013,44401,Other Security Expenses,Housing GRF,Benjamin Court Temporary Accommodation,839.16
2799892,ALSECURE GROUP LTD,06/06/2013,44401,Other Security Expenses,Housing GRF,Benjamin Court Temporary Accommodation,959.04
2813192,ALSECURE GROUP LTD,20/06/2013,44401,Other Security Expenses,Housing GRF,Benjamin Court Temporary Accommodation,839.16
2813193,ALSECURE GROUP LTD,20/06/2013,44401,Other Security Expenses,Housing GRF,Benjamin Court Temporary Accommodation,839.16
2805861,ALSECURE GROUP LTD,13/06/2013,44401,Other Security Expenses,Housing GRF,Benjamin Court Temporary Accommodation,839.16
2813189,ALSECURE GROUP LTD,20/06/2013,44401,Other Security Expenses,Housing GRF,Benjamin Court Temporary Accommodation,839.16
2813188,ALSECURE GROUP LTD,20/06/2013,44401,Other Security Expenses,Housing GRF,Benjamin Court Temporary Accommodation,959.04
2802869,ALSECURE GROUP LTD,10/06/2013,44401,Other Security Expenses,Housing GRF,Benjamin Court Temporary Accommodation,839.16
2816312,AMBEROL LTD,24/06/2013,40609,Horticultural Materials,Environmental Services,Activities and Operations,"14,103.35"
2813920,ANCHOR TRUST#2,20/06/2013,52200,Contracted Services,Adult Services,Supporting People  Capital Financing,"6,625.58"
2815197,ANIMAL WARDENS,24/06/2013,52200,Contracted Services,Environmental Services,Activities and Operations,909.09
2815196,ANIMAL WARDENS,24/06/2013,52200,Contracted Services,Environmental Services,Activities and Operations,834.35
2803630,REDACTED - PERSONAL DATA,10/06/2013,48509,Other Fees,Children's Services,School Leadership,"1,350.00"
2801490,ANSAR PROJECTS,06/06/2013,54301,Residential Provision,Adult Services,MH Residential External Provision,"4,536.00"
2807677,APEX DIGITAL GRAPHICS LTD,24/06/2013,43032,Office Stationery,Central Services,Printing Services,625.26
2802146,APH COMPUTERS LTD,06/06/2013,45431,Computer Software Licences,Environmental Services,Catering,"1,056.00"
2811437,APPLIED PSYCHOLOGY SERVICES,20/06/2013,48509,Other Fees,Children's Services,Management Team,872.75
2814326,AQUAJOY BATHLIFTS LTD,24/06/2013,44051,Clients Aids & Adaptations,Adult Services,ICES,965.00
2804875,ARCO LIMITED,13/06/2013,42001,Uniforms,Environmental Services,Activities and Operations,"2,415.96"
2807668,ARENA GROUP LTD,24/06/2013,43030,Photocopying Lease/Maintenance,Housing GRF,Homes for Bolton CBL,557.99
2799346,REDACTED - PERSONAL DATA,03/06/2013,34402,Clients  Taxi Fares,Environmental Services,SNT Childrens Servs,"1,615.00"
2816435,ARJOHUNTLEIGH UK,24/06/2013,44052,Clients Medical Requisites,Adult Services,OA  Firwood  Residential,"1,524.00"
2804385,ASD METAL SERVICES#KLOCKNER METAL SVS LTD,10/06/2013,40610,Direct Materials,Environmental Services,Sign Shop,777.60
2799634,ASDA PHARMACY,06/06/2013,52200,Contracted Services,Adult Services,Drugs Pooled Treatment Budget,525.80
2816713,ASDA PHARMACY,27/06/2013,52200,Contracted Services,Adult Services,Drugs Pooled Treatment Budget,878.00
2811578,ASH HIRE & SALES LTD,20/06/2013,Z6008,Expense AP Accrual,Bolton MBC Balance Sheet,Bolton MBC Balance Sheet,647.50
2811576,ASH HIRE & SALES LTD,20/06/2013,Z6008,Expense AP Accrual,Bolton MBC Balance Sheet,Bolton MBC Balance Sheet,662.50
2807517,ASH HIRE & SALES LTD,13/06/2013,Z6008,Expense AP Accrual,Bolton MBC Balance Sheet,Bolton MBC Balance Sheet,847.50
2816685,ASH HIRE & SALES LTD,27/06/2013,33202,Plant Hire,Environmental Services,Depots,714.00
2801435,ASHWOOD REST HOME,06/06/2013,54301,Residential Provision,Adult Services,OA  External Provision Residential,"1,624.00"
2803469,ASSOCIATED CLEANING CONTRACTORS,20/06/2013,Z6008,Expense AP Accrual,Bolton MBC Balance Sheet,Bolton MBC Balance Sheet,977.50
2804928,ASSOCIATED CLEANING CONTRACTORS,13/06/2013,52200,Contracted Services,Housing GRF,Access and Advice Housing Options Centre,871.90
2811440,ASSOCIATED CLEANING CONTRACTORS,20/06/2013,20100,Day To Day Maintenance,Children's Services,Technical Innovation Centre,"1,937.55"
2801380,ASTLEY GRANGE,06/06/2013,54302,Nursing Provision,Adult Services,OA  External Provision Residential,"6,347.83"
2801379,ASTLEY GRANGE,06/06/2013,54302,Nursing Provision,Adult Services,OA  External Provision Residential,605.99
2802431,AUDIOGO LIMITED,10/06/2013,40753,Book Fund Expenditure,Finance Department,Libraries Info. Services,644.48
2803492,REDACTED - PERSONAL DATA,07/06/2013,Z7011,Mortgages Borrowed in Yr,Treasury Management,Treasury Management Balance Sheet,"1,155.20"
2802875,AUTOMATIC ALARMS LIMITED,10/06/2013,Z6008,Expense AP Accrual,Bolton MBC Balance Sheet,Bolton MBC Balance Sheet,"1,723.80"
2802877,AUTOMATIC ALARMS LIMITED,10/06/2013,Z6008,Expense AP Accrual,Bolton MBC Balance Sheet,Bolton MBC Balance Sheet,"1,723.80"
2802878,AUTOMATIC ALARMS LIMITED,10/06/2013,Z6008,Expense AP Accrual,Bolton MBC Balance Sheet,Bolton MBC Balance Sheet,"1,723.80"
2800491,AUTOMATIC ALARMS LIMITED,20/06/2013,20101,Programmed Maint. Work,Environmental Services,Buildings,"1,465.13"
2801765,AVCO SYSTEMS LTD,06/06/2013,45431,Computer Software Licences,Children's Services,Admin Info Mgemnt Unit,"6,500.00"
2817189,B & M DAVIES (PLANT HIRE) LTD,27/06/2013,33202,Plant Hire,Environmental Services,Bereavement Services,560.50
2816667,B & M DAVIES (PLANT HIRE) LTD,27/06/2013,Z6008,Expense AP Accrual,Bolton MBC Balance Sheet,Bolton MBC Balance Sheet,516.25
2817199,B & M DAVIES (PLANT HIRE) LTD,27/06/2013,33202,Plant Hire,Environmental Services,Bereavement Services,"1,144.00"
2817203,B & M DAVIES (PLANT HIRE) LTD,27/06/2013,33202,Plant Hire,Environmental Services,Bereavement Services,870.00
2809035,B & M DAVIES (PLANT HIRE) LTD,17/06/2013,33202,Plant Hire,Environmental Services,Bereavement Services,703.00
2813804,B & M DAVIES (PLANT HIRE) LTD,24/06/2013,33202,Plant Hire,Environmental Services,Bereavement Services,696.00
2813579,B & M DAVIES (PLANT HIRE) LTD,24/06/2013,33202,Plant Hire,Environmental Services,Bereavement Services,696.00
2807696,B & M DAVIES (PLANT HIRE) LTD,17/06/2013,33202,Plant Hire,Environmental Services,Bereavement Services,"1,704.50"
2799606,B & M DAVIES (PLANT HIRE) LTD,06/06/2013,Z6008,Expense AP Accrual,Bolton MBC Balance Sheet,Bolton MBC Balance Sheet,822.50
2801937,B & M DAVIES (PLANT HIRE) LTD,06/06/2013,33202,Plant Hire,Environmental Services,Activities and Operations,516.25
2814971,B & M DAVIES (PLANT HIRE) LTD,24/06/2013,Z6008,Expense AP Accrual,Bolton MBC Balance Sheet,Bolton MBC Balance Sheet,536.25
2814974,B & M DAVIES (PLANT HIRE) LTD,24/06/2013,Z6008,Expense AP Accrual,Bolton MBC Balance Sheet,Bolton MBC Balance Sheet,"1,163.75"
2807622,B & M DAVIES (PLANT HIRE) LTD,17/06/2013,Z6008,Expense AP Accrual,Bolton MBC Balance Sheet,Bolton MBC Balance Sheet,647.50
2807695,B & M DAVIES (PLANT HIRE) LTD,17/06/2013,Z6008,Expense AP Accrual,Bolton MBC Balance Sheet,Bolton MBC Balance Sheet,647.50
2804389,B & M DAVIES (PLANT HIRE) LTD,10/06/2013,Z6008,Expense AP Accrual,Bolton MBC Balance Sheet,Bolton MBC Balance Sheet,647.50
2801463,BANKFIELD,06/06/2013,54301,Residential Provision,Adult Services,OA  External Provision Residential,"1,615.24"
2817061,BARNARDOS,27/06/2013,52200,Contracted Services,Public Health,HIV,"3,000.00"
2800172,BAUDER LTD,13/06/2013,Z1051,Work in Progress Additions,Environmental Services,Environmental Services Balance sheet,600.70
2801789,BBC WORLDWIDE LTD,06/06/2013,48501,Artistes Fees,Environmental Services,Albert Halls Entertainment,"11,793.43"
2801477,BEACH COURT,06/06/2013,54301,Residential Provision,Adult Services,OA  External Provision Residential,"1,759.84"
2801426,BEDFORD RESIDENTIAL NURSING CARE HOME,06/06/2013,54302,Nursing Provision,Adult Services,OA  External Provision Residential,"1,494.08"
2801444,BEECHVILLE CARE HOME,06/06/2013,54301,Residential Provision,Adult Services,OA  External Provision Residential,"1,464.15"
2801445,BEECHVILLE CARE HOME,06/06/2013,54301,Residential Provision,Adult Services,OA  External Provision Residential,"7,011.17"
2801446,BEECHWOOD HOUSE,06/06/2013,54301,Residential Provision,Adult Services,OA  External Provision Residential,"1,991.08"
2801461,BELONG ATHERTON#EPH,06/06/2013,54302,Nursing Provision,Adult Services,MH Residential External Provision,"2,560.00"
2801459,BELONG WIGAN#EPH,06/06/2013,54301,Residential Provision,Adult Services,OA  External Provision Residential,"1,410.98"
2816894,BERTRAM TRADING LTD#BERTRAM LIBRARY SERVICES,27/06/2013,40753,Book Fund Expenditure,Finance Department,Libraries Info. Services,"4,558.85"
2805858,BERTRAM TRADING LTD#BERTRAM LIBRARY SERVICES,13/06/2013,40753,Book Fund Expenditure,Finance Department,Libraries Info. Services,"8,483.98"
2801686,BETHELL CONSTRUCTION LTD,06/06/2013,Z1051,Work in Progress Additions,Environmental Services,Environmental Services Balance sheet,"211,367.15"
2816643,BETHELL CONSTRUCTION LTD,27/06/2013,Z6008,Expense AP Accrual,Bolton MBC Balance Sheet,Bolton MBC Balance Sheet,"21,242.65"
2804397,BETHELL CONSTRUCTION LTD,10/06/2013,Z6008,Expense AP Accrual,Bolton MBC Balance Sheet,Bolton MBC Balance Sheet,"5,500.00"
2814019,BIRKDALE DESIGN LTD,20/06/2013,40150,Office Furniture Purchase,Housing GRF,Furnished Tenancies,859.04
2814139,BIRKDALE DESIGN LTD,24/06/2013,40150,Office Furniture Purchase,Housing GRF,Furnished Tenancies,774.80
2814015,BIRKDALE DESIGN LTD,20/06/2013,40150,Office Furniture Purchase,Housing GRF,Furnished Tenancies,774.80
2810117,BIRKDALE DESIGN LTD,17/06/2013,40150,Office Furniture Purchase,Housing GRF,Local Welfare Provision Pilot,"1,054.56"
2810132,BIRKDALE DESIGN LTD,17/06/2013,40150,Office Furniture Purchase,Housing GRF,Local Welfare Provision Pilot,741.52
2810149,BIRKDALE DESIGN LTD,17/06/2013,40150,Office Furniture Purchase,Housing GRF,Local Welfare Provision Pilot,686.40
2810154,BIRKDALE DESIGN LTD,17/06/2013,40150,Office Furniture Purchase,Housing GRF,Local Welfare Provision Pilot,686.40
2810175,BIRKDALE DESIGN LTD,17/06/2013,40150,Office Furniture Purchase,Housing GRF,Local Welfare Provision Pilot,770.64
2814106,BIRKDALE DESIGN LTD,24/06/2013,40150,Office Furniture Purchase,Housing GRF,Furnished Tenancies,974.48
2813978,BIRKDALE DESIGN LTD,20/06/2013,40150,Office Furniture Purchase,Housing GRF,Furnished Tenancies,974.46
2810334,BIRKDALE DESIGN LTD,17/06/2013,40150,Office Furniture Purchase,Housing GRF,Furnished Tenancies,859.04
2810097,BIRKDALE DESIGN LTD,17/06/2013,40150,Office Furniture Purchase,Housing GRF,Furnished Tenancies,952.64
2810126,BIRKDALE DESIGN LTD,17/06/2013,40150,Office Furniture Purchase,Housing GRF,Furnished Tenancies,634.40
2810221,BIRKDALE DESIGN LTD,17/06/2013,40150,Office Furniture Purchase,Housing GRF,Furnished Tenancies,774.80
2801385,BLACKROD HOUSE,06/06/2013,54301,Residential Provision,Adult Services,OA  External Provision Residential,699.10
2801386,BLACKROD HOUSE,06/06/2013,54301,Residential Provision,Adult Services,MH Residential External Provision,"1,567.96"
2801386,BLACKROD HOUSE,06/06/2013,54301,Residential Provision,Adult Services,OA  External Provision Residential,"17,420.70"
2817535,BOLTON AT HOME#137,27/06/2013,20100,Day To Day Maintenance,Housing GRF,Access and Advice Caravan Sites,"12,257.43"
2817535,BOLTON AT HOME#137,27/06/2013,20100,Day To Day Maintenance,Housing GRF,Lease Management Scheme,"11,103.64"
2801799,BOLTON AT HOME#137,06/06/2013,52200,Contracted Services,Housing GRF,Urban Renewal Regeneration,"19,998.44"
2802166,BOLTON AT HOME#137,10/06/2013,44051,Clients Aids & Adaptations,Adult Services,ICES,"5,360.96"
2817598,BOLTON AT HOME#137,27/06/2013,52200,Contracted Services,Adult Services,Supporting People  Capital Financing,"33,250.40"
2814034,BOLTON AT HOME#137,20/06/2013,52200,Contracted Services,Adult Services,Supporting People  Capital Financing,"28,993.47"
2813974,BOLTON AT HOME#137,20/06/2013,52200,Contracted Services,Adult Services,Supporting People  Capital Financing,"25,127.68"
2805557,BOLTON AT HOME#137,13/06/2013,52200,Contracted Services,Property Services,Estates & Property Management,956.46
2815209,BOLTON CARPET WAREHOUSE,24/06/2013,40150,Office Furniture Purchase,Housing GRF,Furnished Tenancies,622.21
2803446,BOLTON CARPET WAREHOUSE,10/06/2013,40150,Office Furniture Purchase,Housing GRF,Furnished Tenancies,826.44
2807781,BOLTON CARPET WAREHOUSE,17/06/2013,40150,Office Furniture Purchase,Housing GRF,Local Welfare Provision Pilot,641.23
2807758,BOLTON CARPET WAREHOUSE,17/06/2013,40150,Office Furniture Purchase,Housing GRF,Local Welfare Provision Pilot,820.67
2808026,BOLTON CARPET WAREHOUSE,17/06/2013,40150,Office Furniture Purchase,Housing GRF,Furnished Tenancies,700.74
2807755,BOLTON CARPET WAREHOUSE,17/06/2013,40150,Office Furniture Purchase,Housing GRF,Furnished Tenancies,622.21
2815232,BOLTON CARPET WAREHOUSE,24/06/2013,40150,Office Furniture Purchase,Housing GRF,Local Welfare Provision Pilot,728.77
2813541,BOLTON CARPET WAREHOUSE,20/06/2013,40150,Office Furniture Purchase,Housing GRF,Local Welfare Provision Pilot,820.68
2813034,BOLTON CARPET WAREHOUSE,20/06/2013,40150,Office Furniture Purchase,Housing GRF,Local Welfare Provision Pilot,820.68
2813036,BOLTON CARPET WAREHOUSE,20/06/2013,40150,Office Furniture Purchase,Housing GRF,Local Welfare Provision Pilot,820.68
2813039,BOLTON CARPET WAREHOUSE,20/06/2013,40150,Office Furniture Purchase,Housing GRF,Local Welfare Provision Pilot,967.99
2813065,BOLTON CARPET WAREHOUSE,20/06/2013,40150,Office Furniture Purchase,Housing GRF,Local Welfare Provision Pilot,728.78
2815230,BOLTON CARPET WAREHOUSE,24/06/2013,40150,Office Furniture Purchase,Housing GRF,Local Welfare Provision Pilot,820.67
2816402,BOLTON CARPET WAREHOUSE,24/06/2013,40150,Office Furniture Purchase,Housing GRF,Local Welfare Provision Pilot,728.77
2803490,BOLTON CARPET WAREHOUSE,10/06/2013,40150,Office Furniture Purchase,Housing GRF,Furnished Tenancies,593.71
2803494,BOLTON CARPET WAREHOUSE,10/06/2013,40150,Office Furniture Purchase,Housing GRF,Furnished Tenancies,700.74
2803535,BOLTON CARPET WAREHOUSE,10/06/2013,40150,Office Furniture Purchase,Housing GRF,Furnished Tenancies,700.74
2815236,BOLTON CARPET WAREHOUSE,24/06/2013,40150,Office Furniture Purchase,Housing GRF,Furnished Tenancies,700.74
2813042,BOLTON CARPET WAREHOUSE,20/06/2013,40150,Office Furniture Purchase,Housing GRF,Furnished Tenancies,826.44
2805979,BOLTON CVS#BOLTON COMMUNITY & VOLUNTARY SERVICES,13/06/2013,52200,Contracted Services,Public Health,Healthy Communities Team,"150,000.00"
2805981,BOLTON CVS#BOLTON COMMUNITY & VOLUNTARY SERVICES,13/06/2013,52200,Contracted Services,Public Health,Healthy Communities Team,"60,791.00"
2805977,BOLTON CVS#BOLTON COMMUNITY & VOLUNTARY SERVICES,13/06/2013,52200,Contracted Services,Public Health,Healthy Communities Team,"26,010.00"
2801604,BOLTON PRIMARY CARE TRUST#12#BOLTON PCT,06/06/2013,54300,Independant Sector Placements,Adult Services,OA  External Provision Residential,"1,692.71"
2801589,BOLTON PRIMARY CARE TRUST#12#BOLTON PCT,06/06/2013,54300,Independant Sector Placements,Adult Services,OA  External Provision Residential,"1,888.00"
2801632,BOLTON PRIMARY CARE TRUST#12#BOLTON PCT,06/06/2013,54300,Independant Sector Placements,Adult Services,OA  External Provision Residential,"1,638.00"
2801631,BOLTON PRIMARY CARE TRUST#12#BOLTON PCT,06/06/2013,54300,Independant Sector Placements,Adult Services,OA  External Provision Residential,"1,638.00"
2801629,BOLTON PRIMARY CARE TRUST#12#BOLTON PCT,06/06/2013,54300,Independant Sector Placements,Adult Services,OA  External Provision Residential,"1,693.00"
2801626,BOLTON PRIMARY CARE TRUST#12#BOLTON PCT,06/06/2013,54300,Independant Sector Placements,Adult Services,OA  External Provision Residential,"1,693.00"
2801613,BOLTON PRIMARY CARE TRUST#12#BOLTON PCT,06/06/2013,54300,Independant Sector Placements,Adult Services,OA  External Provision Residential,"1,214.00"
2801615,BOLTON PRIMARY CARE TRUST#12#BOLTON PCT,06/06/2013,54300,Independant Sector Placements,Adult Services,OA  External Provision Residential,"2,657.00"
2813194,BOLTON PRIMARY CARE TRUST#12#BOLTON PCT,20/06/2013,54301,Residential Provision,Adult Services,OA  External Provision Residential,"16,126.86"
2801609,BOLTON PRIMARY CARE TRUST#12#BOLTON PCT,06/06/2013,52200,Contracted Services,Adult Services,MH Residential External Provision,816.00
2801619,BOLTON PRIMARY CARE TRUST#12#BOLTON PCT,06/06/2013,52200,Contracted Services,Adult Services,MH Residential External Provision,680.00
2801620,BOLTON PRIMARY CARE TRUST#12#BOLTON PCT,06/06/2013,52200,Contracted Services,Adult Services,MH Residential External Provision,680.00
2801621,BOLTON PRIMARY CARE TRUST#12#BOLTON PCT,06/06/2013,52200,Contracted Services,Adult Services,MH Residential External Provision,816.00
2802551,BOLTON STONE RESTORATION LTD,10/06/2013,Z6008,Expense AP Accrual,Bolton MBC Balance Sheet,Bolton MBC Balance Sheet,783.40
2802555,BOLTON STONE RESTORATION LTD,10/06/2013,Z6008,Expense AP Accrual,Bolton MBC Balance Sheet,Bolton MBC Balance Sheet,"1,538.79"
2802161,BOLTON STONE RESTORATION LTD,06/06/2013,20100,Day To Day Maintenance,Environmental Services,Assets,996.00
2804513,BOLTON SYMPHONY ORCHESTRA,13/06/2013,48501,Artistes Fees,Environmental Services,Albert Halls Entertainment,834.50
2799335,BOLTON TAXIS LTD,03/06/2013,34402,Clients  Taxi Fares,Environmental Services,SNT Childrens Servs,"2,382.00"
2803622,BOLTON TREE & LANDSCAPE SERVICES LTD,24/06/2013,52200,Contracted Services,Environmental Services,Activities and Operations,"1,000.00"
2807495,BOLTON TREE & LANDSCAPE SERVICES LTD,13/06/2013,52200,Contracted Services,Environmental Services,Activities and Operations,790.00
2807493,BOLTON TREE & LANDSCAPE SERVICES LTD,13/06/2013,52200,Contracted Services,Environmental Services,Activities and Operations,"6,200.00"
2814180,BOLTON TREE & LANDSCAPE SERVICES LTD,24/06/2013,52200,Contracted Services,Environmental Services,Activities and Operations,"1,200.00"
2811488,BOLTON UNITED COMMUNITY GROUP,20/06/2013,55700,Grant Funded Expenditure,Chief Executives Department,Neighbourhood Mgt and Area Working Devolved,"1,750.00"
2805544,BOLTON WALL & FLOORING LTD,13/06/2013,20100,Day To Day Maintenance,Finance Department,LMA Library Mgmt,720.00
2805339,BOLTON WBL PROVIDER PARTNERSHIP#TRAINING FOR TODAY,13/06/2013,45915,Commissioning Skills,Development & Regen,Economic Strategy,"3,000.00"
2803507,BOLTON WISE LTD#EATWISE#WISEWORKS#WISETRAINING (14-19)#STYLE WISE,10/06/2013,52200,Contracted Services,Environmental Services,Assets,822.70
2814157,BOLTON YOUNG PERSONS HOUSING SCHEME#BYPHS,24/06/2013,52200,Contracted Services,Adult Services,Supporting People  Capital Financing,"116,331.75"
2816597,BOLTON YOUNG PERSONS HOUSING SCHEME#BYPHS,27/06/2013,52000,Vol Assoc Grants  General,Children's Services,Res Serv Agency Placements,824.35
2816697,BOOTS THE CHEMIST,27/06/2013,52200,Contracted Services,Adult Services,Drugs Pooled Treatment Budget,501.20
2800036,BOOTS THE CHEMIST,06/06/2013,52200,Contracted Services,Adult Services,Drugs Pooled Treatment Budget,514.50
2802208,BOOTS THE CHEMIST,06/06/2013,52200,Contracted Services,Public Health,Sexual Health Improvement,655.49
2801443,BOWERSWOOD HOUSE RETIREMENT HOME LTD,06/06/2013,54301,Residential Provision,Adult Services,OA  External Provision Residential,"1,440.00"
2803477,BRABBIN & RUDD LTD#1,10/06/2013,44051,Clients Aids & Adaptations,Adult Services,ICES,578.00
2816897,BRADSHAW GASS & HOPE#1,27/06/2013,20100,Day To Day Maintenance,Environmental Services,NS Centralised budget,750.00
2804318,BRIAN MCCALLISTER & SONS,10/06/2013,22202,Sewerage & Env'mental Servs,Housing GRF,HMO Licence Fees,"6,200.00"
2801460,BRIDEOAKE CARE HOME,06/06/2013,54301,Residential Provision,Adult Services,OA  External Provision Residential,"1,705.50"
2799340,BRIDGE PRIVATE HIRE#REDACTED - PERSONAL DATA,03/06/2013,34402,Clients  Taxi Fares,Environmental Services,SNT Childrens Servs,"4,090.50"
2815077,BRIDGE PRIVATE HIRE#REDACTED - PERSONAL DATA,24/06/2013,34402,Clients  Taxi Fares,Environmental Services,SNT Childrens Servs,703.50
2811534,BRITISH FOSSILS#GIFTSTONES LTD,20/06/2013,40613,Goods for Resale,Finance Department,LMA Retail,"1,106.04"
2805687,BRITISH GAS BUSINESS,13/06/2013,21200,Gas  General,Housing GRF,Communal Services Capital And Admin.,"2,280.30"
2812947,BRITISH GAS BUSINESS,20/06/2013,21200,Gas  General,Housing GRF,Communal Services Capital And Admin.,"2,627.32"
2805672,BRITISH GAS BUSINESS,13/06/2013,21100,Electricity  General,Housing GRF,Communal Services Capital And Admin.,"7,410.43"
2805672,BRITISH GAS BUSINESS,13/06/2013,21100,Electricity  General,Property Services,Admin Buildings  General,735.42
2805672,BRITISH GAS BUSINESS,13/06/2013,21100,Electricity  General,Property Services,Adult's General,922.07
2816969,BRITISH GAS BUSINESS,27/06/2013,21100,Electricity  General,Environmental Services,Mngmnt & Admin Overhead,584.49
2805823,BRITISH GAS BUSINESS,13/06/2013,21200,Gas  General,Housing GRF,Communal Services Capital And Admin.,852.89
2812944,BRITISH GAS TRADING LIMITED,20/06/2013,21100,Electricity  General,Housing GRF,Communal Services Capital And Admin.,542.28
2817085,BRITISH YOUTH COUNCIL,27/06/2013,19100,Training Exps Tuition Fees,Children's Services,Positive Activities,"1,005.00"
2815199,BRONTE NATURAL SPRING WATER LTD#BRONTE WATER COOLERS LIMITED,24/06/2013,40100,Operational Equipment Purchase,Environmental Services,Civic Catering  General,621.10
2801450,BROOKFIELD RESIDENTIAL CARE HOME LTD,06/06/2013,54301,Residential Provision,Adult Services,MH Residential External Provision,"2,200.00"
2801410,BROOKVALE,06/06/2013,54301,Residential Provision,Adult Services,LD Purchaser Residential Care,"10,538.64"
2801682,BROTHERS OF CHARITY SERVICES,06/06/2013,52200,Contracted Services,Adult Services,LD Purchaser Day Services,801.16
2801682,BROTHERS OF CHARITY SERVICES,06/06/2013,52200,Contracted Services,Adult Services,LD Purchaser Domiciliary Care,937.44
2801685,BROTHERS OF CHARITY SERVICES,06/06/2013,52200,Contracted Services,Adult Services,LD Purchaser Domiciliary Care,"2,124.40"
2801407,BROTHERS OF CHARITY SERVICES,06/06/2013,54302,Nursing Provision,Adult Services,LD Purchaser Residential Care,"3,617.20"
2801363,BROUGHTON HOUSE#EPH,06/06/2013,54301,Residential Provision,Adult Services,OA  External Provision Residential,"3,381.13"
2801364,BROWFIELD RESIDENTIAL CARE HOME,06/06/2013,54301,Residential Provision,Adult Services,MH Residential External Provision,"4,663.48"
2801732,BS SUPPORT SERVICES LIMITED,06/06/2013,52200,Contracted Services,Children's Services,Youth Offending Team,"2,114.55"
2817625,BS SUPPORT SERVICES LIMITED,27/06/2013,19103,Training Exp  In House,Children's Services,Youth Offending Team,"2,360.45"
2817621,BS SUPPORT SERVICES LIMITED,27/06/2013,19103,Training Exp  In House,Children's Services,Youth Offending Team,"2,060.45"
2812338,BT GLOBAL SERVICES,20/06/2013,45407,Computer Peripherals,Adult Services,AD  IT,723.06
2801479,BUPA CARE SERVICES CARDERS COURT,06/06/2013,54302,Nursing Provision,Adult Services,OA  External Provision Residential,"1,002.86"
2801480,BUPA CARE SERVICES CARDERS COURT,06/06/2013,54302,Nursing Provision,Adult Services,OA  External Provision Residential,"1,560.00"
2817011,BURNT TREE GROUP,27/06/2013,33201,Transport Hire,Environmental Services,Transport Support Service,"1,170.00"
2817027,BURNT TREE GROUP,27/06/2013,33201,Transport Hire,Environmental Services,Transport Support Service,"1,170.00"
2817028,BURNT TREE GROUP,27/06/2013,33201,Transport Hire,Environmental Services,Transport Support Service,"1,170.00"
2817022,BURNT TREE GROUP,27/06/2013,33201,Transport Hire,Environmental Services,Transport Support Service,"1,170.00"
2817015,BURNT TREE GROUP,27/06/2013,33201,Transport Hire,Environmental Services,Transport Support Service,"1,170.00"
2817018,BURNT TREE GROUP,27/06/2013,33201,Transport Hire,Environmental Services,Transport Support Service,"1,170.00"
2817033,BURNT TREE GROUP,27/06/2013,33201,Transport Hire,Environmental Services,Transport Support Service,708.40
2817036,BURNT TREE GROUP,27/06/2013,33201,Transport Hire,Environmental Services,Transport Support Service,708.40
2816999,BURNT TREE GROUP,27/06/2013,33201,Transport Hire,Environmental Services,Transport Support Service,"1,170.00"
2817003,BURNT TREE GROUP,27/06/2013,33201,Transport Hire,Environmental Services,Transport Support Service,"1,170.00"
2817008,BURNT TREE GROUP,27/06/2013,33201,Transport Hire,Environmental Services,Transport Support Service,"1,170.00"
2803850,BUSINESS IT SUPPORT TEAM LTD#BIST,13/06/2013,45400,Computer Purchase,Children's Services,Admin IT (Schools),"3,625.00"
2799342,BUX TRAVEL#REDACTED - PERSONAL DATA,03/06/2013,34402,Clients  Taxi Fares,Environmental Services,SNT Childrens Servs,"1,759.50"
2801691,BY THE BRIDGE NORTH WEST,06/06/2013,52000,Vol Assoc Grants  General,Children's Services,Res Serv Agency Placements,"3,871.46"
2801690,BY THE BRIDGE NORTH WEST,06/06/2013,52000,Vol Assoc Grants  General,Children's Services,Res Serv Agency Placements,"3,826.29"
2801707,C H WRIGHT CARE LTD,06/06/2013,52000,Vol Assoc Grants  General,Children's Services,Res Serv Agency Placements,"6,421.43"
2800223,C&W GAS SOLUTIONS,06/06/2013,20100,Day To Day Maintenance,Children's Services,Res Serv Maintenance,"1,225.00"
2816976,CABLE & WIRELESS UK#THUS,27/06/2013,Z1051,Work in Progress Additions,Highways,Stores,"1,316.56"
2801402,CAMERON HOUSE CARE HOME,06/06/2013,54301,Residential Provision,Adult Services,OA  External Provision Residential,"3,148.88"
2801402,CAMERON HOUSE CARE HOME,06/06/2013,54302,Nursing Provision,Adult Services,OA  External Provision Residential,"1,574.44"
2817930,CAPITA BUSINESS SERVICES LTD,27/06/2013,45430,Computer Software,Finance Department,T&B Systems Project Team,"3,000.00"
2812854,CAPITA BUSINESS SERVICES LTD,27/06/2013,45401,Computer Maintenance,Finance Department,Libraries Info. Systems,"4,367.24"
2804548,CARE MONITORING 2000 LTD,13/06/2013,Z1051,Work in Progress Additions,Adult Services,Adult Services Balance Sheet,"5,000.00"
2800066,CARE MONITORING 2000 LTD,06/06/2013,Z1051,Work in Progress Additions,Adult Services,Adult Services Balance Sheet,"2,683.15"
2801420,CARE STANLEY GRANGE,06/06/2013,54301,Residential Provision,Adult Services,LD Purchaser Residential Care,"3,640.64"
2813199,CARE UK HOMECARE#CARE UK (BOLTON),20/06/2013,52200,Contracted Services,Adult Services,OA  Home Care Services external provision,"53,151.50"
2807608,CAREWATCH (BOLTON),17/06/2013,52200,Contracted Services,Adult Services,OA  Home Care Services external provision,"31,267.77"
2817505,CAREWATCH (BOLTON),27/06/2013,52200,Contracted Services,Adult Services,MH Residential External Provision,"1,034.93"
2813146,CARING ALTERNATIVES LIMITED,20/06/2013,52200,Contracted Services,Adult Services,MH Residential External Provision,"1,672.00"
2813133,CARING ALTERNATIVES LIMITED,20/06/2013,52200,Contracted Services,Adult Services,MH Residential External Provision,"2,396.40"
2813831,CARING ALTERNATIVES LIMITED,20/06/2013,52200,Contracted Services,Adult Services,MH Residential External Provision,"2,396.40"
2813149,CARING ALTERNATIVES LIMITED,20/06/2013,52200,Contracted Services,Adult Services,MH Residential External Provision,"1,672.00"
2812385,CARING ALTERNATIVES LIMITED,20/06/2013,52200,Contracted Services,Adult Services,OA  Home Care Services external provision,"2,073.00"
2813153,CARING ALTERNATIVES LIMITED,20/06/2013,52200,Contracted Services,Adult Services,MH Residential External Provision,"2,428.60"
2813157,CARING ALTERNATIVES LIMITED,24/06/2013,52200,Contracted Services,Adult Services,MH Residential External Provision,"2,428.60"
2812382,CARING ALTERNATIVES LIMITED,20/06/2013,52200,Contracted Services,Adult Services,OA  Home Care Services external provision,"2,073.00"
2799345,REDACTED - PERSONAL DATA,03/06/2013,34402,Clients  Taxi Fares,Environmental Services,SNT Childrens Servs,"1,147.50"
2807721,REDACTED - PERSONAL DATA,17/06/2013,48509,Other Fees,Children's Services,Education Psychology Service,"1,350.00"
2801447,CARR BANK HOUSE,06/06/2013,54301,Residential Provision,Adult Services,MH Residential External Provision,"1,537.92"
2804347,CATEREPAIR LTD,13/06/2013,40100,Operational Equipment Purchase,Adult Services,OA  Firwood  Residential,524.58
2804344,CATEREPAIR LTD,13/06/2013,20100,Day To Day Maintenance,Property Services,Alderbank EPH,646.15
2811562,CEMEX UK MATERIALS LTD,20/06/2013,Z6008,Expense AP Accrual,Bolton MBC Balance Sheet,Bolton MBC Balance Sheet,"1,708.56"
2816661,CEMEX UK MATERIALS LTD,27/06/2013,Z6008,Expense AP Accrual,Bolton MBC Balance Sheet,Bolton MBC Balance Sheet,867.24
2807509,CHALLENGE 4 CHANGE,13/06/2013,48509,Other Fees,Environmental Services,Neighbourhood Management Programme,600.00
2804912,REDACTED - PERSONAL DATA,13/06/2013,47103,Miscellaneous Grants,Environmental Services,Neighbourhood Management Programme,"2,250.00"
2801512,CHARLTONS SWEEPER HIRE LTD,06/06/2013,Z6008,Expense AP Accrual,Bolton MBC Balance Sheet,Bolton MBC Balance Sheet,"1,000.00"
2807686,CHARLTONS SWEEPER HIRE LTD,17/06/2013,Z6008,Expense AP Accrual,Bolton MBC Balance Sheet,Bolton MBC Balance Sheet,"1,250.00"
2812339,CHASSIS & CAB SPECIALISTS,20/06/2013,52200,Contracted Services,Environmental Services,Transport Support Service,"1,104.00"
2801366,CHATAWAY NURSING HOME,06/06/2013,54302,Nursing Provision,Adult Services,MH Residential External Provision,"2,035.04"
2817592,CHEMSEARCH,27/06/2013,40100,Operational Equipment Purchase,Environmental Services,Markets  Rent Account,615.00
2801760,CHESHIRE CENTRE FOR INDEPENDENT LIVING,06/06/2013,53000,Private Contracted Services,Adult Services,STARS & ILS  North,"8,097.75"
2801464,CHESTER HOUSE CARE HOME,06/06/2013,54301,Residential Provision,Adult Services,LD Purchaser Residential Care,"1,728.00"
2816915,CHILD ACTION NORTHWEST,27/06/2013,52000,Vol Assoc Grants  General,Children's Services,Res Serv Agency Placements,"3,100.00"
2804597,CHILD ACTION NORTHWEST,13/06/2013,55700,Grant Funded Expenditure,Children's Services,Troubled Families,"8,333.00"
2816931,CHILD ACTION NORTHWEST,27/06/2013,52000,Vol Assoc Grants  General,Children's Services,Disability Serv External Provision,"4,448.19"
2816925,CHILD ACTION NORTHWEST,27/06/2013,52000,Vol Assoc Grants  General,Children's Services,Res Serv Agency Placements,"3,542.99"
2805336,CHILD ACTION NORTHWEST,13/06/2013,44054,Other Clients Services,Children's Services,Youth Offending Team,923.32
2804860,CHOICES HOME FOR CHILDREN LTD,13/06/2013,52000,Vol Assoc Grants  General,Children's Services,Res Serv Agency Placements,"7,549.43"
2817115,CHOICES HOME FOR CHILDREN LTD,27/06/2013,52000,Vol Assoc Grants  General,Children's Services,Res Serv Agency Placements,"7,305.90"
2817113,CHOICES HOME FOR CHILDREN LTD,27/06/2013,52000,Vol Assoc Grants  General,Children's Services,Res Serv Agency Placements,"7,285.80"
2804863,CHOICES HOME FOR CHILDREN LTD,13/06/2013,52000,Vol Assoc Grants  General,Children's Services,Res Serv Agency Placements,"7,528.66"
2817220,REDACTED - PERSONAL DATA,27/06/2013,48502,Legal Fees,Children's Services,Management Team,500.00
2807566,CIPFA BUSINESS LTD,24/06/2013,48509,Other Fees,Finance Department,LMA Library Mgmt,"4,002.20"
2815329,CIRCUS ZAPPARELLI,24/06/2013,48203,Marketing,Central Services,Marketing  General,"1,450.00"
2805551,CITY BUILD MANCHESTER LTD,13/06/2013,Z1051,Work in Progress Additions,Property Services,Property Services Balance Sheet,"120,293.66"
2804551,CITY BUILD MANCHESTER LTD,20/06/2013,Z1051,Work in Progress Additions,Property Services,Property Services Balance Sheet,"2,222.00"
2805534,CITY BUILD MANCHESTER LTD,13/06/2013,Z1051,Work in Progress Additions,Central Corporate,Corporate Property Balance Sheet,"237,398.09"
2800175,COBALT TELEPHONE TECHNOLOGIES LTD,06/06/2013,20100,Day To Day Maintenance,Environmental Services,Parking Services  On Street,"1,780.00"
2811352,COBOLT SYSTEMS LTD,24/06/2013,44051,Clients Aids & Adaptations,Adult Services,Independent,598.25
2817430,COHENS CHEMIST#GORGEMEAD LTD,27/06/2013,52200,Contracted Services,Public Health,Smoking,"1,234.95"
2816702,COHENS CHEMIST#GORGEMEAD LTD,27/06/2013,52200,Contracted Services,Adult Services,Drugs Pooled Treatment Budget,523.40
2812958,COLBRE PROJECTS LTD,20/06/2013,20100,Day To Day Maintenance,Environmental Services,NS Centralised budget,"19,447.12"
2812956,COLBRE PROJECTS LTD,20/06/2013,Z1051,Work in Progress Additions,Environmental Services,Environmental Services Balance sheet,"4,023.00"
2804437,COLLETT TRANSPORT SERVICES LTD,13/06/2013,33201,Transport Hire,Environmental Services,Transport Support Service,"1,060.00"
2801835,COLOURS WHOLESALE FLOWERS,06/06/2013,40609,Horticultural Materials,Environmental Services,Heaton Fold,735.30
2804498,CONCATENO UK LTD,13/06/2013,52200,Contracted Services,Adult Services,Drugs Pooled Treatment Budget,"1,728.25"
2801466,CONISTON HOUSE CARE HOME,06/06/2013,54301,Residential Provision,Adult Services,OA  External Provision Residential,"3,176.00"
2815416,CONSERVATION CONTRACTS NORTH WEST LTD,24/06/2013,52200,Contracted Services,Environmental Services,Assets,712.70
2802608,CONSERVATION CONTRACTS NORTH WEST LTD,10/06/2013,52200,Contracted Services,Environmental Services,Assets,"1,289.61"
2815389,CONSERVATION CONTRACTS NORTH WEST LTD,24/06/2013,52200,Contracted Services,Environmental Services,Assets,561.85
2815389,CONSERVATION CONTRACTS NORTH WEST LTD,24/06/2013,Z1051,Work in Progress Additions,Environmental Services,Environmental Services Balance sheet,946.90
2805855,CONSERVATION CONTRACTS NORTH WEST LTD,13/06/2013,Z1051,Work in Progress Additions,Environmental Services,Environmental Services Balance sheet,682.50
2817435,CONTOUR HOMES#73,27/06/2013,52210,Contracted Services  Rental Voids,Adult Services,LD Provider  Supported Housing,793.70
2817438,CONTOUR HOMES#73,27/06/2013,52210,Contracted Services  Rental Voids,Adult Services,LD Provider  Supported Housing,"1,384.56"
2817542,CONTOUR HOMES#73,27/06/2013,52210,Contracted Services  Rental Voids,Adult Services,LD Provider  Supported Housing,"1,036.96"
2807741,CO-OP PHARMACY,17/06/2013,52200,Contracted Services,Public Health,Smoking,621.54
2801687,CORE ASSETS FOSTERING LIMITED,06/06/2013,52000,Vol Assoc Grants  General,Children's Services,Res Serv Agency Placements,"3,412.94"
2804878,CORE ASSETS FOSTERING LIMITED,13/06/2013,52000,Vol Assoc Grants  General,Children's Services,Res Serv Agency Placements,"2,402.10"
2801408,CORNERSTONE TRUST,06/06/2013,54301,Residential Provision,Adult Services,LD Purchaser Residential Care,"18,898.40"
2814167,CRAVEN ROOFING CONTRACTORS,24/06/2013,52200,Contracted Services,Central Corporate,Bolton Sports Village,"7,940.00"
2807533,CREATIVE SUPPORT LTD#3,13/06/2013,52200,Contracted Services,Adult Services,LD Purchaser Supported Housing,"39,919.27"
2805446,CREATIVE SUPPORT LTD#3,13/06/2013,52200,Contracted Services,Adult Services,LD Purchaser Supported Housing,"24,792.79"
2805447,CREATIVE SUPPORT LTD#3,13/06/2013,52200,Contracted Services,Adult Services,LD Purchaser Supported Housing,"32,698.66"
2807531,CREATIVE SUPPORT LTD#3,13/06/2013,52200,Contracted Services,Adult Services,LD Purchaser Supported Housing,"23,841.04"
2801880,CREATIVE SUPPORT LTD#3,06/06/2013,52200,Contracted Services,Adult Services,LD Purchaser Supported Housing,"26,839.68"
2805448,CREATIVE SUPPORT LTD#3,13/06/2013,52200,Contracted Services,Adult Services,LD Purchaser Supported Housing,"26,839.68"
2807528,CREATIVE SUPPORT LTD#3,13/06/2013,52000,Vol Assoc Grants  General,Adult Services,OA Extra Care Housing External Provision,"8,719.56"
2807683,CREATIVE SUPPORT LTD#3,17/06/2013,52200,Contracted Services,Adult Services,OA Extra Care Housing External Provision,"5,823.42"
2807530,CREATIVE SUPPORT LTD#3,13/06/2013,52200,Contracted Services,Adult Services,OA Extra Care Housing External Provision,"8,892.91"
2807317,CREATIVE SUPPORT LTD#3,13/06/2013,52200,Contracted Services,Adult Services,OA Extra Care Housing External Provision,"8,773.62"
2807315,CREATIVE SUPPORT LTD#3,13/06/2013,52200,Contracted Services,Adult Services,OA Extra Care Housing External Provision,"8,624.20"
2800406,CREATIVE SUPPORT LTD#3,06/06/2013,52200,Contracted Services,Adult Services,OA Extra Care Housing External Provision,"30,006.50"
2803470,CREST ENVIRONMENTAL LTD,10/06/2013,Z6008,Expense AP Accrual,Bolton MBC Balance Sheet,Bolton MBC Balance Sheet,725.00
2816408,CROMWELL POLYTHENE LTD,24/06/2013,40601,General Materials,Environmental Services,Activities and Operations,"3,199.68"
2802578,CROSSROADS CARE IN GREATER MANCHESTER LTD,10/06/2013,52200,Contracted Services,Children's Services,Admin Commissioning,648.00
2801310,CROSTON CORN MILL LTD,06/06/2013,48622,Livestock,Environmental Services,Assets,534.85
2804870,CRYSTAL CARE SOLUTIONS LTD,13/06/2013,52000,Vol Assoc Grants  General,Children's Services,Res Serv Agency Placements,"2,895.00"
2813071,CRYSTAL CARE SOLUTIONS LTD,20/06/2013,52000,Vol Assoc Grants  General,Children's Services,Res Serv Agency Placements,"2,895.00"
2817166,CRYSTAL CARE SOLUTIONS LTD,27/06/2013,52000,Vol Assoc Grants  General,Children's Services,Res Serv Agency Placements,"4,000.00"
2803663,CRYSTAL CARE SOLUTIONS LTD,10/06/2013,52000,Vol Assoc Grants  General,Children's Services,Res Serv Agency Placements,"2,895.00"
2817161,CRYSTAL CARE SOLUTIONS LTD,27/06/2013,52000,Vol Assoc Grants  General,Children's Services,Res Serv Agency Placements,"2,481.42"
2817163,CRYSTAL CARE SOLUTIONS LTD,27/06/2013,52000,Vol Assoc Grants  General,Children's Services,Res Serv Agency Placements,"4,000.00"
2803666,CRYSTAL CARE SOLUTIONS LTD,10/06/2013,52000,Vol Assoc Grants  General,Children's Services,Res Serv Agency Placements,"2,895.00"
2812728,DAWSONRENTALS BUS AND COACH LTD,20/06/2013,33201,Transport Hire,Environmental Services,Transport Support Service,"1,303.58"
2812735,DAWSONRENTALS BUS AND COACH LTD,20/06/2013,33201,Transport Hire,Environmental Services,Transport Support Service,"1,303.58"
2812742,DAWSONRENTALS BUS AND COACH LTD,20/06/2013,33201,Transport Hire,Environmental Services,Transport Support Service,"1,303.58"
2804426,DAWSONRENTALS BUS AND COACH LTD,13/06/2013,33201,Transport Hire,Environmental Services,Transport Support Service,"1,303.58"
2812751,DAWSONRENTALS BUS AND COACH LTD,20/06/2013,33201,Transport Hire,Environmental Services,Transport Support Service,"1,303.58"
2812754,DAWSONRENTALS BUS AND COACH LTD,20/06/2013,33201,Transport Hire,Environmental Services,Transport Support Service,"1,303.58"
2804423,DAWSONRENTALS BUS AND COACH LTD,13/06/2013,33201,Transport Hire,Environmental Services,Transport Support Service,"1,303.58"
2804424,DAWSONRENTALS BUS AND COACH LTD,13/06/2013,33201,Transport Hire,Environmental Services,Transport Support Service,"1,303.58"
2812747,DAWSONRENTALS BUS AND COACH LTD,20/06/2013,33201,Transport Hire,Environmental Services,Transport Support Service,"1,303.58"
2808686,DAYS HEALTHCARE#DAYS MEDICAL AIDS LTD#FACTOR PATTERSON MEDICAL LTD,17/06/2013,44051,Clients Aids & Adaptations,Adult Services,ICES,"1,261.08"
2805547,DBD MECHANICAL & ELECTRICAL BUILDING SERVICES,13/06/2013,48509,Other Fees,Central Corporate,Bolton Sports Village,950.00
2813054,DBD MECHANICAL & ELECTRICAL BUILDING SERVICES,20/06/2013,48509,Other Fees,Central Corporate,Bolton Sports Village,"7,192.56"
2812988,DBD MECHANICAL & ELECTRICAL BUILDING SERVICES,20/06/2013,48509,Other Fees,Adult Services,Jubilee Pool,500.00
2801439,DEANWOOD MANOR CARE HOME,06/06/2013,54302,Nursing Provision,Adult Services,OA  External Provision Residential,"1,772.88"
2809099,REDACTED - PERSONAL DATA,17/06/2013,48509,Other Fees,Adult Services,Independent,672.00
2809100,REDACTED - PERSONAL DATA,17/06/2013,48509,Other Fees,Adult Services,Independent,672.00
2814512,DELL CORPORATION LTD,24/06/2013,45400,Computer Purchase,Children's Services,Admin IT (Schools),"6,808.95"
2814513,DELL CORPORATION LTD,24/06/2013,45400,Computer Purchase,Children's Services,Admin IT (Schools),"25,187.50"
2801489,DERBYSHIRE HAVEN CARE HOME,06/06/2013,54301,Residential Provision,Adult Services,OA  External Provision Residential,"1,612.00"
2816918,DESIGN SURVEYING PARTNERSHIP LTD,27/06/2013,48509,Other Fees,Property Services,Town Hall,"12,219.19"
2816913,DESIGN SURVEYING PARTNERSHIP LTD,27/06/2013,48509,Other Fees,Property Services,Town Hall,"6,078.86"
2799910,DETICA LTD,06/06/2013,45431,Computer Software Licences,Children's Services,ICS Revenue,"9,643.75"
2816657,DIAMOND HEALTHCARE (NW) LTD#DERBY STREET PHARMACY,27/06/2013,52200,Contracted Services,Adult Services,Drugs Pooled Treatment Budget,598.50
2814833,DISCLOSURE AND BARRING SERVICE,24/06/2013,48528,CRB Checks  External,Environmental Services,Regulatory Services Licensing,"4,092.00"
2813787,DISCLOSURE AND BARRING SERVICE,20/06/2013,19400,Disclosure Monitoring,Chief Executives Department,HR  Corporate,"17,248.00"
2801442,DOUGLAS BANK NURSING HOME#TUDOR BANK LTD,06/06/2013,54302,Nursing Provision,Adult Services,OA  External Provision Residential,"1,906.60"
2801430,DOVE COURT RESIDENTIAL & NURSING HOME,06/06/2013,54301,Residential Provision,Adult Services,OA  External Provision Residential,"1,618.21"
2801440,DOWNSHAW LODGE,06/06/2013,54302,Nursing Provision,Adult Services,OA  External Provision Residential,"1,960.92"
2812882,DP COLD PLANING LIMITED,20/06/2013,Z6008,Expense AP Accrual,Bolton MBC Balance Sheet,Bolton MBC Balance Sheet,650.00
2808130,DP COLD PLANING LIMITED,17/06/2013,Z6008,Expense AP Accrual,Bolton MBC Balance Sheet,Bolton MBC Balance Sheet,650.00
2808128,DP COLD PLANING LIMITED,17/06/2013,Z6008,Expense AP Accrual,Bolton MBC Balance Sheet,Bolton MBC Balance Sheet,"1,300.00"
2815005,DP COLD PLANING LIMITED,24/06/2013,Z6008,Expense AP Accrual,Bolton MBC Balance Sheet,Bolton MBC Balance Sheet,650.00
2808140,DP COLD PLANING LIMITED,17/06/2013,Z6008,Expense AP Accrual,Bolton MBC Balance Sheet,Bolton MBC Balance Sheet,650.00
2809045,DRS DIRECT LTD#BIBBY FACTORS LEICESTER LIMITED,17/06/2013,55711,Medical Referees Fees,Chief Executives Department,Occ Health Holding Code,"2,100.00"
2800528,DRS DIRECT LTD#BIBBY FACTORS LEICESTER LIMITED,06/06/2013,55711,Medical Referees Fees,Chief Executives Department,Occ Health Holding Code,900.00
2809050,DRS DIRECT LTD#BIBBY FACTORS LEICESTER LIMITED,17/06/2013,55711,Medical Referees Fees,Chief Executives Department,Occ Health Holding Code,"4,050.00"
2807784,DTW ADVERTISING AND MARKETING LTD,17/06/2013,48203,Marketing,Central Services,Marketing  General,"2,600.00"
2802890,DUNCAN ROSS LAND DRAINAGE LTD,10/06/2013,20503,Strategic Landscape,Environmental Services,Assets,"1,003.80"
2802888,DUNCAN ROSS LAND DRAINAGE LTD,10/06/2013,20503,Strategic Landscape,Environmental Services,Assets,"1,391.01"
2802924,DUNCAN ROSS LAND DRAINAGE LTD,10/06/2013,20503,Strategic Landscape,Environmental Services,Assets,850.00
2803530,DURABLE LTD,24/06/2013,20106,Glazing,Property Services,Annual Charge Holding Account,609.53
2805599,DURABLE LTD,13/06/2013,20102,Health and Safety,Property Services,Farnworth Area Office,"2,174.30"
2816673,DUTTON TECH CONSULTING#REDACTED - PERSONAL DATA,27/06/2013,48509,Other Fees,Children's Services,Technical Innovation Centre,"1,600.00"
2813218,DUVAL SECURITY,20/06/2013,44401,Other Security Expenses,Environmental Services,Markets  Rent Account,"2,249.07"
2816439,E N COXHEAD LTD,24/06/2013,40609,Horticultural Materials,Environmental Services,Heaton Fold,844.50
2811501,E N COXHEAD LTD,20/06/2013,40609,Horticultural Materials,Environmental Services,Heaton Fold,"1,176.00"
2801503,E N COXHEAD LTD,06/06/2013,40609,Horticultural Materials,Environmental Services,Heaton Fold,"1,387.00"
2807654,E N COXHEAD LTD,17/06/2013,40609,Horticultural Materials,Environmental Services,Heaton Fold,948.60
2817754,EASIFALL INTERNATIONAL LTD,27/06/2013,52200,Contracted Services,Chief Executives Department,Neighbourhood Mgt and Area Working Devolved,"5,831.00"
2813947,EASYLINK UK,20/06/2013,44051,Clients Aids & Adaptations,Adult Services,ASC External Funded Schemes,"1,854.25"
2801414,ECCLESHOLME,06/06/2013,54301,Residential Provision,Adult Services,OA  External Provision Residential,"1,506.04"
2807591,ECM EDUCATION CONSULTANTS LTD,13/06/2013,48509,Other Fees,Children's Services,Primary Commissioning,"1,980.00"
2812362,ECON ENGINEERING LIMITED,20/06/2013,31305,Vehicle Servicing,Environmental Services,Transport Support Service,"1,380.36"
2812813,EDUCATION COUNTS,20/06/2013,48509,Other Fees,Children's Services,Income – Teaching & Learning CPD,600.00
2816830,EDUCATION SUPPORT PROFESSIONALS,27/06/2013,53000,Private Contracted Services,Children's Services,Admin IT (Schools),644.00
2800404,EDUCATION SUPPORT PROFESSIONALS,10/06/2013,53000,Private Contracted Services,Children's Services,Admin IT (Schools),693.00
2812932,EDUCATION SUPPORT PROFESSIONALS,20/06/2013,53000,Private Contracted Services,Children's Services,Admin IT (Schools),623.00
2802123,EDUCATION SUPPORT PROFESSIONALS,10/06/2013,53000,Private Contracted Services,Children's Services,Admin IT (Schools),602.00
2801394,ELLERSHAW HOUSE LTD,06/06/2013,54301,Residential Provision,Adult Services,LD Purchaser Residential Care,"9,098.36"
2801438,ELLERSLIE COURT#VITALISE,06/06/2013,54301,Residential Provision,Adult Services,PD Purchaser Residential Care,"2,722.32"
2811516,EMINOX LTD,20/06/2013,31305,Vehicle Servicing,Environmental Services,Transport Support Service,"1,593.50"
2811364,REDACTED - PERSONAL DATA,17/06/2013,48510,Consultancy Fees,Finance Department,LMA External Funded Projects,"3,562.50"
2811533,EMO OIL LTD#WAS SHELL OIL,20/06/2013,20300,Heating & Electrical Work,Environmental Services,Depots,772.41
2817221,ENGINEERING SERVICE CO,27/06/2013,20100,Day To Day Maintenance,Property Services,Magistrates courts  Le Mans Crescent,"3,646.00"
2813177,ENGINEERING SERVICE CO,20/06/2013,Z6008,Expense AP Accrual,Bolton MBC Balance Sheet,Bolton MBC Balance Sheet,"1,055.00"
2817514,ENGINEERING SERVICE CO,27/06/2013,20501,Engineering Work,Central Corporate,City Challenge,"4,042.00"
2805490,ENGINEERING SERVICE CO,13/06/2013,20100,Day To Day Maintenance,Children's Services,Heywood YP Centre,"5,677.00"
2812413,ENGLISH CHURCHES HOUSING GROUP#4,20/06/2013,52200,Contracted Services,Adult Services,Supporting People  Capital Financing,"23,682.50"
2817141,ENTERPRISE MANAGED SERVICES (E&CS) LIMITED,27/06/2013,21100,Electricity  General,Environmental Services,Engineering Projects,"2,700.00"
2801731,ENTERTAINMENT TRADE MGT AGENCIES LTD,06/06/2013,48501,Artistes Fees,Environmental Services,Albert Halls Entertainment,"5,750.00"
2801383,EPWORTH GRANGE,06/06/2013,54301,Residential Provision,Adult Services,OA  External Provision Residential,"1,615.24"
2805976,ERIC WRIGHT FACILITIES MANAGEMENT,13/06/2013,21100,Electricity  General,Development & Regen,BoltonOne Leisure,"8,297.55"
2805976,ERIC WRIGHT FACILITIES MANAGEMENT,13/06/2013,40613,Goods for Resale,Development & Regen,BoltonOne Leisure,"2,568.48"
2817006,EVAC & CHAIR INTERNATIONAL LTD,27/06/2013,20102,Health and Safety,Property Services,Farnworth Area Office,"1,661.00"
2801502,EXPRESS ELEVATORS LTD,06/06/2013,Z6008,Expense AP Accrual,Bolton MBC Balance Sheet,Bolton MBC Balance Sheet,749.00
2799906,F BREWER & SON,06/06/2013,52200,Contracted Services,Environmental Services,Activities and Operations,882.00
2801669,F R SHARROCK LTD#SHARROCKS,06/06/2013,40102,Operational Equipment Rental,Environmental Services,Activities and Operations,"16,850.44"
2801669,F R SHARROCK LTD#SHARROCKS,06/06/2013,40102,Operational Equipment Rental,Environmental Services,Bereavement Services,833.34
2816414,F R SHARROCK LTD#SHARROCKS,24/06/2013,40102,Operational Equipment Rental,Environmental Services,Activities and Operations,"16,850.44"
2816414,F R SHARROCK LTD#SHARROCKS,24/06/2013,40102,Operational Equipment Rental,Environmental Services,Bereavement Services,833.34
2817020,FARRER & CO,27/06/2013,93120,Refunds,Adult Services,"AD Finance, Income & Assess. Team","1,106.84"
2812378,FAUN ZOELLER (UK) LTD,20/06/2013,31305,Vehicle Servicing,Environmental Services,Transport Support Service,"3,304.73"
2814014,FAUN ZOELLER (UK) LTD,20/06/2013,31305,Vehicle Servicing,Environmental Services,Transport Support Service,630.86
2802647,FIRST MANCHESTER LTD & FIRST TRANSFORMING TRAVEL,10/06/2013,34401,Clients  Bus Fares,Development & Regen,The Work Programme,570.00
2802306,FIRST MANCHESTER LTD & FIRST TRANSFORMING TRAVEL,10/06/2013,34401,Clients  Bus Fares,Children's Services,Child Prot Leaving Care Team,841.50
2802312,FIRST MANCHESTER LTD & FIRST TRANSFORMING TRAVEL,10/06/2013,34401,Clients  Bus Fares,Children's Services,Contact & Direct Work,"1,235.00"
2807311,FIRSTCALL HEALTHCARE#PASSHALL LTD,13/06/2013,52200,Contracted Services,Adult Services,OA  Home Care Services external provision,"53,776.29"
2815208,FLEXEL EUROPE LTD,24/06/2013,44051,Clients Aids & Adaptations,Adult Services,ICES,607.15
2812808,FOREVER CREATIVE LIMITED,20/06/2013,48203,Marketing,Central Services,Marketing  General,525.00
2805982,FORTALICE LTD#BOLTON WOMENS AID,13/06/2013,52200,Contracted Services,Adult Services,Supporting People  Capital Financing,"17,254.06"
2801493,FOSSE BANK HOUSE,06/06/2013,54301,Residential Provision,Adult Services,MH Residential External Provision,"4,545.88"
2817116,FOSTERING NETWORK,27/06/2013,48509,Other Fees,Children's Services,Regional Activities,"4,792.36"
2801327,FOUR SEASONS NURSING HOME,06/06/2013,54301,Residential Provision,Adult Services,OA  External Provision Residential,"2,765.69"
2801327,FOUR SEASONS NURSING HOME,06/06/2013,54302,Nursing Provision,Adult Services,OA  External Provision Residential,"1,161.48"
2801328,FOUR SEASONS NURSING HOME,06/06/2013,54302,Nursing Provision,Adult Services,LD Purchaser Residential Care,"1,589.08"
2801328,FOUR SEASONS NURSING HOME,06/06/2013,54301,Residential Provision,Adult Services,MH Residential External Provision,"1,589.08"
2801328,FOUR SEASONS NURSING HOME,06/06/2013,54301,Residential Provision,Adult Services,OA  External Provision Residential,"35,844.85"
2801328,FOUR SEASONS NURSING HOME,06/06/2013,54302,Nursing Provision,Adult Services,OA  External Provision Residential,"49,742.12"
2801328,FOUR SEASONS NURSING HOME,06/06/2013,54301,Residential Provision,Adult Services,PD Purchaser Residential Care,"4,767.24"
2805600,FOXX LTD,13/06/2013,Z1051,Work in Progress Additions,Environmental Services,Environmental Services Balance sheet,"1,250.00"
2805613,FOXX LTD,13/06/2013,48509,Other Fees,Property Services,Corporate Property Revenue Project Transfers to Other Projects,600.00
2803721,FREEDOM MANUFACTURING LTD,10/06/2013,44051,Clients Aids & Adaptations,Adult Services,ICES,700.00
2811369,FREEDOM MANUFACTURING LTD,17/06/2013,44051,Clients Aids & Adaptations,Adult Services,ICES,"1,015.00"
2803726,FREEDOM MANUFACTURING LTD,10/06/2013,44051,Clients Aids & Adaptations,Adult Services,ICES,870.00
2813321,FREIGHT TRANSPORT ASSOC LTD,20/06/2013,31304,Vehicle Licences,Environmental Services,Transport Support Service,"1,104.00"
2803480,FUJITSU SERVICES LIMITED,10/06/2013,45432,Computer Software Installation,Environmental Services,Assets,"2,058.32"
2813824,FUNDTECH FSC LTD,24/06/2013,45430,Computer Software,Finance Department,Finance Ap Centre of Excellence,"1,774.02"
2802185,G & S SMIRTHWAITE LTD,06/06/2013,44051,Clients Aids & Adaptations,Adult Services,ICES,672.00
2804871,G4S CASH SOLUTIONS,13/06/2013,44402,Security Cash Collection,Finance Department,CSD Cashiers,"5,145.37"
2816879,REDACTED - PERSONAL DATA,27/06/2013,Z1051,Work in Progress Additions,Property Services,Property Services Balance Sheet,"1,085.00"
2816885,GASKELL MCDOWALL CONSTRUCTION,27/06/2013,Z1051,Work in Progress Additions,Property Services,Corporate Property Capital Project Transfers to Other Projects,"24,649.65"
2805970,GATENBYSANDERSON,13/06/2013,48510,Consultancy Fees,Adult Services,AD Departmental Management Team,"14,734.49"
2804544,GATENBYSANDERSON,13/06/2013,48510,Consultancy Fees,Adult Services,AD Departmental Management Team,"14,738.04"
2804583,GATENBYSANDERSON,13/06/2013,19005,Other Recruitment Expenditure,Chief Executives Department,Chief Executive,"1,710.00"
2807985,REDACTED - PERSONAL DATA,17/06/2013,48502,Legal Fees,Children's Services,Management Team,"1,470.00"
2816621,REDACTED - PERSONAL DATA,27/06/2013,48502,Legal Fees,Children's Services,Management Team,"1,500.00"
2812400,GERRARD SEEL LTD,20/06/2013,41106,Bar Stock,Environmental Services,Civic Catering  Town Hall Bar,"1,119.96"
2799590,GERRARD SEEL LTD,06/06/2013,41106,Bar Stock,Environmental Services,Civic Catering  Town Hall Bar,780.48
2801465,GHS BROOKDALE,06/06/2013,54301,Residential Provision,Adult Services,OA  External Provision Residential,"3,148.88"
2801556,GILBERT13#REDACTED - PERSONAL DATA,06/06/2013,48509,Other Fees,Children's Services,Technical Innovation Centre,800.00
2812729,GL EDUCATION GROUP LTD,20/06/2013,40101,Operational Equipment Maint,Children's Services,Education Psychology Service,"1,007.95"
2801467,GLEN ROSA & KITWOOD HOUSE,06/06/2013,54301,Residential Provision,Adult Services,OA  External Provision Residential,"1,700.72"
2801330,GLENBANK CARE HOME LTD,06/06/2013,54301,Residential Provision,Adult Services,OA  External Provision Residential,"13,720.08"
2801330,GLENBANK CARE HOME LTD,06/06/2013,54301,Residential Provision,Adult Services,PD Purchaser Residential Care,"1,567.96"
2801329,GLENBANK CARE HOME LTD,06/06/2013,54301,Residential Provision,Adult Services,OA  External Provision Residential,569.26
2801388,GLENHOMES REST HOME,06/06/2013,54301,Residential Provision,Adult Services,OA  External Provision Residential,"14,113.08"
2801387,GLENHOMES REST HOME,06/06/2013,54301,Residential Provision,Adult Services,OA  External Provision Residential,619.00
2801486,GLENROYD CARE HOME,06/06/2013,54302,Nursing Provision,Adult Services,OA  External Provision Residential,"1,535.12"
2817241,G-MAP SERVICES LTD,27/06/2013,52000,Vol Assoc Grants  General,Children's Services,Res Serv Agency Placements,"3,025.00"
2807540,GMP DRIVERCARE LTD,13/06/2013,36100,Transport  Insurance Premiums,Public Health,Food Action Bolton,"2,022.48"
2807540,GMP DRIVERCARE LTD,13/06/2013,36100,Transport  Insurance Premiums,Public Health,Get Active,674.16
2807540,GMP DRIVERCARE LTD,13/06/2013,36100,Transport  Insurance Premiums,Public Health,Healthy Communities Team,674.16
2807540,GMP DRIVERCARE LTD,13/06/2013,36100,Transport  Insurance Premiums,Public Health,Sexual Health Improvement,674.16
2813823,GMS SERVICES LIMITED,20/06/2013,20102,Health and Safety,Property Services,Annual Charge Holding Account,942.00
2817415,GORDONS LLP,26/06/2013,Z1051,Work in Progress Additions,Highways,Stores,"200,000.00"
2801332,GORSEY CLOUGH NURSING HOME LTD,06/06/2013,54302,Nursing Provision,Adult Services,OA  External Provision Residential,"9,691.44"
2817096,GOVDELIVERY,27/06/2013,45401,Computer Maintenance,Finance Department,Web Team,"1,932.00"
2800324,REDACTED - PERSONAL DATA,06/06/2013,Z1051,Work in Progress Additions,Housing GRF,Capital  General Fund,"15,000.00"
2801334,GRANGE LEA RESIDENTIAL CARE HOME LTD,06/06/2013,54301,Residential Provision,Adult Services,OA  External Provision Residential,"21,092.24"
2801333,GRANGE LEA RESIDENTIAL CARE HOME LTD,06/06/2013,54301,Residential Provision,Adult Services,OA  External Provision Residential,897.54
2805983,GREAT PLACES HOUSING ASSOCIATION,13/06/2013,52200,Contracted Services,Adult Services,Supporting People  Capital Financing,"17,925.29"
2817457,GREAT PLACES HOUSING ASSOCIATION,27/06/2013,52210,Contracted Services  Rental Voids,Adult Services,LD Provider  Supported Housing,509.80
2817462,GREAT PLACES HOUSING ASSOCIATION,27/06/2013,52210,Contracted Services  Rental Voids,Adult Services,LD Provider  Supported Housing,520.48
2811531,GREENCHEM SOLUTIONS LTD,20/06/2013,31305,Vehicle Servicing,Environmental Services,Transport Support Service,544.64
2813959,GREENHAM,20/06/2013,42000,Clothing,Property Services,Handyman Service,671.76
2801483,GREENLANDS RESIDENTIAL HOME LTD,06/06/2013,54301,Residential Provision,Adult Services,OA  External Provision Residential,"1,186.88"
2801484,GREENLANDS RESIDENTIAL HOME LTD,06/06/2013,54301,Residential Provision,Adult Services,OA  External Provision Residential,"21,561.11"
2817726,GRESHAM OFFICE FURNITURE LTD,27/06/2013,40150,Office Furniture Purchase,Property Services,Accomm Rationalisation Strategy,"1,092.50"
2800031,GROUPS TOGETHER,06/06/2013,48501,Artistes Fees,Adult Services,Adult Disabilities Day Services  Jubilee Bar,"1,646.00"
2809822,GTCREATE LIMITED,17/06/2013,48203,Marketing,Central Services,Marketing  General,960.00
2804428,GULLIVERS TRUCK HIRE LTD,13/06/2013,33201,Transport Hire,Environmental Services,Transport Support Service,"2,125.00"
2809103,H JENKINSON & COMPANY LTD,17/06/2013,40150,Office Furniture Purchase,Property Services,Accomm Rationalisation Strategy,681.13
2801367,HAIGHFIELD NURSING HOME,06/06/2013,54302,Nursing Provision,Adult Services,OA  External Provision Residential,"1,494.08"
2801423,HALF ACRE CARE HOME,06/06/2013,54301,Residential Provision,Adult Services,OA  External Provision Residential,"3,148.88"
2815010,HALLIWELL BEFRIENDING SERVICE,24/06/2013,52200,Contracted Services,Adult Services,OA  Day Care Provision  external,"4,000.00"
2804366,HALTON CONTAINER SERVICES LTD,10/06/2013,53000,Private Contracted Services,Environmental Services,Waste,"2,107.20"
2804375,HALTON CONTAINER SERVICES LTD,10/06/2013,53000,Private Contracted Services,Environmental Services,Trade Waste,640.00
2804375,HALTON CONTAINER SERVICES LTD,10/06/2013,53000,Private Contracted Services,Environmental Services,Waste,"1,610.00"
2804371,HALTON CONTAINER SERVICES LTD,10/06/2013,53000,Private Contracted Services,Environmental Services,Trade Waste,"1,805.90"
2805558,HANOVER HOUSING ASSOCIATION#2,13/06/2013,52200,Contracted Services,Adult Services,Supporting People  Capital Financing,"6,644.52"
2817533,HAPPY MUSIC LIMITED,27/06/2013,48517,Fees/Expenses Schools,Children's Services,Music ServMusic Service general,"1,470.00"
2801436,HARBOUR CLOSE,06/06/2013,54301,Residential Provision,Adult Services,PD Purchaser Residential Care,"3,877.88"
2817167,REDACTED - PERSONAL DATA,27/06/2013,19000,Recruitment Advertising,Environmental Services,Buildings,964.41
2814642,HARWOOD HEATING SERVICES LTD,24/06/2013,Z1051,Work in Progress Additions,Housing GRF,Capital  General Fund,"1,000.00"
2817634,HAWTHORN HOTEL,27/06/2013,93258,Residential Provision,Children's Services,Youth Offending Team,828.00
2817468,HAYS SPECIALIST RECRUITMENT,27/06/2013,53102,Agency Staff  Other,Adult Services,Home Support Reablement,812.50
2817468,HAYS SPECIALIST RECRUITMENT,27/06/2013,53102,Agency Staff  Other,Adult Services,OA  Alderbank  Residential,"2,384.83"
2817468,HAYS SPECIALIST RECRUITMENT,27/06/2013,53102,Agency Staff  Other,Adult Services,OA  Darley Court Intermediate Care,"3,479.87"
2817468,HAYS SPECIALIST RECRUITMENT,27/06/2013,53102,Agency Staff  Other,Adult Services,OA  Firwood  Residential,503.68
2817468,HAYS SPECIALIST RECRUITMENT,27/06/2013,53102,Agency Staff  Other,Adult Services,OA  Winifred Kettle  Residential,"1,914.28"
2817468,HAYS SPECIALIST RECRUITMENT,27/06/2013,53102,Agency Staff  Other,Adult Services,Urgent Care,"1,812.61"
2817468,HAYS SPECIALIST RECRUITMENT,27/06/2013,53102,Agency Staff  Other,Chief Executives Department,HR  Childrens Services,792.54
2817468,HAYS SPECIALIST RECRUITMENT,27/06/2013,53102,Agency Staff  Other,Environmental Services,Activities and Operations,"11,455.76"
2817468,HAYS SPECIALIST RECRUITMENT,27/06/2013,53102,Agency Staff  Other,Environmental Services,Bereavement Services,"1,096.29"
2817468,HAYS SPECIALIST RECRUITMENT,27/06/2013,53102,Agency Staff  Other,Environmental Services,Business Support,729.34
2817468,HAYS SPECIALIST RECRUITMENT,27/06/2013,53102,Agency Staff  Other,Environmental Services,Civic Cleaning,901.50
2817468,HAYS SPECIALIST RECRUITMENT,27/06/2013,53102,Agency Staff  Other,Environmental Services,Management & Overheads,"1,108.98"
2817468,HAYS SPECIALIST RECRUITMENT,27/06/2013,53102,Agency Staff  Other,Environmental Services,Markets  Rent Account,"6,868.64"
2817468,HAYS SPECIALIST RECRUITMENT,27/06/2013,53102,Agency Staff  Other,Environmental Services,Neighbourhood Management Support,644.55
2817468,HAYS SPECIALIST RECRUITMENT,27/06/2013,53102,Agency Staff  Other,Environmental Services,Performance and Improvement,"2,903.38"
2817468,HAYS SPECIALIST RECRUITMENT,27/06/2013,53102,Agency Staff  Other,Environmental Services,Security Services,"1,006.02"
2817468,HAYS SPECIALIST RECRUITMENT,27/06/2013,53102,Agency Staff  Other,Environmental Services,Transport Support Service,"1,286.77"
2817468,HAYS SPECIALIST RECRUITMENT,27/06/2013,53102,Agency Staff  Other,Environmental Services,Waste,"20,798.92"
2817468,HAYS SPECIALIST RECRUITMENT,27/06/2013,53102,Agency Staff  Other,Development & Regen,The Work Programme,"1,090.06"
2817468,HAYS SPECIALIST RECRUITMENT,27/06/2013,53102,Agency Staff  Other,Children's Services,Admin Strategy&Performance,564.97
2817468,HAYS SPECIALIST RECRUITMENT,27/06/2013,53102,Agency Staff  Other,Children's Services,Business Support    South District,"2,346.63"
2817468,HAYS SPECIALIST RECRUITMENT,27/06/2013,53102,Agency Staff  Other,Children's Services,Business Support – Central Team,773.39
2817468,HAYS SPECIALIST RECRUITMENT,27/06/2013,53102,Agency Staff  Other,Children's Services,Business Support – North District,"2,507.42"
2817468,HAYS SPECIALIST RECRUITMENT,27/06/2013,53102,Agency Staff  Other,Children's Services,Child Prot Leaving Care Team,862.60
2817468,HAYS SPECIALIST RECRUITMENT,27/06/2013,53102,Agency Staff  Other,Children's Services,Children and Family Supp Svs North,"5,776.69"
2817468,HAYS SPECIALIST RECRUITMENT,27/06/2013,53102,Agency Staff  Other,Children's Services,Children and Family Supp Svs South,"3,364.11"
2817468,HAYS SPECIALIST RECRUITMENT,27/06/2013,53102,Agency Staff  Other,Children's Services,Children and Family Supp Svs West,"2,556.12"
2817468,HAYS SPECIALIST RECRUITMENT,27/06/2013,53102,Agency Staff  Other,Children's Services,Youth & Play Management Team,631.26
2817468,HAYS SPECIALIST RECRUITMENT,27/06/2013,53102,Agency Staff  Other,Finance Department,C.R.M. Operations,"10,802.39"
2817468,HAYS SPECIALIST RECRUITMENT,27/06/2013,53102,Agency Staff  Other,Finance Department,Council Tax,636.76
2817468,HAYS SPECIALIST RECRUITMENT,27/06/2013,53102,Agency Staff  Other,Finance Department,Customer Services,"2,526.72"
2817468,HAYS SPECIALIST RECRUITMENT,27/06/2013,53102,Agency Staff  Other,Finance Department,Finance Ap Centre of Excellence,"1,423.17"
2817468,HAYS SPECIALIST RECRUITMENT,27/06/2013,53102,Agency Staff  Other,Finance Department,Finance Dept Procurement Team,753.55
2817468,HAYS SPECIALIST RECRUITMENT,27/06/2013,53102,Agency Staff  Other,Housing GRF,Furnished Tenancy Staff Costs,"1,057.94"
2817468,HAYS SPECIALIST RECRUITMENT,27/06/2013,53102,Agency Staff  Other,Property Services,Accomm Rationalisation Strategy,"1,065.21"
2817468,HAYS SPECIALIST RECRUITMENT,27/06/2013,53102,Agency Staff  Other,Property Services,Operational Facilities Management,747.40
2817468,HAYS SPECIALIST RECRUITMENT,27/06/2013,53102,Agency Staff  Other,Property Services,Projects,"1,893.94"
2817468,HAYS SPECIALIST RECRUITMENT,27/06/2013,53102,Agency Staff  Other,Legal Trading,Legal Services Trading Account,"4,520.70"
2805537,HAYS SPECIALIST RECRUITMENT,13/06/2013,53102,Agency Staff  Other,Adult Services,OA  Alderbank  Residential,"2,620.26"
2805537,HAYS SPECIALIST RECRUITMENT,13/06/2013,53102,Agency Staff  Other,Adult Services,OA  Darley Court Intermediate Care,"7,031.48"
2805537,HAYS SPECIALIST RECRUITMENT,13/06/2013,53102,Agency Staff  Other,Adult Services,OA  Firwood  Residential,"2,420.57"
2805537,HAYS SPECIALIST RECRUITMENT,13/06/2013,53102,Agency Staff  Other,Adult Services,OA  Winifred Kettle  Residential,"3,648.16"
2805537,HAYS SPECIALIST RECRUITMENT,13/06/2013,53102,Agency Staff  Other,Adult Services,OA Merton  Extra Care Housing,"2,867.91"
2805537,HAYS SPECIALIST RECRUITMENT,13/06/2013,53102,Agency Staff  Other,Adult Services,Urgent Care,767.60
2805537,HAYS SPECIALIST RECRUITMENT,13/06/2013,53102,Agency Staff  Other,Environmental Services,Activities and Operations,"7,512.72"
2805537,HAYS SPECIALIST RECRUITMENT,13/06/2013,53102,Agency Staff  Other,Environmental Services,Bereavement Services,"1,437.78"
2805537,HAYS SPECIALIST RECRUITMENT,13/06/2013,53102,Agency Staff  Other,Environmental Services,Business Support,515.81
2805537,HAYS SPECIALIST RECRUITMENT,13/06/2013,53102,Agency Staff  Other,Environmental Services,Management & Overheads,"1,022.71"
2805537,HAYS SPECIALIST RECRUITMENT,13/06/2013,53102,Agency Staff  Other,Environmental Services,Neighbourhood Management Support,640.95
2805537,HAYS SPECIALIST RECRUITMENT,13/06/2013,53102,Agency Staff  Other,Environmental Services,Regulatory Services,"1,113.00"
2805537,HAYS SPECIALIST RECRUITMENT,13/06/2013,53102,Agency Staff  Other,Environmental Services,Transport Support Service,"1,222.90"
2805537,HAYS SPECIALIST RECRUITMENT,13/06/2013,53102,Agency Staff  Other,Environmental Services,Waste,"15,080.83"
2805537,HAYS SPECIALIST RECRUITMENT,13/06/2013,53102,Agency Staff  Other,Children's Services,Business Support    South District,"2,456.61"
2805537,HAYS SPECIALIST RECRUITMENT,13/06/2013,53102,Agency Staff  Other,Children's Services,Business Support – Central Team,640.39
2805537,HAYS SPECIALIST RECRUITMENT,13/06/2013,53102,Agency Staff  Other,Children's Services,Business Support – North District,"3,128.96"
2805537,HAYS SPECIALIST RECRUITMENT,13/06/2013,53102,Agency Staff  Other,Children's Services,Child Prot Leaving Care Team,865.00
2805537,HAYS SPECIALIST RECRUITMENT,13/06/2013,53102,Agency Staff  Other,Children's Services,Children and Family Supp Svs North,"3,219.29"
2805537,HAYS SPECIALIST RECRUITMENT,13/06/2013,53102,Agency Staff  Other,Children's Services,Children and Family Supp Svs South,"4,338.59"
2805537,HAYS SPECIALIST RECRUITMENT,13/06/2013,53102,Agency Staff  Other,Children's Services,Children and Family Supp Svs West,"2,641.02"
2805537,HAYS SPECIALIST RECRUITMENT,13/06/2013,53102,Agency Staff  Other,Children's Services,Disability Serv Bolton Shared Care,689.40
2805537,HAYS SPECIALIST RECRUITMENT,13/06/2013,53102,Agency Staff  Other,Children's Services,Disability Serv Family Support Team,"1,073.79"
2805537,HAYS SPECIALIST RECRUITMENT,13/06/2013,53102,Agency Staff  Other,Children's Services,Targeted Youth Support,619.37
2805537,HAYS SPECIALIST RECRUITMENT,13/06/2013,53102,Agency Staff  Other,Children's Services,Youth & Play Management Team,"1,121.71"
2805537,HAYS SPECIALIST RECRUITMENT,13/06/2013,53102,Agency Staff  Other,Children's Services,Youth Offending Team,618.00
2805537,HAYS SPECIALIST RECRUITMENT,13/06/2013,53102,Agency Staff  Other,Finance Department,C.R.M. Operations,"10,316.29"
2805537,HAYS SPECIALIST RECRUITMENT,13/06/2013,53102,Agency Staff  Other,Finance Department,Council Tax,553.86
2805537,HAYS SPECIALIST RECRUITMENT,13/06/2013,53102,Agency Staff  Other,Finance Department,Customer Services,"1,807.70"
2805537,HAYS SPECIALIST RECRUITMENT,13/06/2013,53102,Agency Staff  Other,Finance Department,Finance Ap Centre of Excellence,"1,188.70"
2805537,HAYS SPECIALIST RECRUITMENT,13/06/2013,53102,Agency Staff  Other,Housing GRF,Furnished Tenancy Staff Costs,681.27
2805537,HAYS SPECIALIST RECRUITMENT,13/06/2013,53102,Agency Staff  Other,Property Services,Accomm Rationalisation Strategy,774.41
2805537,HAYS SPECIALIST RECRUITMENT,13/06/2013,53102,Agency Staff  Other,Property Services,Operational Facilities Management,666.37
2805537,HAYS SPECIALIST RECRUITMENT,13/06/2013,53102,Agency Staff  Other,Property Services,Projects,"2,625.96"
2805537,HAYS SPECIALIST RECRUITMENT,13/06/2013,53102,Agency Staff  Other,Legal Trading,Legal Services Trading Account,"6,750.49"
2805857,HAYS SPECIALIST RECRUITMENT,13/06/2013,53102,Agency Staff  Other,Adult Services,AD Joint Finance Unit,659.81
2805857,HAYS SPECIALIST RECRUITMENT,13/06/2013,53102,Agency Staff  Other,Adult Services,OA  Darley Court Intermediate Care,"6,279.46"
2805857,HAYS SPECIALIST RECRUITMENT,13/06/2013,53102,Agency Staff  Other,Adult Services,OA  Firwood  Residential,756.62
2805857,HAYS SPECIALIST RECRUITMENT,13/06/2013,53102,Agency Staff  Other,Adult Services,OA  Winifred Kettle  Residential,910.41
2805857,HAYS SPECIALIST RECRUITMENT,13/06/2013,53102,Agency Staff  Other,Adult Services,OA Merton  Extra Care Housing,"1,167.61"
2805857,HAYS SPECIALIST RECRUITMENT,13/06/2013,53102,Agency Staff  Other,Adult Services,Urgent Care,"3,767.21"
2805857,HAYS SPECIALIST RECRUITMENT,13/06/2013,53102,Agency Staff  Other,Chief Executives Department,HR  Childrens Services,717.36
2805857,HAYS SPECIALIST RECRUITMENT,13/06/2013,53102,Agency Staff  Other,Environmental Services,Activities and Operations,"6,838.63"
2805857,HAYS SPECIALIST RECRUITMENT,13/06/2013,53102,Agency Staff  Other,Environmental Services,Bereavement Services,"4,008.95"
2805857,HAYS SPECIALIST RECRUITMENT,13/06/2013,53102,Agency Staff  Other,Environmental Services,Business Support,939.62
2805857,HAYS SPECIALIST RECRUITMENT,13/06/2013,53102,Agency Staff  Other,Environmental Services,Civic Cleaning,826.78
2805857,HAYS SPECIALIST RECRUITMENT,13/06/2013,53102,Agency Staff  Other,Environmental Services,Heaton Fold,601.71
2805857,HAYS SPECIALIST RECRUITMENT,13/06/2013,53102,Agency Staff  Other,Environmental Services,Management & Overheads,712.13
2805857,HAYS SPECIALIST RECRUITMENT,13/06/2013,53102,Agency Staff  Other,Environmental Services,Neighbourhood Management Support,644.55
2805857,HAYS SPECIALIST RECRUITMENT,13/06/2013,53102,Agency Staff  Other,Environmental Services,Transport Support Service,"2,210.99"
2805857,HAYS SPECIALIST RECRUITMENT,13/06/2013,53102,Agency Staff  Other,Environmental Services,Waste,"29,085.45"
2805857,HAYS SPECIALIST RECRUITMENT,13/06/2013,53102,Agency Staff  Other,Development & Regen,The Work Programme,"1,090.06"
2805857,HAYS SPECIALIST RECRUITMENT,13/06/2013,53102,Agency Staff  Other,Children's Services,Admin Strategy&Performance,633.69
2805857,HAYS SPECIALIST RECRUITMENT,13/06/2013,53102,Agency Staff  Other,Children's Services,Business Support    South District,"2,735.61"
2805857,HAYS SPECIALIST RECRUITMENT,13/06/2013,53102,Agency Staff  Other,Children's Services,Business Support – Central Team,639.74
2805857,HAYS SPECIALIST RECRUITMENT,13/06/2013,53102,Agency Staff  Other,Children's Services,Business Support – North District,"3,152.13"
2805857,HAYS SPECIALIST RECRUITMENT,13/06/2013,53102,Agency Staff  Other,Children's Services,Children and Family Supp Svs North,"5,293.97"
2805857,HAYS SPECIALIST RECRUITMENT,13/06/2013,53102,Agency Staff  Other,Children's Services,Children and Family Supp Svs South,"4,458.31"
2805857,HAYS SPECIALIST RECRUITMENT,13/06/2013,53102,Agency Staff  Other,Children's Services,Children and Family Supp Svs West,"1,344.36"
2805857,HAYS SPECIALIST RECRUITMENT,13/06/2013,53102,Agency Staff  Other,Children's Services,Targeted Youth Support,974.84
2805857,HAYS SPECIALIST RECRUITMENT,13/06/2013,53102,Agency Staff  Other,Children's Services,Youth & Play Management Team,682.26
2805857,HAYS SPECIALIST RECRUITMENT,13/06/2013,53102,Agency Staff  Other,Children's Services,Youth Offending Team,700.40
2805857,HAYS SPECIALIST RECRUITMENT,13/06/2013,53102,Agency Staff  Other,Finance Department,C.R.M. Operations,"11,308.97"
2805857,HAYS SPECIALIST RECRUITMENT,13/06/2013,53102,Agency Staff  Other,Finance Department,Customer Services,"3,374.25"
2805857,HAYS SPECIALIST RECRUITMENT,13/06/2013,53102,Agency Staff  Other,Finance Department,Finance Ap Centre of Excellence,"1,422.75"
2805857,HAYS SPECIALIST RECRUITMENT,13/06/2013,53102,Agency Staff  Other,Finance Department,Finance Dept Procurement Team,796.63
2805857,HAYS SPECIALIST RECRUITMENT,13/06/2013,53102,Agency Staff  Other,Housing GRF,Furnished Tenancy Staff Costs,697.22
2805857,HAYS SPECIALIST RECRUITMENT,13/06/2013,53102,Agency Staff  Other,Housing GRF,Homes for Bolton CBL,794.86
2805857,HAYS SPECIALIST RECRUITMENT,13/06/2013,53102,Agency Staff  Other,Property Services,Accomm Rationalisation Strategy,"1,065.20"
2805857,HAYS SPECIALIST RECRUITMENT,13/06/2013,53102,Agency Staff  Other,Property Services,Operational Facilities Management,"1,332.76"
2805857,HAYS SPECIALIST RECRUITMENT,13/06/2013,53102,Agency Staff  Other,Property Services,Projects,"2,741.89"
2805857,HAYS SPECIALIST RECRUITMENT,13/06/2013,53102,Agency Staff  Other,Legal Trading,Legal Services Trading Account,"5,205.52"
2813222,HAYS SPECIALIST RECRUITMENT,20/06/2013,53102,Agency Staff  Other,Adult Services,Home Support Reablement,"1,159.60"
2813222,HAYS SPECIALIST RECRUITMENT,20/06/2013,53102,Agency Staff  Other,Adult Services,OA  Alderbank  Residential,"4,798.37"
2813222,HAYS SPECIALIST RECRUITMENT,20/06/2013,53102,Agency Staff  Other,Adult Services,OA  Darley Court Intermediate Care,"12,329.77"
2813222,HAYS SPECIALIST RECRUITMENT,20/06/2013,53102,Agency Staff  Other,Adult Services,OA  Firwood  Residential,737.44
2813222,HAYS SPECIALIST RECRUITMENT,20/06/2013,53102,Agency Staff  Other,Adult Services,OA  Laburnum Lodge  Residential,985.66
2813222,HAYS SPECIALIST RECRUITMENT,20/06/2013,53102,Agency Staff  Other,Adult Services,OA  Winifred Kettle  Residential,"1,270.88"
2813222,HAYS SPECIALIST RECRUITMENT,20/06/2013,53102,Agency Staff  Other,Adult Services,Urgent Care,"1,812.61"
2813222,HAYS SPECIALIST RECRUITMENT,20/06/2013,53102,Agency Staff  Other,Chief Executives Department,HR  Childrens Services,792.54
2813222,HAYS SPECIALIST RECRUITMENT,20/06/2013,53102,Agency Staff  Other,Environmental Services,Activities and Operations,"8,103.29"
2813222,HAYS SPECIALIST RECRUITMENT,20/06/2013,53102,Agency Staff  Other,Environmental Services,Business Support,"1,696.52"
2813222,HAYS SPECIALIST RECRUITMENT,20/06/2013,53102,Agency Staff  Other,Environmental Services,Management & Overheads,"1,270.61"
2813222,HAYS SPECIALIST RECRUITMENT,20/06/2013,53102,Agency Staff  Other,Environmental Services,Neighbourhood Management Support,644.55
2813222,HAYS SPECIALIST RECRUITMENT,20/06/2013,53102,Agency Staff  Other,Environmental Services,Transport Support Service,558.61
2813222,HAYS SPECIALIST RECRUITMENT,20/06/2013,53102,Agency Staff  Other,Environmental Services,Waste,"24,100.16"
2813222,HAYS SPECIALIST RECRUITMENT,20/06/2013,53102,Agency Staff  Other,Development & Regen,The Work Programme,876.47
2813222,HAYS SPECIALIST RECRUITMENT,20/06/2013,53102,Agency Staff  Other,Children's Services,Admin Strategy&Performance,564.97
2813222,HAYS SPECIALIST RECRUITMENT,20/06/2013,53102,Agency Staff  Other,Children's Services,Business Support    South District,"2,184.16"
2813222,HAYS SPECIALIST RECRUITMENT,20/06/2013,53102,Agency Staff  Other,Children's Services,Business Support – North District,"2,808.39"
2813222,HAYS SPECIALIST RECRUITMENT,20/06/2013,53102,Agency Staff  Other,Children's Services,Children and Family Supp Svs North,"5,839.74"
2813222,HAYS SPECIALIST RECRUITMENT,20/06/2013,53102,Agency Staff  Other,Children's Services,Children and Family Supp Svs South,"3,382.67"
2813222,HAYS SPECIALIST RECRUITMENT,20/06/2013,53102,Agency Staff  Other,Children's Services,Children and Family Supp Svs West,"1,869.84"
2813222,HAYS SPECIALIST RECRUITMENT,20/06/2013,53102,Agency Staff  Other,Children's Services,Youth & Play Management Team,803.76
2813222,HAYS SPECIALIST RECRUITMENT,20/06/2013,53102,Agency Staff  Other,Children's Services,Youth Offending Team,762.20
2813222,HAYS SPECIALIST RECRUITMENT,20/06/2013,53102,Agency Staff  Other,Finance Department,C.R.M. Operations,"11,169.12"
2813222,HAYS SPECIALIST RECRUITMENT,20/06/2013,53102,Agency Staff  Other,Finance Department,Customer Services,"1,994.04"
2813222,HAYS SPECIALIST RECRUITMENT,20/06/2013,53102,Agency Staff  Other,Finance Department,Finance Ap Centre of Excellence,"1,498.00"
2813222,HAYS SPECIALIST RECRUITMENT,20/06/2013,53102,Agency Staff  Other,Finance Department,Finance Dept Procurement Team,753.55
2813222,HAYS SPECIALIST RECRUITMENT,20/06/2013,53102,Agency Staff  Other,Housing GRF,Homes for Bolton CBL,606.68
2813222,HAYS SPECIALIST RECRUITMENT,20/06/2013,53102,Agency Staff  Other,Property Services,Accomm Rationalisation Strategy,"1,065.46"
2813222,HAYS SPECIALIST RECRUITMENT,20/06/2013,53102,Agency Staff  Other,Property Services,Operational Facilities Management,666.39
2813222,HAYS SPECIALIST RECRUITMENT,20/06/2013,53102,Agency Staff  Other,Property Services,Projects,"1,754.00"
2813222,HAYS SPECIALIST RECRUITMENT,20/06/2013,53102,Agency Staff  Other,Legal Trading,Legal Services Trading Account,"5,071.23"
2807589,HAZEL COURT,13/06/2013,52000,Vol Assoc Grants  General,Children's Services,Res Serv Agency Placements,"4,415.28"
2801390,HAZELBROOK CHRISTIAN NURSING HOME,06/06/2013,54302,Nursing Provision,Adult Services,OA  External Provision Residential,"1,686.48"
2801705,HBINFO LTD,06/06/2013,19104,Training Exp  Ext Seminars,Finance Department,Housing Benefits,500.00
2799353,HEADSTART MINIBUS#REDACTED - PERSONAL DATA,03/06/2013,34402,Clients  Taxi Fares,Environmental Services,SNT Childrens Servs,"1,530.00"
2805847,REDACTED - PERSONAL DATA,13/06/2013,48509,Other Fees,Children's Services,Management Team,747.67
2815323,HELPING HAND CO (LEDBURY) LTD,24/06/2013,44051,Clients Aids & Adaptations,Adult Services,ICES,"3,236.00"
2811353,HELPING HAND CO (LEDBURY) LTD,17/06/2013,44051,Clients Aids & Adaptations,Adult Services,ICES,"3,274.00"
2801670,HENSHAWS SOCIETY FOR THE BLIND,06/06/2013,54301,Residential Provision,Adult Services,PD Purchaser Residential Care,"2,631.52"
2801448,HIGHCLIFFE RESIDENTIAL HOME#TEAMCARE LTD,06/06/2013,54301,Residential Provision,Adult Services,OA  External Provision Residential,"1,682.00"
2801365,HILLCREST,06/06/2013,54301,Residential Provision,Adult Services,OA  External Provision Residential,"1,531.08"
2801441,HILLCREST VERNON,06/06/2013,54301,Residential Provision,Adult Services,LD Purchaser Residential Care,"4,870.72"
2801471,HILLVIEW CARE HOME,06/06/2013,54301,Residential Provision,Adult Services,OA  External Provision Residential,"3,364.00"
2801342,HOLLANDS NURSING HOME,06/06/2013,54301,Residential Provision,Adult Services,LD Purchaser Residential Care,"1,809.78"
2801342,HOLLANDS NURSING HOME,06/06/2013,54301,Residential Provision,Adult Services,MH Residential External Provision,"9,972.79"
2801342,HOLLANDS NURSING HOME,06/06/2013,54302,Nursing Provision,Adult Services,MH Residential External Provision,"9,120.72"
2801342,HOLLANDS NURSING HOME,06/06/2013,54301,Residential Provision,Adult Services,OA  External Provision Residential,"3,135.92"
2801342,HOLLANDS NURSING HOME,06/06/2013,54301,Residential Provision,Adult Services,PD Purchaser Residential Care,"3,467.96"
2801342,HOLLANDS NURSING HOME,06/06/2013,54302,Nursing Provision,Adult Services,PD Purchaser Residential Care,"4,032.00"
2807602,HOLTWOOD HOUSE#FACTOR ARC ADVENTURE (BURY) LTD,13/06/2013,52000,Vol Assoc Grants  General,Children's Services,Disability Serv External Provision,"10,840.61"
2807601,HOLTWOOD HOUSE#FACTOR ARC ADVENTURE (BURY) LTD,13/06/2013,52000,Vol Assoc Grants  General,Children's Services,Disability Serv External Provision,"11,256.85"
2807687,HOMECARE FOR YOU LTD#BLACKBURN,17/06/2013,52200,Contracted Services,Adult Services,OA  Home Care Services external provision,"17,380.58"
2800082,HOMECARE SUPPORT,06/06/2013,52200,Contracted Services,Adult Services,OA  Home Care Services external provision,"2,048.17"
2800076,HOMECARE SUPPORT,06/06/2013,52200,Contracted Services,Adult Services,OA  Home Care Services external provision,"1,401.48"
2800074,HOMECARE SUPPORT,06/06/2013,52200,Contracted Services,Adult Services,OA  Home Care Services external provision,"1,430.52"
2812799,HOMECARE SUPPORT,20/06/2013,52200,Contracted Services,Adult Services,OA  Home Care Services external provision,"48,809.67"
2812794,HOMECARE SUPPORT,20/06/2013,52200,Contracted Services,Adult Services,OA  Home Care Services external provision,"35,052.78"
2801452,HOMELEA RESIDENTIAL CARE HOME,06/06/2013,54301,Residential Provision,Adult Services,OA  External Provision Residential,"1,772.12"
2799357,HORWICH PRIVATE HIRE LINK LIMITED,03/06/2013,34402,Clients  Taxi Fares,Environmental Services,SNT Childrens Servs,"2,997.10"
2816585,HUDSON & PEARSON LTD,27/06/2013,48203,Marketing,Central Services,Marketing  General,512.42
2816681,HUNT & MARSDEN (BOLTON) LTD,27/06/2013,52200,Contracted Services,Adult Services,Drugs Pooled Treatment Budget,693.00
2813995,HUNT & MARSDEN (BOLTON) LTD,24/06/2013,52200,Contracted Services,Adult Services,Drugs Pooled Treatment Budget,532.00
2801326,HYDE  LEA,06/06/2013,54301,Residential Provision,Adult Services,OA  External Provision Residential,"22,776.36"
2801325,HYDE  LEA,06/06/2013,54301,Residential Provision,Adult Services,OA  External Provision Residential,"1,587.22"
2799365,I K CARS#REDACTED - PERSONAL DATA,03/06/2013,34402,Clients  Taxi Fares,Environmental Services,SNT Childrens Servs,"1,897.80"
2799359,REDACTED - PERSONAL DATA,03/06/2013,34402,Clients  Taxi Fares,Environmental Services,SNT Childrens Servs,"1,280.80"
2799361,REDACTED - PERSONAL DATA#SENTINEL,03/06/2013,34402,Clients  Taxi Fares,Environmental Services,SNT Childrens Servs,"1,020.00"
2803413,IDOX SOFTWARE LTD,10/06/2013,45401,Computer Maintenance,Development & Regen,D&R Building NonTrading,"1,425.00"
2811434,IFLOURISH LTD,20/06/2013,44102,Governer Training,Children's Services,Admin Governor Suprt Unit,722.50
2799364,IFTIKHAR CAB#REDACTED - PERSONAL DATA,03/06/2013,34402,Clients  Taxi Fares,Environmental Services,SNT Childrens Servs,"1,081.00"
2812404,IMPRESSION (BOLTON) LIMITED#1,20/06/2013,48203,Marketing,Central Services,Marketing  General,945.00
2817515,IMPROVEMENT & DEVELOPMENT AGENCY FOR LOCAL GOVERNMENT,27/06/2013,47200,General Subscriptions,Central Services,Corporate Information Team,"2,260.00"
2801744,INTEGRATE (PRESTON & CHORLEY) LTD,06/06/2013,52200,Contracted Services,Adult Services,LD Purchaser Supported Housing,"5,719.16"
2817513,INTEGRATE (PRESTON & CHORLEY) LTD,27/06/2013,52200,Contracted Services,Adult Services,LD Purchaser Supported Housing,"5,719.16"
2811373,INTERIOR PARTNERS LTD,17/06/2013,40100,Operational Equipment Purchase,Finance Department,Museum Premises,"1,995.00"
2811372,INTERIOR PARTNERS LTD,17/06/2013,Z1051,Work in Progress Additions,Property Services,Property Services Balance Sheet,"2,445.00"
2811368,INTERIOR PARTNERS LTD,17/06/2013,Z1051,Work in Progress Additions,Property Services,Property Services Balance Sheet,"1,300.00"
2805984,IRWELL VALLEY HOUSING ASSOCIATION,13/06/2013,52200,Contracted Services,Adult Services,Supporting People  Capital Financing,"16,368.33"
2803727,IRWELL VALLEY HOUSING ASSOCIATION,10/06/2013,52200,Contracted Services,Adult Services,Supporting People  Capital Financing,"2,896.65"
2799315,REDACTED - PERSONAL DATA T/A BESTWAY MINIBUSES,03/06/2013,34402,Clients  Taxi Fares,Environmental Services,SNT Childrens Servs,"7,284.50"
2817059,J & L PRINCE BUILDERS,27/06/2013,Z1051,Work in Progress Additions,Housing GRF,Capital  General Fund,"6,052.21"
2812422,J A TYRE SERVICE LTD,20/06/2013,31303,Tyres,Environmental Services,Transport Support Service,574.80
2812443,J A TYRE SERVICE LTD,20/06/2013,31303,Tyres,Environmental Services,Transport Support Service,520.45
2813234,J DICKINSON & SONS (HORWICH) LTD#2,20/06/2013,26106,Refuse Collection,Environmental Services,Activities and Operations,678.68
2813234,J DICKINSON & SONS (HORWICH) LTD#2,20/06/2013,26106,Refuse Collection,Environmental Services,Bereavement Services,516.00
2817712,J DICKINSON & SONS (HORWICH) LTD#2,27/06/2013,40601,General Materials,Environmental Services,Activities and Operations,"1,472.54"
2817707,J DICKINSON & SONS (HORWICH) LTD#2,27/06/2013,40601,General Materials,Environmental Services,Activities and Operations,"1,964.60"
2817702,J DICKINSON & SONS (HORWICH) LTD#2,27/06/2013,40601,General Materials,Environmental Services,Activities and Operations,"4,401.10"
2815079,J DICKINSON & SONS (HORWICH) LTD#2,24/06/2013,20501,Engineering Work,Environmental Services,Highways Managers,"1,036.55"
2815076,J DICKINSON & SONS (HORWICH) LTD#2,24/06/2013,20501,Engineering Work,Environmental Services,Highways Managers,"4,252.58"
2815073,J DICKINSON & SONS (HORWICH) LTD#2,24/06/2013,20501,Engineering Work,Environmental Services,Highways Managers,"2,120.66"
2814968,J DICKINSON & SONS (HORWICH) LTD#2,24/06/2013,20501,Engineering Work,Environmental Services,Highways Maintenance Billable Costs,709.50
2816900,J DICKINSON & SONS (HORWICH) LTD#2,27/06/2013,40601,General Materials,Environmental Services,Highway Services,"3,118.64"
2814951,J DICKINSON & SONS (HORWICH) LTD#2,24/06/2013,Z6008,Expense AP Accrual,Bolton MBC Balance Sheet,Bolton MBC Balance Sheet,"1,376.10"
2807698,J HOPKINS (CONTRACTORS) LTD,17/06/2013,Z6008,Expense AP Accrual,Bolton MBC Balance Sheet,Bolton MBC Balance Sheet,"7,560.00"
2808129,J HOPKINS (CONTRACTORS) LTD,17/06/2013,Z6008,Expense AP Accrual,Bolton MBC Balance Sheet,Bolton MBC Balance Sheet,"9,576.00"
2815228,J HOPKINS (CONTRACTORS) LTD,24/06/2013,Z6008,Expense AP Accrual,Bolton MBC Balance Sheet,Bolton MBC Balance Sheet,"10,584.63"
2817111,J HOPKINS (CONTRACTORS) LTD,27/06/2013,Z6008,Expense AP Accrual,Bolton MBC Balance Sheet,Bolton MBC Balance Sheet,"10,080.00"
2805566,J PHILLIPS & SONS LTD#1,13/06/2013,Z1051,Work in Progress Additions,Property Services,Corporate Property Capital Project Transfers to Other Projects,590.00
2817319,J W WHITTLE LIMITED#STORE-AWAY ARCHIVE FACILITIES,27/06/2013,22006,Rent of Storage Facilities,Finance Department,Museum Premises,552.00
2816449,J W YOUNG (BUTCHERS) LIMITED,24/06/2013,41101,Catering ProvisionsFood,Environmental Services,Catering,"2,236.74"
2814615,J W YOUNG (BUTCHERS) LIMITED,24/06/2013,41101,Catering ProvisionsFood,Environmental Services,Catering,"1,906.91"
2801785,J W YOUNG (BUTCHERS) LIMITED,06/06/2013,41101,Catering ProvisionsFood,Environmental Services,Catering,"1,275.94"
2810036,JACKSON JACKSON & SONS LTD,17/06/2013,Z6008,Expense AP Accrual,Bolton MBC Balance Sheet,Bolton MBC Balance Sheet,589.49
2799454,JACKSON JACKSON & SONS LTD,06/06/2013,Z6008,Expense AP Accrual,Bolton MBC Balance Sheet,Bolton MBC Balance Sheet,628.88
2810027,JACKSON JACKSON & SONS LTD,17/06/2013,Z6008,Expense AP Accrual,Bolton MBC Balance Sheet,Bolton MBC Balance Sheet,820.28
2801404,JAH-JIREH (BLACKPOOL),06/06/2013,54301,Residential Provision,Adult Services,OA  External Provision Residential,"1,548.88"
2814039,JAMES GIBSON (DARWEN) LTD,24/06/2013,44051,Clients Aids & Adaptations,Adult Services,ICES,574.43
2813944,JAMES LECKEY DESIGN LTD,24/06/2013,44051,Clients Aids & Adaptations,Adult Services,ICES,"1,880.00"
2813919,JAMES LECKEY DESIGN LTD,20/06/2013,44051,Clients Aids & Adaptations,Adult Services,ICES,"1,632.60"
2813581,JAMES LECKEY DESIGN LTD,20/06/2013,44051,Clients Aids & Adaptations,Adult Services,ICES,"1,941.00"
2807750,REDACTED - PERSONAL DATA,17/06/2013,19000,Recruitment Advertising,Housing GRF,Accommodation Projects,"1,049.88"
2811366,REDACTED - PERSONAL DATA,17/06/2013,48510,Consultancy Fees,Finance Department,LMA External Funded Projects,"1,375.00"
2800493,REDACTED - PERSONAL DATA,06/06/2013,19100,Training Exps Tuition Fees,Adult Services,Staff Development  Adults,"2,064.90"
2801550,JAY FOSTERING LIMITED,06/06/2013,52000,Vol Assoc Grants  General,Children's Services,Res Serv Agency Placements,"3,582.67"
2805851,JLA LIMITED,13/06/2013,40107,Kitchen Equipment,Housing GRF,Benjamin Court Temporary Accommodation,"1,459.00"
2799332,JO BAXI NORTH WEST LTD,03/06/2013,34402,Clients  Taxi Fares,Environmental Services,SNT Childrens Servs,"5,557.10"
2805346,JO HOSSLE-STANDRING T/A JORCHID,13/06/2013,55711,Medical Referees Fees,Chief Executives Department,Occ Health Holding Code,"1,280.00"
2817518,JOE DAVIES (MANCHESTER) LTD,27/06/2013,40609,Horticultural Materials,Environmental Services,Heaton Fold,615.08
2811328,JOHN PACKER LTD,17/06/2013,40101,Operational Equipment Maint,Children's Services,Music ServInstru & Vocal Teach,"2,064.00"
2802531,JONES LIGHTING LTD,10/06/2013,20501,Engineering Work,Environmental Services,Lighting / Stores Billable Costs,825.48
2802532,JONES LIGHTING LTD,10/06/2013,20501,Engineering Work,Environmental Services,Lighting / Stores Billable Costs,927.96
2802537,JONES LIGHTING LTD,10/06/2013,20501,Engineering Work,Environmental Services,Lighting / Stores Billable Costs,"4,591.38"
2802549,JONES LIGHTING LTD,17/06/2013,20501,Engineering Work,Environmental Services,Lighting / Stores Billable Costs,"1,720.06"
2802552,JONES LIGHTING LTD,17/06/2013,20501,Engineering Work,Environmental Services,Lighting / Stores Billable Costs,"10,813.82"
2799905,JONES LIGHTING LTD,06/06/2013,20501,Engineering Work,Environmental Services,Lighting / Stores Billable Costs,704.00
2799911,JONES LIGHTING LTD,06/06/2013,20501,Engineering Work,Environmental Services,Lighting / Stores Billable Costs,845.00
2799914,JONES LIGHTING LTD,06/06/2013,20501,Engineering Work,Environmental Services,Lighting / Stores Billable Costs,826.00
2799915,JONES LIGHTING LTD,06/06/2013,20501,Engineering Work,Environmental Services,Lighting / Stores Billable Costs,826.00
2799986,JONES LIGHTING LTD,06/06/2013,20501,Engineering Work,Environmental Services,Lighting / Stores Billable Costs,"2,112.60"
2802439,JONES LIGHTING LTD,10/06/2013,20501,Engineering Work,Environmental Services,Lighting / Stores Billable Costs,"3,019.66"
2802440,JONES LIGHTING LTD,10/06/2013,20501,Engineering Work,Environmental Services,Lighting / Stores Billable Costs,"1,855.92"
2802441,JONES LIGHTING LTD,17/06/2013,20501,Engineering Work,Environmental Services,Lighting / Stores Billable Costs,"5,882.16"
2802528,JONES LIGHTING LTD,10/06/2013,20501,Engineering Work,Environmental Services,Lighting / Stores Billable Costs,"2,012.46"
2802529,JONES LIGHTING LTD,10/06/2013,20501,Engineering Work,Environmental Services,Lighting / Stores Billable Costs,"3,765.90"
2809096,REDACTED - PERSONAL DATA,17/06/2013,48509,Other Fees,Adult Services,Independent,595.00
2801693,JOSEPH ATHERTON LTD#ATHERTONS FRESH FOODS,06/06/2013,41101,Catering ProvisionsFood,Public Health,Food Action Bolton,903.60
2805862,KAROMED LIMITED,13/06/2013,44051,Clients Aids & Adaptations,Adult Services,ICES,600.00
2814158,KAYS TRAFFIC MANAGEMENT SYSTEMS LTD,24/06/2013,Z6008,Expense AP Accrual,Bolton MBC Balance Sheet,Bolton MBC Balance Sheet,800.00
2814519,KCOM GROUP PLC,24/06/2013,40101,Operational Equipment Maint,Children's Services,Admin IT (Schools),625.00
2807984,KCOM GROUP PLC,17/06/2013,45600,Fujitsu  Data N/wk Line Rent,Adult Services,AD Physical Disabilities,666.66
2807984,KCOM GROUP PLC,17/06/2013,45600,Fujitsu  Data N/wk Line Rent,Children's Services,Oldhams CC,524.99
2814520,KCOM GROUP PLC,24/06/2013,40101,Operational Equipment Maint,Children's Services,Admin IT (Schools),625.00
2814521,KCOM GROUP PLC,24/06/2013,40101,Operational Equipment Maint,Children's Services,Admin IT (Schools),625.00
2814518,KCOM GROUP PLC,24/06/2013,40100,Operational Equipment Purchase,Children's Services,Admin IT (Schools),"23,970.11"
2807542,KELLIBRATIONS BY KELLY DOOLEY,13/06/2013,40613,Goods for Resale,Environmental Services,Civic Catering  Town Hall Functions,709.00
2807595,KELLIBRATIONS BY KELLY DOOLEY,13/06/2013,40613,Goods for Resale,Environmental Services,Civic Catering  Town Hall Functions,611.50
2801378,KENYON LODGE,06/06/2013,54301,Residential Provision,Adult Services,OA  External Provision Residential,"1,506.04"
2801378,KENYON LODGE,06/06/2013,54302,Nursing Provision,Adult Services,OA  External Provision Residential,"1,506.04"
2807613,KEYMEN ASSOCIATES LTD#MAYDAY,17/06/2013,52200,Contracted Services,Adult Services,OA  Home Care Services external provision,"10,536.39"
2800504,KILLGERM CHEMICALS LTD,06/06/2013,40605,Chemicals,Environmental Services,Activities and Operations,878.18
2816314,KING SCIENTIFIC,24/06/2013,42000,Clothing,Environmental Services,Highway Management,623.00
2814145,KING SCIENTIFIC,24/06/2013,42000,Clothing,Environmental Services,Highway Management,852.45
2801470,KINGARTH,06/06/2013,54301,Residential Provision,Adult Services,LD Purchaser Residential Care,"11,162.40"
2805863,KINGS CHAMBERS,13/06/2013,48502,Legal Fees,Central Services,Legal Services Holding Code,750.00
2801718,KINGSWOOD COLOMENDY LIMITED,06/06/2013,44059,Educational Visits,Chief Executives Department,Community Safety,840.00
2801391,KNIGHTSWOOD RESIDENTIAL HOME,06/06/2013,54301,Residential Provision,Adult Services,OA  External Provision Residential,595.62
2801392,KNIGHTSWOOD RESIDENTIAL HOME,06/06/2013,54301,Residential Provision,Adult Services,OA  External Provision Residential,"13,861.24"
2807513,KPMG LLP,13/06/2013,48519,External Audit Fees,Finance Department,Financial Management,"2,724.00"
2816526,KPMG LLP,24/06/2013,48519,External Audit Fees,Finance Department,Financial Management,"40,000.50"
2803392,KPR MIDLINK LTD,10/06/2013,45401,Computer Maintenance,Environmental Services,Markets  Rent Account,"2,337.44"
2804478,L H TECHNICAL SOLUTIONS,13/06/2013,44051,Clients Aids & Adaptations,Adult Services,ICES,"1,775.00"
2804326,L H TECHNICAL SOLUTIONS,10/06/2013,44051,Clients Aids & Adaptations,Adult Services,ICES,"1,000.00"
2817452,L ROWLAND AND CO (RETAIL) LTD,27/06/2013,52200,Contracted Services,Public Health,Smoking,"1,093.30"
2801858,L ROWLAND AND CO (RETAIL) LTD,06/06/2013,52200,Contracted Services,Public Health,Smoking,714.57
2816656,L ROWLAND AND CO (RETAIL) LTD,27/06/2013,52200,Contracted Services,Adult Services,Drugs Pooled Treatment Budget,559.90
2801468,LABURNUM HOUSE LTD#PAULINE JONES,06/06/2013,54301,Residential Provision,Adult Services,MH Residential External Provision,"1,537.92"
2801338,LADYMEAD NURSING HOME#FACTOR ICON HEALTHCARE (UK) LIMITED,06/06/2013,54301,Residential Provision,Adult Services,OA  External Provision Residential,"10,359.74"
2801337,LADYMEAD NURSING HOME#FACTOR ICON HEALTHCARE (UK) LIMITED,06/06/2013,54301,Residential Provision,Adult Services,OA  External Provision Residential,628.99
2801675,LAMBERT WALKER CONSERVATION AND RESTORATION LTD,06/06/2013,Z1051,Work in Progress Additions,Environmental Services,Environmental Services Balance sheet,"56,213.52"
2817194,LANG ESTATES LIMITED,27/06/2013,19000,Recruitment Advertising,Housing GRF,Accommodation Projects,"1,014.00"
2801491,LE CHALET CARE HOME,06/06/2013,54301,Residential Provision,Adult Services,OA  External Provision Residential,"1,660.00"
2805513,LEND LEASE CONSULTING (EMEA) LTD,13/06/2013,Z1051,Work in Progress Additions,Property Services,Corporate Property Capital Project Transfers to Other Projects,"6,735.56"
2799368,LESS TAXIS / REDACTED - PERSONAL DATA,03/06/2013,34402,Clients  Taxi Fares,Environmental Services,SNT Childrens Servs,"1,014.79"
2801456,LEVER EDGE CARE HOME,06/06/2013,54301,Residential Provision,Adult Services,OA  External Provision Residential,"3,612.47"
2801457,LEVER EDGE CARE HOME,06/06/2013,54301,Residential Provision,Adult Services,MH Residential External Provision,"1,589.08"
2801457,LEVER EDGE CARE HOME,06/06/2013,54301,Residential Provision,Adult Services,OA  External Provision Residential,"91,633.12"
2801457,LEVER EDGE CARE HOME,06/06/2013,54301,Residential Provision,Adult Services,PD Purchaser Residential Care,"1,589.08"
2813889,LEXISNEXIS UK,20/06/2013,47200,General Subscriptions,Environmental Services,Regulatory Services,600.00
2816375,LEXISNEXIS UK,24/06/2013,19406,Professional Fees,Legal Trading,Legal Services Trading Account,"24,804.00"
2804613,LEXISNEXIS UK,20/06/2013,40750,Text Books,Legal Trading,Legal Services Trading Account,503.06
2816535,LIAM TRIPPIER SCHOOL IMPROVEMENT LTD,24/06/2013,48509,Other Fees,Children's Services,CE Funding  Intervention  Primary,"4,046.95"
2816535,LIAM TRIPPIER SCHOOL IMPROVEMENT LTD,24/06/2013,48509,Other Fees,Children's Services,Primary Commissioning,990.00
2814634,LIFELINE PROJECT LTD,24/06/2013,52200,Contracted Services,Adult Services,Drugs Pooled Treatment Budget,"28,956.75"
2814639,LIFELINE PROJECT LTD,24/06/2013,52200,Contracted Services,Adult Services,Drugs Pooled Treatment Budget,"66,460.42"
2814637,LIFELINE PROJECT LTD,24/06/2013,52200,Contracted Services,Adult Services,Drugs Pooled Treatment Budget,"70,631.75"
2814662,LIFELINE PROJECT LTD,24/06/2013,52200,Contracted Services,Adult Services,Drugs Pooled Treatment Budget,"20,833.17"
2799371,LINK CARS,03/06/2013,34402,Clients  Taxi Fares,Environmental Services,SNT Childrens Servs,880.00
2801451,LITTLE SISTERS OF THE POOR,06/06/2013,54301,Residential Provision,Adult Services,OA  External Provision Residential,"3,323.36"
2814636,LK CONSULT LIMITED,24/06/2013,48510,Consultancy Fees,Environmental Services,Regulatory Services,577.50
2814632,LK CONSULT LIMITED,24/06/2013,48510,Consultancy Fees,Environmental Services,Regulatory Services,550.00
2808053,LOCAL AUTHORITY CATERERS ASSOCIATION (LACA)#DEWBERRY REDPOINT LTD,17/06/2013,46003,Staff Conference Expenses,Environmental Services,Catering,"1,185.00"
2812351,LOCAL SOLUTIONS,20/06/2013,52200,Contracted Services,Adult Services,OA  Home Care Services external provision,"18,295.76"
2817077,LOCKSAFE WINDOW CO,27/06/2013,Z1051,Work in Progress Additions,Housing GRF,Capital  General Fund,"1,052.00"
2803542,LOCKSAFE WINDOW CO,10/06/2013,Z1051,Work in Progress Additions,Housing GRF,Capital  General Fund,"2,500.00"
2803544,LOCKSAFE WINDOW CO,10/06/2013,Z1051,Work in Progress Additions,Housing GRF,Capital  General Fund,818.33
2803537,LOCKSAFE WINDOW CO,10/06/2013,Z1051,Work in Progress Additions,Housing GRF,Capital  General Fund,"1,320.00"
2803539,LOCKSAFE WINDOW CO,10/06/2013,Z1051,Work in Progress Additions,Housing GRF,Capital  General Fund,"2,500.00"
2803547,LOCKSAFE WINDOW CO,10/06/2013,Z1051,Work in Progress Additions,Housing GRF,Capital  General Fund,"2,500.00"
2803549,LOCKSAFE WINDOW CO,10/06/2013,Z1051,Work in Progress Additions,Housing GRF,Capital  General Fund,"2,500.00"
2817056,LOCKSAFE WINDOW CO,27/06/2013,Z1051,Work in Progress Additions,Housing GRF,Capital  General Fund,917.93
2817078,LOCKSAFE WINDOW CO,27/06/2013,Z1051,Work in Progress Additions,Housing GRF,Capital  General Fund,"2,405.84"
2812606,LPW (EUROPE) LTD,20/06/2013,31305,Vehicle Servicing,Environmental Services,Transport Support Service,913.50
2801792,LUCY ZODION LIMITED,06/06/2013,Z1051,Work in Progress Additions,Highways,Stores,"19,600.00"
2801796,LUCY ZODION LIMITED,06/06/2013,Z1051,Work in Progress Additions,Highways,Stores,"20,600.00"
2801780,LUCY ZODION LIMITED,17/06/2013,Z1051,Work in Progress Additions,Highways,Stores,"20,600.00"
2801791,LUCY ZODION LIMITED,06/06/2013,Z1051,Work in Progress Additions,Highways,Stores,"19,600.00"
2801340,LYNGATE RESIDENTIAL HOME,06/06/2013,54301,Residential Provision,Adult Services,OA  External Provision Residential,"35,830.68"
2801339,LYNGATE RESIDENTIAL HOME,06/06/2013,54301,Residential Provision,Adult Services,OA  External Provision Residential,"1,552.50"
2803471,M&G TRANSPORT & TECHNICAL SERVICES LTD,24/06/2013,48509,Other Fees,Finance Department,Libraries Info. Services,"1,992.00"
2804594,MAHOOD MARQUEES,13/06/2013,48205,Promoting Bolton,Development & Regen,Project Revenue Account,960.00
2800219,MALCOLM NICHOLSON & SON,06/06/2013,36200,Uninsured Losses  Vehicles,Environmental Services,Transport Support Service,"1,279.30"
2812315,MALCOLM NICHOLSON & SON,20/06/2013,36200,Uninsured Losses  Vehicles,Environmental Services,Transport Support Service,745.28
2800220,MALCOLM NICHOLSON & SON,06/06/2013,36200,Uninsured Losses  Vehicles,Environmental Services,Transport Support Service,"3,246.19"
2809952,MANGAR INTERNATIONAL,17/06/2013,44051,Clients Aids & Adaptations,Adult Services,ICES,"1,650.00"
2816684,MANOR PHARMACY#VARIOUS CHEMISTS,27/06/2013,52200,Contracted Services,Adult Services,Drugs Pooled Treatment Budget,735.00
2801763,REDACTED - PERSONAL DATA,06/06/2013,19100,Training Exps Tuition Fees,Adult Services,Staff Development  Adults,595.00
2807615,REDACTED - PERSONAL DATA,17/06/2013,48501,Artistes Fees,Children's Services,Gtr Manchester Music Education Hub,500.00
2816666,MARKET PHARMACY#CLAMARY LTD,27/06/2013,52200,Contracted Services,Adult Services,Drugs Pooled Treatment Budget,816.60
2801393,MARLEY COURT  NURSING & RESIDENTAIL HOME,06/06/2013,54301,Residential Provision,Adult Services,OA  External Provision Residential,"1,556.00"
2801485,MARSH HOUSE,06/06/2013,54301,Residential Provision,Adult Services,OA  External Provision Residential,"1,682.00"
2811570,MARWOOD GROUP LIMITED,20/06/2013,33202,Plant Hire,Environmental Services,Highways Maintenance Billable Costs,"1,750.00"
2801368,MARY & JOSEPH HOUSE,06/06/2013,54301,Residential Provision,Adult Services,MH Residential External Provision,"5,756.40"
2807561,REDACTED - PERSONAL DATA,13/06/2013,48509,Other Fees,Finance Department,Museum Premises,"1,050.00"
2815201,MAY GURNEY FLEET AND PASSENGER SERVICES LTD,24/06/2013,33203,Contract Hire,Environmental Services,Transport Support Service,"283,168.08"
2799373,REDACTED - PERSONAL DATA,03/06/2013,34402,Clients  Taxi Fares,Environmental Services,SNT Childrens Servs,"1,402.50"
2812376,MCGRATH MEDIA,20/06/2013,48200,Advertising General,Environmental Services,Albert Halls Entertainment,600.00
2801421,MEADOW BANK NURSING HOME,06/06/2013,54301,Residential Provision,Adult Services,OA  External Provision Residential,"1,638.00"
2801421,MEADOW BANK NURSING HOME,06/06/2013,54302,Nursing Provision,Adult Services,OA  External Provision Residential,"7,209.68"
2801406,MEADOWBANK HOUSE,06/06/2013,54301,Residential Provision,Adult Services,OA  External Provision Residential,"18,047.41"
2801406,MEADOWBANK HOUSE,06/06/2013,54302,Nursing Provision,Adult Services,OA  External Provision Residential,"4,256.46"
2799376,REDACTED - PERSONAL DATA#SMA CARS,03/06/2013,34402,Clients  Taxi Fares,Environmental Services,SNT Childrens Servs,"2,986.00"
2803405,METRONET (UK) LIMITED,10/06/2013,25106,C.C.T.V.,Environmental Services,Security Services,"1,000.00"
2814151,MGB PLASTICS LTD,24/06/2013,Z1051,Work in Progress Additions,Environmental Services,Environmental Services Balance sheet,"38,902.50"
2817553,MGB PLASTICS LTD,27/06/2013,Z1051,Work in Progress Additions,Environmental Services,Environmental Services Balance sheet,"9,475.00"
2814152,MGB PLASTICS LTD,24/06/2013,Z1051,Work in Progress Additions,Environmental Services,Environmental Services Balance sheet,"9,975.00"
2809959,MGB PLASTICS LTD,17/06/2013,Z1051,Work in Progress Additions,Environmental Services,Environmental Services Balance sheet,"19,950.00"
2817944,MGB PLASTICS LTD,27/06/2013,Z1051,Work in Progress Additions,Environmental Services,Environmental Services Balance sheet,"9,475.00"
2809956,MGB PLASTICS LTD,17/06/2013,Z1051,Work in Progress Additions,Environmental Services,Environmental Services Balance sheet,"39,900.00"
2802274,MICHAEL WOOD#EXCHANGE CHAMBERS,10/06/2013,48502,Legal Fees,Property Services,Projects,"2,677.50"
2799381,MICKEY SPILLANES TRAVEL#REDACTED - PERSONAL DATA,03/06/2013,34402,Clients  Taxi Fares,Environmental Services,SNT Childrens Servs,"1,734.00"
2799907,MICROMAGNETICS LTD,06/06/2013,48202,General Publicity,Environmental Services,Waste,"6,954.00"
2801416,MILLVIEW NURSING HOME,06/06/2013,54301,Residential Provision,Adult Services,LD Purchaser Residential Care,"3,135.92"
2801416,MILLVIEW NURSING HOME,06/06/2013,54301,Residential Provision,Adult Services,MH Residential External Provision,"1,567.96"
2801416,MILLVIEW NURSING HOME,06/06/2013,54301,Residential Provision,Adult Services,OA  External Provision Residential,"92,107.77"
2801416,MILLVIEW NURSING HOME,06/06/2013,54302,Nursing Provision,Adult Services,OA  External Provision Residential,"34,498.38"
2801416,MILLVIEW NURSING HOME,06/06/2013,54302,Nursing Provision,Adult Services,PD Purchaser Residential Care,"1,567.96"
2801415,MILLVIEW NURSING HOME,06/06/2013,54302,Nursing Provision,Adult Services,OA  External Provision Residential,"18,668.60"
2800291,MINT NORTHWEST LTD,06/06/2013,Z1051,Work in Progress Additions,Housing GRF,Capital  General Fund,"4,830.50"
2816579,REDACTED - PERSONAL DATA,27/06/2013,48502,Legal Fees,Children's Services,Management Team,"2,280.00"
2804627,REDACTED - PERSONAL DATA,13/06/2013,48502,Legal Fees,Children's Services,Management Team,"1,620.00"
2817200,REDACTED - PERSONAL DATA,27/06/2013,48502,Legal Fees,Children's Services,Management Team,"6,150.00"
2816574,REDACTED - PERSONAL DATA,27/06/2013,48502,Legal Fees,Children's Services,Management Team,"1,860.00"
2799415,REDACTED - PERSONAL DATA T/A PAL MINIBUSES,03/06/2013,34402,Clients  Taxi Fares,Environmental Services,SNT Childrens Servs,"2,261.00"
2799348,REDACTED - PERSONAL DATA#DAUBHILL MINI BUS,03/06/2013,34402,Clients  Taxi Fares,Environmental Services,SNT Childrens Servs,"1,275.00"
2804506,MOSS HALL FARM CATTERY#REDACTED - PERSONAL DATA,13/06/2013,52300,Client Support Costs,Adult Services,OA  External Provision Residential,864.00
2811521,MOSSBANK BUILDERS#REDACTED - PERSONAL DATA,20/06/2013,20100,Day To Day Maintenance,Housing GRF,Housing Standards,"1,450.00"
2801482,MOSTON GRANGE NURSING HOME,06/06/2013,54302,Nursing Provision,Adult Services,MH Residential External Provision,"3,700.00"
2805843,REDACTED - PERSONAL DATA T/A BARRIES GARDENING SERVICES,13/06/2013,45914,Commissioning Worklessness,Development & Regen,The Work Programme,750.00
2812355,REDACTED - PERSONAL DATA,20/06/2013,48502,Legal Fees,Property Services,Estates & Property Management,"1,500.00"
2799386,REDACTED - PERSONAL DATA,03/06/2013,34402,Clients  Taxi Fares,Environmental Services,SNT Childrens Servs,"3,020.90"
2816618,REDACTED - PERSONAL DATA,27/06/2013,48502,Legal Fees,Central Services,Legal Services Client,945.00
2799421,REDACTED - PERSONAL DATA,03/06/2013,34402,Clients  Taxi Fares,Environmental Services,SNT Childrens Servs,918.00
2816582,REDACTED - PERSONAL DATA,27/06/2013,48502,Legal Fees,Children's Services,Management Team,600.00
2812700,REDACTED - PERSONAL DATA,20/06/2013,48509,Other Fees,Children's Services,Management Team,540.00
2817193,REDACTED - PERSONAL DATA,27/06/2013,48502,Legal Fees,Children's Services,Management Team,"1,000.00"
2807760,REDACTED - PERSONAL DATA,17/06/2013,48502,Legal Fees,Children's Services,Management Team,"1,080.00"
2800283,MRG HEATING & PLUMBING LTD,06/06/2013,Z1051,Work in Progress Additions,Housing GRF,Capital  General Fund,"4,133.00"
2816638,REDACTED - PERSONAL DATA,27/06/2013,48502,Legal Fees,Children's Services,Management Team,"2,400.00"
2803624,MTD PRODUCTIONS LTD,13/06/2013,48501,Artistes Fees,Environmental Services,Albert Halls Entertainment,771.79
2813155,MTI TECHNOLOGY LTD,24/06/2013,45401,Computer Maintenance,Finance Department,Corporate I.C.T.,"1,800.00"
2813156,MTI TECHNOLOGY LTD,24/06/2013,45401,Computer Maintenance,Finance Department,Corporate I.C.T.,"25,331.34"
2813152,MTI TECHNOLOGY LTD,24/06/2013,45401,Computer Maintenance,Finance Department,Corporate I.C.T.,"34,117.80"
2817051,MULTI MEDIA MACHINE,27/06/2013,48201,Property Advertising,Housing GRF,Homes for Bolton CBL,"1,300.00"
2817700,MULTIHOG UK LTD,27/06/2013,33202,Plant Hire,Environmental Services,Activities and Operations,"1,200.00"
2801533,MULTIHOG UK LTD,06/06/2013,Z6008,Expense AP Accrual,Bolton MBC Balance Sheet,Bolton MBC Balance Sheet,"1,500.00"
2799385,REDACTED - PERSONAL DATA,03/06/2013,34402,Clients  Taxi Fares,Environmental Services,SNT Childrens Servs,540.59
2799401,NADY MINIBUS#REDACTED - PERSONAL DATA,03/06/2013,34402,Clients  Taxi Fares,Environmental Services,SNT Childrens Servs,"2,128.00"
2817093,NATIONAL CHILDRENS BUREAU,27/06/2013,40701,Periodicals,Children's Services,Positive Activities,500.00
2800405,NATURE PLANET APS,06/06/2013,40613,Goods for Resale,Finance Department,LMA Retail,"1,180.40"
2799349,REDACTED - PERSONAL DATA#2#ELITE MINIBUS,03/06/2013,34402,Clients  Taxi Fares,Environmental Services,SNT Childrens Servs,"2,873.00"
2801494,NAZARETH HOUSE MANCHESTER#EPH,06/06/2013,54301,Residential Provision,Adult Services,OA  External Provision Residential,"1,615.24"
2812824,NEW START CHILDCARE,20/06/2013,52000,Vol Assoc Grants  General,Children's Services,Res Serv Agency Placements,"20,850.00"
2801703,NEW START CHILDCARE,06/06/2013,52000,Vol Assoc Grants  General,Children's Services,Res Serv Agency Placements,"19,400.00"
2799593,NEWSQUEST (NORTH WEST) LTD,06/06/2013,48200,Advertising General,Environmental Services,Albert Halls Entertainment,900.00
2813839,NEWSQUEST (NORTH WEST) LTD,20/06/2013,48202,General Publicity,Development & Regen,Development Management,532.00
2813837,NEWSQUEST (NORTH WEST) LTD,20/06/2013,48200,Advertising General,Environmental Services,Highway Management,890.30
2816865,NEWSQUEST (NORTH WEST) LTD,27/06/2013,48203,Marketing,Central Services,Marketing  General,"1,198.02"
2815014,NEWSQUEST (NORTH WEST) LTD,24/06/2013,48203,Marketing,Central Services,Marketing  General,580.32
2807732,NICHE COMMUNICATIONS LTD,17/06/2013,43001,Printing General,Public Health,Primary Care,"1,104.00"
2801648,NISBETS,06/06/2013,40100,Operational Equipment Purchase,Environmental Services,Moss Bank Park Kiosk,936.41
2800084,NO THIRD ENTERTAINMENTS LTD,06/06/2013,48501,Artistes Fees,Environmental Services,Albert Halls Entertainment,"3,436.06"
2805371,NOBLET MUNICIPAL SVCS LTD,27/06/2013,33201,Transport Hire,Environmental Services,Transport Support Service,"2,850.00"
2817263,NORTHERN EDUCATION,27/06/2013,48509,Other Fees,Children's Services,CE Funding  Intervention  Primary,610.00
2816629,NORTHERN EDUCATION,27/06/2013,19101,Training  Exam Fees,Children's Services,Income – Services for Secondary Schools,"1,220.00"
2816629,NORTHERN EDUCATION,27/06/2013,48509,Other Fees,Children's Services,Income – Services for Secondary Schools,"1,372.50"
2801699,NORTHERNCARE#WHISTLEDAWN LTD,06/06/2013,52000,Vol Assoc Grants  General,Children's Services,Res Serv Agency Placements,"13,259.14"
2812869,NORTHGATE VEHICLE HIRE LTD,20/06/2013,33201,Transport Hire,Environmental Services,Transport Support Service,"5,141.19"
2817164,NORTHGATE VEHICLE HIRE LTD,27/06/2013,33201,Transport Hire,Environmental Services,Transport Support Service,"16,124.11"
2799405,NORTHWEST MINIBUSES,03/06/2013,34402,Clients  Taxi Fares,Environmental Services,SNT Childrens Servs,"1,802.00"
2816534,N-SIGN LTD,27/06/2013,40610,Direct Materials,Environmental Services,Highway Services,"2,000.00"
2804323,NSL LIMITED#NSL SERVICES GROUP,10/06/2013,44202,Contract UnitNonLEA,Environmental Services,Parking Services  On Street,"38,131.84"
2804324,NSL LIMITED#NSL SERVICES GROUP,10/06/2013,44202,Contract UnitNonLEA,Environmental Services,Parking Services  On Street,"36,034.70"
2809992,NSL LIMITED#NSL SERVICES GROUP,17/06/2013,44202,Contract UnitNonLEA,Environmental Services,Parking Services  On Street,"5,753.26"
2812426,NUGENT CARE#BOLTON PROJECT,20/06/2013,52200,Contracted Services,Adult Services,LD Purchaser Day Services,"33,929.50"
2807709,OFSTED,17/06/2013,48509,Other Fees,Children's Services,Res Serv Mayor Street,"1,745.22"
2807708,OFSTED,17/06/2013,48509,Other Fees,Children's Services,Res Serv Malton Avenue,"1,600.27"
2805542,OJT COMMUNICATIONS LTD,13/06/2013,Z1051,Work in Progress Additions,Central Corporate,Corporate Property Balance Sheet,"1,700.00"
2801434,OLD GATES NURSING HOME,06/06/2013,54301,Residential Provision,Adult Services,OA  External Provision Residential,"1,631.20"
2799408,OLYMPIC TRAVEL#REDACTED - PERSONAL DATA,03/06/2013,34402,Clients  Taxi Fares,Environmental Services,SNT Childrens Servs,"1,751.00"
2799413,ON TIME CARS#REDACTED - PERSONAL DATA,03/06/2013,34402,Clients  Taxi Fares,Environmental Services,SNT Childrens Servs,986.00
2812984,ONSIDE EDUCATION CONSULTANTS,27/06/2013,19100,Training Exps Tuition Fees,Children's Services,CWPD Governors,540.00
2802882,ORACLE CORPORATION UK LIMITED,13/06/2013,45431,Computer Software Licences,Finance Department,CSS Costs/Savings,"203,956.89"
2815009,ORACLE CORPORATION UK LIMITED,24/06/2013,45431,Computer Software Licences,Adult Services,AD  IT,"25,677.61"
2809095,ORCHARD RECYCLING SERVICE#FURNITURE,17/06/2013,50002,Other Agency/Contracted Services,Environmental Services,Waste,598.00
2813896,P J CARNEY & CO LTD,20/06/2013,52200,Contracted Services,Environmental Services,Activities and Operations,"4,100.00"
2816413,PARALLEL PARENTS,24/06/2013,52000,Vol Assoc Grants  General,Children's Services,Res Serv Agency Placements,"2,987.16"
2816411,PARALLEL PARENTS,24/06/2013,52000,Vol Assoc Grants  General,Children's Services,Res Serv Agency Placements,"2,902.84"
2799899,PARITOR LTD,06/06/2013,45401,Computer Maintenance,Children's Services,Music ServMusic Service general,"8,724.00"
2807492,PARK HOUSE HEALTHCARE LTD,13/06/2013,44051,Clients Aids & Adaptations,Adult Services,ICES,"4,508.20"
2814322,PARK HOUSE HEALTHCARE LTD,24/06/2013,44051,Clients Aids & Adaptations,Adult Services,ICES,"1,690.00"
2816451,PARK HOUSE HEALTHCARE LTD,24/06/2013,44051,Clients Aids & Adaptations,Adult Services,ICES,"4,865.00"
2805648,PARK HOUSE HEALTHCARE LTD,13/06/2013,44051,Clients Aids & Adaptations,Adult Services,ICES,"2,200.00"
2801381,PARKLANDS HOUSE NURSING HOME,06/06/2013,54302,Nursing Provision,Adult Services,MH Residential External Provision,"11,900.00"
2801345,PARKVIEW NURSING & RESIDENTIAL HOME,06/06/2013,54301,Residential Provision,Adult Services,PD Purchaser Residential Care,"1,790.17"
2801346,PARKVIEW NURSING & RESIDENTIAL HOME,06/06/2013,54301,Residential Provision,Adult Services,OA  External Provision Residential,"18,584.08"
2801346,PARKVIEW NURSING & RESIDENTIAL HOME,06/06/2013,54301,Residential Provision,Adult Services,PD Purchaser Residential Care,"3,111.12"
2799417,REDACTED - PERSONAL DATA,03/06/2013,34402,Clients  Taxi Fares,Environmental Services,SNT Childrens Servs,"1,048.00"
2804526,PEAK FABRICATIONS (BOLTON) LTD,13/06/2013,52200,Contracted Services,Environmental Services,Activities and Operations,"1,351.00"
2800389,PEAK FABRICATIONS (BOLTON) LTD,06/06/2013,52200,Contracted Services,Environmental Services,Activities and Operations,"4,400.00"
2804328,PEAK FABRICATIONS (BOLTON) LTD,10/06/2013,52200,Contracted Services,Environmental Services,Activities and Operations,"3,828.00"
2804499,PEAK FABRICATIONS (BOLTON) LTD,13/06/2013,52200,Contracted Services,Environmental Services,Activities and Operations,"1,200.00"
2817149,PETER DOUGLASS PLATFORMS,27/06/2013,33201,Transport Hire,Environmental Services,Transport Support Service,"1,134.00"
2817151,PETER DOUGLASS PLATFORMS,27/06/2013,33201,Transport Hire,Environmental Services,Transport Support Service,"1,134.00"
2800308,PETER EDGE ELECTRICAL LTD,06/06/2013,Z1051,Work in Progress Additions,Housing GRF,Capital  General Fund,"4,291.00"
2805856,PETERS LTD,13/06/2013,40753,Book Fund Expenditure,Finance Department,Schools Library Services,"3,259.98"
2814142,PHOENIX FUTURES#PHOENIX HOUSE,24/06/2013,54301,Residential Provision,Adult Services,Alcohol Rehab Budget,"2,284.04"
2800533,PHOENIX FUTURES#PHOENIX HOUSE,06/06/2013,54301,Residential Provision,Adult Services,Alcohol Rehab Budget,"2,063.60"
2801872,PHOENIX FUTURES#PHOENIX HOUSE,06/06/2013,54301,Residential Provision,Adult Services,Alcohol Rehab Budget,"2,211.68"
2800167,PITCHWORKS LTD,06/06/2013,40601,General Materials,Environmental Services,Activities and Operations,"2,110.52"
2801806,PITNEY BOWES LTD,06/06/2013,40100,Operational Equipment Purchase,Environmental Services,Couriers,"24,522.59"
2801826,PLACES FOR PEOPLE HOMES,10/06/2013,52210,Contracted Services  Rental Voids,Adult Services,LD Provider  Supported Housing,"4,464.57"
2813822,PLACES FOR PEOPLE HOMES,20/06/2013,52210,Contracted Services  Rental Voids,Adult Services,LD Provider  ShortTerm Breaks,"4,464.57"
2817058,POLLOCK LIFTS,27/06/2013,Z1051,Work in Progress Additions,Housing GRF,Capital  General Fund,"10,495.00"
2803621,POST OFFICE LTD,10/06/2013,31300,Vehicle Tax,Environmental Services,Transport Support Service,"3,845.00"
2807310,PREMIER CARE LTD#BOLTON CARE SERVICES,13/06/2013,52200,Contracted Services,Adult Services,OA  Home Care Services external provision,"4,913.38"
2807604,PREMIER CARE LTD#BOLTON CARE SERVICES,13/06/2013,52200,Contracted Services,Adult Services,OA  Home Care Services external provision,"9,325.25"
2799419,PREMIER MINIBUSES (NW) LTD,03/06/2013,34402,Clients  Taxi Fares,Environmental Services,SNT Childrens Servs,"9,574.25"
2800388,PREMIER PAPER GROUP LIMITED,06/06/2013,43032,Office Stationery,Central Services,Printing Services,500.00
2805869,PRESTIGE BLINDS LTD,13/06/2013,40110,Op Equip Furniture Purchase,Adult Services,OA  Firwood  Residential,914.00
2801454,PRINCESS ALEXANDRA HOME,06/06/2013,54301,Residential Provision,Adult Services,OA  External Provision Residential,"1,508.72"
2816699,PRISM MEDICAL UK,27/06/2013,44051,Clients Aids & Adaptations,Adult Services,ICES,"1,529.34"
2816581,PRISM MEDICAL UK,27/06/2013,44051,Clients Aids & Adaptations,Adult Services,ICES,"2,832.00"
2811356,PRISM MEDICAL UK,17/06/2013,44051,Clients Aids & Adaptations,Adult Services,ICES,"1,183.38"
2800373,PRISM MEDICAL UK,17/06/2013,44051,Clients Aids & Adaptations,Adult Services,ICES,"1,280.52"
2800409,PRISM MEDICAL UK,06/06/2013,44051,Clients Aids & Adaptations,Adult Services,ICES,533.94
2799628,PROBRAND LIMITED,06/06/2013,45400,Computer Purchase,Children's Services,Admin IT (Schools),"3,742.96"
2814522,PROBRAND LIMITED,24/06/2013,45400,Computer Purchase,Children's Services,Admin IT (Schools),"1,600.00"
2799629,PROBRAND LIMITED,06/06/2013,45401,Computer Maintenance,Children's Services,Admin IT (Schools),639.00
2802120,PROBRAND LIMITED,10/06/2013,40140,Office Equipment Purchase,Children's Services,Admin IT (Schools),"6,065.77"
2803854,PROBRAND LIMITED,13/06/2013,45400,Computer Purchase,Children's Services,Admin IT (Schools),"1,399.00"
2799631,PROBRAND LIMITED,06/06/2013,45400,Computer Purchase,Children's Services,Admin IT (Schools),652.37
2802902,PROTEUS EQUIPMENT LTD,10/06/2013,20501,Engineering Work,Environmental Services,Highways Works Non Billable,727.00
2812643,PSI (RESOURCES) LTD,20/06/2013,Z6008,Expense AP Accrual,Bolton MBC Balance Sheet,Bolton MBC Balance Sheet,741.00
2812647,PSI (RESOURCES) LTD,20/06/2013,Z6008,Expense AP Accrual,Bolton MBC Balance Sheet,Bolton MBC Balance Sheet,841.00
2801513,PSU TECHNOLOGY GROUP LTD,17/06/2013,45401,Computer Maintenance,Finance Department,Libraries Info. Systems,540.00
2808020,PUBLIC HEALTH ENGLAND,27/06/2013,48510,Consultancy Fees,Public Health,Public Health Core,"2,434.35"
2815262,PURE INNOVATIONS LIMITED,24/06/2013,48509,Other Fees,Children's Services,Transport Service General,"24,700.00"
2805906,QUADRANT SECURITY GROUP LTD,13/06/2013,25106,C.C.T.V.,Environmental Services,Security Services,"3,524.00"
2800513,QUADRANT SECURITY GROUP LTD,17/06/2013,25106,C.C.T.V.,Environmental Services,Security Services,"6,449.02"
2801437,QUEENS PARK VIEW#INTELLIGENT CARE,06/06/2013,54301,Residential Provision,Adult Services,MH Residential External Provision,"8,311.56"
2811482,R S TYRER LTD,20/06/2013,34405,Clients  Swimming Fares,Environmental Services,SNT Childrens Servs,"5,642.00"
2813574,REDACTED - PERSONAL DATA,20/06/2013,48509,Other Fees,Children's Services,Management Team,"1,700.00"
2801347,RANDOMLIGHT LTD#HEIGHTSIDE HOUSE,06/06/2013,54302,Nursing Provision,Adult Services,LD Purchaser Residential Care,"2,228.04"
2801347,RANDOMLIGHT LTD#HEIGHTSIDE HOUSE,06/06/2013,54301,Residential Provision,Adult Services,MH Residential External Provision,"2,270.12"
2801347,RANDOMLIGHT LTD#HEIGHTSIDE HOUSE,06/06/2013,54302,Nursing Provision,Adult Services,MH Residential External Provision,"8,848.52"
2805896,RAPID PRIVATE HIRE LTD,13/06/2013,34402,Clients  Taxi Fares,Environmental Services,SNT Childrens Servs,"1,299.60"
2801427,REDBANK CARE HOME#PAYEE VOYAGE NORTH,06/06/2013,54301,Residential Provision,Adult Services,LD Purchaser Residential Care,"4,692.20"
2817178,REGIONAL FLOORING CO LTD,27/06/2013,20100,Day To Day Maintenance,Property Services,Laburnum Lodge EPH,"1,159.44"
2817179,REGIONAL FLOORING CO LTD,27/06/2013,20100,Day To Day Maintenance,Property Services,Laburnum Lodge EPH,"2,039.27"
2817177,REGIONAL FLOORING CO LTD,27/06/2013,20100,Day To Day Maintenance,Property Services,Laburnum Lodge EPH,784.71
2800478,RELPHS FUNERAL SERVICE,06/06/2013,52300,Client Support Costs,Adult Services,"AD Finance, Income & Assess. Team","1,400.00"
2800475,RELPHS FUNERAL SERVICE,06/06/2013,52300,Client Support Costs,Adult Services,"AD Finance, Income & Assess. Team","1,400.00"
2804585,RELPHS FUNERAL SERVICE,13/06/2013,52300,Client Support Costs,Adult Services,"AD Finance, Income & Assess. Team","1,400.00"
2800480,RELPHS FUNERAL SERVICE,06/06/2013,52300,Client Support Costs,Adult Services,"AD Finance, Income & Assess. Team","1,400.00"
2801349,RIVINGTON VIEW NURSING HOME,06/06/2013,54301,Residential Provision,Adult Services,OA  External Provision Residential,"9,134.24"
2801349,RIVINGTON VIEW NURSING HOME,06/06/2013,54302,Nursing Provision,Adult Services,OA  External Provision Residential,"3,190.00"
2817188,RMAC UK LTD,27/06/2013,20100,Day To Day Maintenance,Property Services,Wellsprings  BMBC,927.81
2817185,RMAC UK LTD,27/06/2013,20100,Day To Day Maintenance,Property Services,Wellsprings  BMBC,909.06
2813179,RNIB#ROYAL NATIONAL INSTITUTE OF THE BLIND,24/06/2013,44051,Clients Aids & Adaptations,Adult Services,Independent,558.32
2805961,ROBINSON PLANT HIRE,13/06/2013,33202,Plant Hire,Environmental Services,Activities and Operations,681.34
2800030,ROBINSON PLANT HIRE,10/06/2013,33202,Plant Hire,Environmental Services,Activities and Operations,529.75
2811561,ROBINSON PLANT HIRE,20/06/2013,33202,Plant Hire,Environmental Services,Activities and Operations,661.78
2816727,ROBINSON PLANT HIRE,27/06/2013,52200,Contracted Services,Environmental Services,Activities and Operations,529.75
2801351,ROSE COURT NURSING HOME,06/06/2013,54301,Residential Provision,Adult Services,OA  External Provision Residential,"10,672.12"
2801351,ROSE COURT NURSING HOME,06/06/2013,54302,Nursing Provision,Adult Services,OA  External Provision Residential,"4,845.72"
2801350,ROSE COURT NURSING HOME,06/06/2013,54301,Residential Provision,Adult Services,MH Residential External Provision,771.78
2801382,ROSEBRIDGE COURT,06/06/2013,54302,Nursing Provision,Adult Services,OA  External Provision Residential,"2,988.16"
2801472,ROUNDHAM COURT#EPH,06/06/2013,54301,Residential Provision,Adult Services,OA  External Provision Residential,"1,679.64"
2804402,ROYAL MAIL GROUP LTD,13/06/2013,45000,Postages Direct Costs,Finance Department,Council Tax,"2,041.11"
2804402,ROYAL MAIL GROUP LTD,13/06/2013,45000,Postages Direct Costs,Finance Department,Housing Benefits,947.75
2801311,ROYAL MAIL GROUP LTD,06/06/2013,45000,Postages Direct Costs,Finance Department,Council Tax,"1,403.91"
2801311,ROYAL MAIL GROUP LTD,06/06/2013,45000,Postages Direct Costs,Finance Department,Housing Benefits,634.82
2814091,ROYAL MAIL GROUP LTD,24/06/2013,45000,Postages Direct Costs,Finance Department,Council Tax,"1,579.72"
2814091,ROYAL MAIL GROUP LTD,24/06/2013,45000,Postages Direct Costs,Finance Department,Housing Benefits,830.89
2812398,ROYAL MAIL GROUP LTD,20/06/2013,45000,Postages Direct Costs,Finance Department,Council Tax,"1,947.89"
2812398,ROYAL MAIL GROUP LTD,20/06/2013,45000,Postages Direct Costs,Finance Department,Housing Benefits,933.25
2808717,ROYAL MAIL GROUP LTD,17/06/2013,45000,Postages Direct Costs,Finance Department,Finance Ap Centre of Excellence,547.80
2817493,ROYAL MENCAP SOCIETY#MENCAP,27/06/2013,52200,Contracted Services,Adult Services,OA  Home Care Services external provision,903.00
2810015,RTC SAFETY SURFACES LTD,17/06/2013,52200,Contracted Services,Environmental Services,Activities and Operations,671.00
2810010,RTC SAFETY SURFACES LTD,17/06/2013,52200,Contracted Services,Environmental Services,Activities and Operations,"7,401.00"
2799399,REDACTED - PERSONAL DATA,03/06/2013,34402,Clients  Taxi Fares,Environmental Services,SNT Childrens Servs,"1,411.00"
2811485,S & D PRIVATE HIRE,20/06/2013,34402,Clients  Taxi Fares,Environmental Services,SNT Childrens Servs,"1,080.00"
2807611,SAFEHANDS CARE LTD#SAFEHANDS GROUP,17/06/2013,52200,Contracted Services,Adult Services,OA  Home Care Services external provision,"8,611.26"
2816466,SAFETY KLEEN UK  LTD,24/06/2013,40601,General Materials,Environmental Services,Transport Support Service,569.32
2805985,SANCTUARY CARR-GOMM#THE SANCTUARY GROUP,13/06/2013,52200,Contracted Services,Adult Services,Supporting People  Capital Financing,"9,532.63"
2813893,SARABEC LIMITED,20/06/2013,44051,Clients Aids & Adaptations,Adult Services,Independent,"1,462.90"
2816956,SCOTTISH & SOUTHERN ENERGY PLC,27/06/2013,21100,Electricity  General,Environmental Services,Mngmnt & Admin Overhead,"3,777.06"
2816956,SCOTTISH & SOUTHERN ENERGY PLC,27/06/2013,21100,Electricity  General,Property Services,Adult's General,509.54
2804507,SELF UNLIMITED,13/06/2013,52200,Contracted Services,Adult Services,LD Purchaser Day Services,"2,224.00"
2811363,SERCO LEISURE OPERATING LTD#2,17/06/2013,52200,Contracted Services,Development & Regen,The Leisure Trust,"7,000.00"
2812710,SERCO LEISURE OPERATING LTD#2,20/06/2013,48629,Miscellaneous Expenses,Children's Services,Castle Hill Youth Club,"5,877.00"
2801932,SEVA LINE,06/06/2013,52200,Contracted Services,Adult Services,OA  Home Care Services external provision,"6,126.34"
2801625,SGCA#REDACTED - PERSONAL DATA,06/06/2013,48509,Other Fees,Children's Services,Business Support  Customer Relations,"1,018.80"
2816647,SHAKE RATTLE AND ROLL,27/06/2013,48517,Fees/Expenses Schools,Children's Services,Music ServMusic Service general,587.50
2816521,SHANLEYS LTD,24/06/2013,48203,Marketing,Central Services,Marketing  General,"3,195.00"
2805489,SHANLEYS LTD,13/06/2013,48203,Marketing,Central Services,Marketing  General,"2,261.00"
2805491,SHANLEYS LTD,13/06/2013,48203,Marketing,Central Services,Marketing  General,"1,396.00"
2801352,SHANNON COURT NURSING HOME,06/06/2013,54302,Nursing Provision,Adult Services,OA  External Provision Residential,810.00
2801353,SHANNON COURT NURSING HOME,06/06/2013,54302,Nursing Provision,Adult Services,MH Residential External Provision,"1,589.08"
2801353,SHANNON COURT NURSING HOME,06/06/2013,54301,Residential Provision,Adult Services,OA  External Provision Residential,"34,469.64"
2801353,SHANNON COURT NURSING HOME,06/06/2013,54302,Nursing Provision,Adult Services,OA  External Provision Residential,"20,379.04"
2801795,SHARED CARE#MAPLE LEAF CARE LIMITED,06/06/2013,52000,Vol Assoc Grants  General,Children's Services,Res Serv Agency Placements,"4,973.10"
2800368,SHARP ASPHALT CO LTD,06/06/2013,Z6008,Expense AP Accrual,Bolton MBC Balance Sheet,Bolton MBC Balance Sheet,"2,100.01"
2800407,SHARP ASPHALT CO LTD,06/06/2013,Z6008,Expense AP Accrual,Bolton MBC Balance Sheet,Bolton MBC Balance Sheet,"5,500.22"
2800318,SHARP ASPHALT CO LTD,06/06/2013,Z6008,Expense AP Accrual,Bolton MBC Balance Sheet,Bolton MBC Balance Sheet,"4,400.20"
2799908,SHARP ASPHALT CO LTD,06/06/2013,Z6008,Expense AP Accrual,Bolton MBC Balance Sheet,Bolton MBC Balance Sheet,"3,300.01"
2811506,SHARP ASPHALT CO LTD,20/06/2013,Z6008,Expense AP Accrual,Bolton MBC Balance Sheet,Bolton MBC Balance Sheet,"1,100.00"
2801431,SHASSAB,06/06/2013,54301,Residential Provision,Adult Services,MH Residential External Provision,"1,562.16"
2805376,SHOWSEC INTERNATIONAL LIMITED,13/06/2013,46203,Civic Hospitality,Central Services,Mayoralty,756.00
2799453,SIDHIL LIMITED,03/06/2013,44051,Clients Aids & Adaptations,Adult Services,ICES,"1,802.00"
2804564,SIGNHEALTH,13/06/2013,52200,Contracted Services,Adult Services,OA  Carers Grant,926.28
2804553,SIGNHEALTH,13/06/2013,52200,Contracted Services,Adult Services,OA  Carers Grant,"1,090.91"
2813160,SIGNHEALTH,20/06/2013,52200,Contracted Services,Adult Services,MH Residential External Provision,556.11
2813094,SIGNHEALTH,20/06/2013,52200,Contracted Services,Adult Services,MH Residential External Provision,"1,095.52"
2813093,SIGNHEALTH,20/06/2013,52200,Contracted Services,Adult Services,MH Residential External Provision,741.48
2816628,REDACTED - PERSONAL DATA,27/06/2013,48502,Legal Fees,Adult Services,"AD Finance, Income & Assess. Team",540.00
2805656,SITEIMPROVE LTD,13/06/2013,45432,Computer Software Installation,Finance Department,Web Team,"2,350.00"
2803561,SLC GROUP#PARAGON LIMITED,10/06/2013,52200,Contracted Services,Adult Services,MH Residential External Provision,"1,029.60"
2801941,SLC GROUP#PARAGON LIMITED,06/06/2013,52200,Contracted Services,Adult Services,MH Residential External Provision,"1,470.00"
2801938,SLC GROUP#PARAGON LIMITED,06/06/2013,52200,Contracted Services,Adult Services,MH Residential External Provision,"1,470.00"
2813095,SLC GROUP#PARAGON LIMITED,20/06/2013,52200,Contracted Services,Adult Services,MH Residential External Provision,"1,470.00"
2805553,SMITH OF DERBY LTD,13/06/2013,20100,Day To Day Maintenance,Property Services,Town Hall,"12,826.00"
2801695,SOCIAL CARE SERVICES GROUP,06/06/2013,52000,Vol Assoc Grants  General,Children's Services,Res Serv Agency Placements,"2,214.27"
2814131,SOCIAL CENTRE FOR THE BLIND#FACTOR BOLTON SOCIETY FOR BLIND PEOPLE,24/06/2013,52200,Contracted Services,Adult Services,Independent,"2,050.00"
2799423,REDACTED - PERSONAL DATA,03/06/2013,34402,Clients  Taxi Fares,Environmental Services,SNT Childrens Servs,"1,261.45"
2805972,SONGSMITH RECORDS LTD,13/06/2013,Z1051,Work in Progress Additions,Environmental Services,Environmental Services Balance sheet,600.00
2805397,SOUTHERNS OFFICE INTERIORS LTD,13/06/2013,40150,Office Furniture Purchase,Property Services,Operational Facilities Management,"4,622.90"
2801396,SOUTHLANDS RESIDENTIAL HOME#SOUTHLANDS,06/06/2013,54301,Residential Provision,Adult Services,OA  External Provision Residential,"9,329.45"
2801419,SOUTHLEA RESIDENTIAL CARE HOME,06/06/2013,54301,Residential Provision,Adult Services,MH Residential External Provision,"1,574.44"
2801455,SOUTHVIEW LODGE RESIDENTIAL CARE HOME,06/06/2013,54301,Residential Provision,Adult Services,OA  External Provision Residential,"1,444.00"
2817123,SPECIAL NEEDS UNDER FIVES#SNUFS,27/06/2013,52200,Contracted Services,Children's Services,Admin Commissioning,"10,000.00"
2801679,SPECTRA SECURITY LTD,06/06/2013,25107,Secure Doors,Property Services,Admin Buildings  General,612.00
2813063,SPECTRA SECURITY LTD,20/06/2013,25107,Secure Doors,Property Services,Admin Buildings  General,612.00
2801677,SPECTRA SECURITY LTD,06/06/2013,25107,Secure Doors,Property Services,Admin Buildings  General,842.00
2805577,SPECTRA SECURITY LTD,13/06/2013,25107,Secure Doors,Property Services,Admin Buildings  General,"1,810.00"
2804449,SPECTRA SECURITY LTD,13/06/2013,Z6008,Expense AP Accrual,Bolton MBC Balance Sheet,Bolton MBC Balance Sheet,"3,972.00"
2801433,SPENNYMOOR CARE HOME LTD,06/06/2013,54301,Residential Provision,Adult Services,OA  External Provision Residential,"12,314.40"
2800455,SPICE VALLEY RESTAURANTS LTD#2,06/06/2013,41101,Catering ProvisionsFood,Environmental Services,Civic Catering  Town Hall Functions,"1,600.00"
2804511,SPICE VALLEY RESTAURANTS LTD#2,13/06/2013,41101,Catering ProvisionsFood,Environmental Services,Civic Catering  Town Hall Functions,855.00
2811374,SQUIDCARD LTD,17/06/2013,48200,Advertising General,Environmental Services,Markets  Rent Account,"7,236.00"
2811497,SQUIDCARD LTD,20/06/2013,48200,Advertising General,Environmental Services,Markets  Rent Account,674.33
2801355,ST CATHERINES CARE HOME,06/06/2013,54301,Residential Provision,Adult Services,OA  External Provision Residential,"17,169.32"
2801355,ST CATHERINES CARE HOME,06/06/2013,54302,Nursing Provision,Adult Services,OA  External Provision Residential,"14,972.04"
2801354,ST CATHERINES CARE HOME,06/06/2013,54302,Nursing Provision,Adult Services,OA  External Provision Residential,"2,001.51"
2813569,ST VINCENTS HOUSING ASSOCIATION LTD,20/06/2013,52210,Contracted Services  Rental Voids,Adult Services,LD Purchaser Supported Housing,646.56
2800290,STANNAH LIFT SERVICES LTD,06/06/2013,Z1051,Work in Progress Additions,Housing GRF,Capital  General Fund,502.00
2817054,STANNAH LIFT SERVICES LTD,27/06/2013,Z1051,Work in Progress Additions,Housing GRF,Capital  General Fund,"1,620.00"
2817080,STANNAH LIFT SERVICES LTD,27/06/2013,Z1051,Work in Progress Additions,Housing GRF,Capital  General Fund,"4,155.00"
2801356,STARMOUNT VILLA RESIDENTIAL CARE HOME,06/06/2013,54301,Residential Provision,Adult Services,OA  External Provision Residential,"9,751.44"
2800088,STEPHENSONS SOLICITORS#1,06/06/2013,48509,Other Fees,Housing GRF,Access and Advice Homelessness,"8,000.00"
2812964,STONE CENTRAL (NW) LTD,20/06/2013,20100,Day To Day Maintenance,Property Services,Cenotaphs,"1,135.35"
2815000,STONEPAVE J FLETCHER,24/06/2013,Z6008,Expense AP Accrual,Bolton MBC Balance Sheet,Bolton MBC Balance Sheet,"7,250.00"
2805986,STONHAM,13/06/2013,52200,Contracted Services,Adult Services,Supporting People  Capital Financing,"35,901.37"
2801398,STRATHMORE NURSING HOME#WHITEHILL HOMES LTD,06/06/2013,54301,Residential Provision,Adult Services,OA  External Provision Residential,"7,704.04"
2801398,STRATHMORE NURSING HOME#WHITEHILL HOMES LTD,06/06/2013,54302,Nursing Provision,Adult Services,OA  External Provision Residential,"1,567.96"
2801398,STRATHMORE NURSING HOME#WHITEHILL HOMES LTD,06/06/2013,54301,Residential Provision,Adult Services,PD Purchaser Residential Care,"1,567.96"
2799427,STREET CARS#REDACTED - PERSONAL DATA,03/06/2013,34402,Clients  Taxi Fares,Environmental Services,SNT Childrens Servs,"13,076.00"
2816916,SU-MED INTERNATIONAL (UK) LTD,27/06/2013,44051,Clients Aids & Adaptations,Adult Services,ICES,"7,800.00"
2801399,SUNNYSIDE RESIDENTIAL HOME,06/06/2013,54301,Residential Provision,Adult Services,OA  External Provision Residential,"1,858.22"
2801400,SUNNYSIDE RESIDENTIAL HOME,06/06/2013,54301,Residential Provision,Adult Services,OA  External Provision Residential,"31,243.02"
2801400,SUNNYSIDE RESIDENTIAL HOME,06/06/2013,54301,Residential Provision,Adult Services,PD Purchaser Residential Care,551.79
2799683,SUPPLIES TEAM LIMITED,06/06/2013,43032,Office Stationery,Environmental Services,Management & Overheads,685.48
2805434,SUPPORTED HOUSING FOR REDACTED - PERSONAL DATA#LIFEWAYS,13/06/2013,52200,Contracted Services,Adult Services,LD Purchaser Supported Housing,"15,483.48"
2805435,SUPPORTED HOUSING FOR REDACTED - PERSONAL DATA#LIFEWAYS,13/06/2013,52200,Contracted Services,Adult Services,LD Purchaser Supported Housing,"19,361.43"
2805420,SUPPORTED HOUSING FOR REDACTED - PERSONAL DATA#LIFEWAYS,13/06/2013,52200,Contracted Services,Adult Services,LD Purchaser Supported Housing,"17,413.20"
2805421,SUPPORTED HOUSING FOR REDACTED - PERSONAL DATA#LIFEWAYS,13/06/2013,52200,Contracted Services,Adult Services,LD Purchaser Supported Housing,"12,606.20"
2805436,SUPPORTED HOUSING FOR REDACTED - PERSONAL DATA#LIFEWAYS,13/06/2013,52200,Contracted Services,Adult Services,LD Purchaser Supported Housing,"8,323.70"
2805422,SUPPORTED HOUSING FOR REDACTED - PERSONAL DATA#LIFEWAYS,13/06/2013,52200,Contracted Services,Adult Services,LD Purchaser Supported Housing,"7,192.00"
2805423,SUPPORTED HOUSING FOR REDACTED - PERSONAL DATA#LIFEWAYS,13/06/2013,52200,Contracted Services,Adult Services,LD Purchaser Supported Housing,"9,266.60"
2805424,SUPPORTED HOUSING FOR REDACTED - PERSONAL DATA#LIFEWAYS,13/06/2013,52200,Contracted Services,Adult Services,LD Purchaser Supported Housing,"6,787.20"
2805425,SUPPORTED HOUSING FOR REDACTED - PERSONAL DATA#LIFEWAYS,13/06/2013,52200,Contracted Services,Adult Services,LD Purchaser Supported Housing,"17,818.00"
2805426,SUPPORTED HOUSING FOR REDACTED - PERSONAL DATA#LIFEWAYS,13/06/2013,52200,Contracted Services,Adult Services,LD Purchaser Supported Housing,"11,923.10"
2805427,SUPPORTED HOUSING FOR REDACTED - PERSONAL DATA#LIFEWAYS,13/06/2013,52200,Contracted Services,Adult Services,LD Purchaser Supported Housing,"11,442.40"
2805428,SUPPORTED HOUSING FOR REDACTED - PERSONAL DATA#LIFEWAYS,13/06/2013,52200,Contracted Services,Adult Services,LD Purchaser Supported Housing,"2,125.20"
2805429,SUPPORTED HOUSING FOR REDACTED - PERSONAL DATA#LIFEWAYS,13/06/2013,52200,Contracted Services,Adult Services,LD Purchaser Supported Housing,"11,746.00"
2805430,SUPPORTED HOUSING FOR REDACTED - PERSONAL DATA#LIFEWAYS,13/06/2013,52200,Contracted Services,Adult Services,LD Purchaser Supported Housing,"6,433.00"
2805437,SUPPORTED HOUSING FOR REDACTED - PERSONAL DATA#LIFEWAYS,13/06/2013,52200,Contracted Services,Adult Services,LD Purchaser Supported Housing,"8,482.95"
2805438,SUPPORTED HOUSING FOR REDACTED - PERSONAL DATA#LIFEWAYS,13/06/2013,52200,Contracted Services,Adult Services,PD Purchaser Supported Housing,"18,363.70"
2805439,SUPPORTED HOUSING FOR REDACTED - PERSONAL DATA#LIFEWAYS,13/06/2013,52200,Contracted Services,Adult Services,LD Purchaser Supported Housing,"2,689.60"
2805440,SUPPORTED HOUSING FOR REDACTED - PERSONAL DATA#LIFEWAYS,13/06/2013,52200,Contracted Services,Adult Services,LD Purchaser Supported Housing,"6,039.60"
2805431,SUPPORTED HOUSING FOR REDACTED - PERSONAL DATA#LIFEWAYS,13/06/2013,52200,Contracted Services,Adult Services,LD Purchaser Supported Housing,"8,052.20"
2805441,SUPPORTED HOUSING FOR REDACTED - PERSONAL DATA#LIFEWAYS,13/06/2013,52200,Contracted Services,Adult Services,LD Purchaser Supported Housing,"6,434.93"
2805432,SUPPORTED HOUSING FOR REDACTED - PERSONAL DATA#LIFEWAYS,13/06/2013,52200,Contracted Services,Adult Services,LD Purchaser Supported Housing,"6,227.20"
2805443,SUPPORTED HOUSING FOR REDACTED - PERSONAL DATA#LIFEWAYS,13/06/2013,52200,Contracted Services,Adult Services,LD Purchaser Supported Housing,"8,298.60"
2805444,SUPPORTED HOUSING FOR REDACTED - PERSONAL DATA#LIFEWAYS,13/06/2013,52200,Contracted Services,Adult Services,LD Purchaser Supported Housing,"13,353.20"
2805433,SUPPORTED HOUSING FOR REDACTED - PERSONAL DATA#LIFEWAYS,13/06/2013,52200,Contracted Services,Adult Services,LD Purchaser Supported Housing,"8,373.08"
2809916,SUPRA UK LIMITED,27/06/2013,44051,Clients Aids & Adaptations,Adult Services,ICES,900.70
2805389,SUPRA UK LIMITED,24/06/2013,44051,Clients Aids & Adaptations,Adult Services,ICES,"5,094.14"
2813970,SURECLOUD LIMITED,24/06/2013,45401,Computer Maintenance,Finance Department,Corporate IT Investment,"5,750.00"
2805521,SUSTAIN LTD,13/06/2013,48509,Other Fees,Property Services,Energy Efficiency Initiatives,"2,500.00"
2812966,SUSTAINABLE ENERGY SYSTEMS LTD,20/06/2013,Z1051,Work in Progress Additions,Property Services,Property Services Balance Sheet,"1,693.90"
2817914,SY CONTROLS,27/06/2013,40101,Operational Equipment Maint,Central Corporate,Bolton Sports Village,650.00
2801478,SYCAMORE COURT,06/06/2013,54301,Residential Provision,Adult Services,OA  External Provision Residential,"1,844.92"
2800040,SYKES CHEMIST LTD,06/06/2013,52200,Contracted Services,Adult Services,Drugs Pooled Treatment Budget,804.90
2805886,SYMOLOGY LTD,13/06/2013,45430,Computer Software,Environmental Services,Highway Regulation & Inspection,"1,010.00"
2804451,SYMOLOGY LTD,13/06/2013,48629,Miscellaneous Expenses,Environmental Services,Management & Support,"1,920.00"
2813229,SYNERGY CREATIVE DESIGN & MARKETING LTD,20/06/2013,45430,Computer Software,Housing GRF,Homes for Bolton CBL,917.50
2813212,T LOWE & SON LIMITED,20/06/2013,Z6008,Expense AP Accrual,Bolton MBC Balance Sheet,Bolton MBC Balance Sheet,"2,257.00"
2816941,T LOWE & SON LIMITED,27/06/2013,Z6008,Expense AP Accrual,Bolton MBC Balance Sheet,Bolton MBC Balance Sheet,"2,257.00"
2801498,T LOWE & SON LIMITED,06/06/2013,Z6008,Expense AP Accrual,Bolton MBC Balance Sheet,Bolton MBC Balance Sheet,517.06
2799431,REDACTED - PERSONAL DATA,03/06/2013,34402,Clients  Taxi Fares,Environmental Services,SNT Childrens Servs,757.00
2812877,TARMAC LIMITED#CMS POZAMENT,20/06/2013,Z6008,Expense AP Accrual,Bolton MBC Balance Sheet,Bolton MBC Balance Sheet,562.19
2815189,TARMAC LIMITED#CMS POZAMENT,24/06/2013,Z6008,Expense AP Accrual,Bolton MBC Balance Sheet,Bolton MBC Balance Sheet,626.19
2799898,TARMAC LIMITED#CMS POZAMENT,06/06/2013,Z6008,Expense AP Accrual,Bolton MBC Balance Sheet,Bolton MBC Balance Sheet,570.65
2807510,TARMAC LIMITED#CMS POZAMENT,13/06/2013,Z6008,Expense AP Accrual,Bolton MBC Balance Sheet,Bolton MBC Balance Sheet,557.12
2807496,TARMAC LIMITED#CMS POZAMENT,13/06/2013,40601,General Materials,Environmental Services,Activities and Operations,826.39
2813845,TECALEMIT GARAGE EQUIPMENT CO LTD,20/06/2013,40101,Operational Equipment Maint,Environmental Services,Transport Support Service,"2,665.00"
2817105,TELECARS BOLTON,27/06/2013,34402,Clients  Taxi Fares,Environmental Services,SNT Childrens Servs,"2,109.00"
2808708,TELECARS BOLTON,17/06/2013,34402,Clients  Taxi Fares,Environmental Services,SNT Childrens Servs,"2,075.00"
2815072,TELECARS BOLTON,24/06/2013,34402,Clients  Taxi Fares,Environmental Services,SNT Childrens Servs,"2,109.00"
2812733,TERMSTALL LTD,20/06/2013,Z6008,Expense AP Accrual,Bolton MBC Balance Sheet,Bolton MBC Balance Sheet,"2,678.00"
2801344,THE BAKEWELLS,06/06/2013,54301,Residential Provision,Adult Services,OA  External Provision Residential,"14,436.11"
2801343,THE BAKEWELLS,06/06/2013,54301,Residential Provision,Adult Services,OA  External Provision Residential,667.95
2801481,THE BEECHES CARE HOME,06/06/2013,54301,Residential Provision,Adult Services,OA  External Provision Residential,"1,792.00"
2801495,THE BIRCHES,06/06/2013,54301,Residential Provision,Adult Services,MH Residential External Provision,"4,292.72"
2801372,THE BRANDLES,06/06/2013,54301,Residential Provision,Adult Services,MH Residential External Provision,"3,112.36"
2807564,THE BRITISH LIBRARY,13/06/2013,40753,Book Fund Expenditure,Finance Department,Libraries Info. Services,808.00
2801336,THE BUNGALOW RESIDENTIAL HOME,06/06/2013,54301,Residential Provision,Adult Services,OA  External Provision Residential,"18,143.54"
2801336,THE BUNGALOW RESIDENTIAL HOME,06/06/2013,54301,Residential Provision,Adult Services,PD Purchaser Residential Care,"1,567.96"
2801488,THE CHANTERS CARE HOME,06/06/2013,54301,Residential Provision,Adult Services,OA  External Provision Residential,"2,991.31"
2801418,THE CLOUGH RESIDENTIAL HOME,06/06/2013,54301,Residential Provision,Adult Services,OA  External Provision Residential,"27,637.65"
2801417,THE CLOUGH RESIDENTIAL HOME,06/06/2013,54301,Residential Provision,Adult Services,OA  External Provision Residential,"1,686.84"
2801633,THE COLUMBARIA COMPANY,06/06/2013,40610,Direct Materials,Environmental Services,Bereavement Services,780.00
2817214,THE COLUMBARIA COMPANY,27/06/2013,40610,Direct Materials,Environmental Services,Bereavement Services,862.00
2803499,THE COLUMBARIA COMPANY,10/06/2013,40610,Direct Materials,Environmental Services,Bereavement Services,844.00
2817219,THE COLUMBARIA COMPANY,27/06/2013,40610,Direct Materials,Environmental Services,Bereavement Services,905.00
2817240,THE COLUMBARIA COMPANY,27/06/2013,40610,Direct Materials,Environmental Services,Bereavement Services,906.00
2813105,THE CORPORATE GROUP#CORPORATE PRODUCTS LTD,20/06/2013,19005,Other Recruitment Expenditure,Development & Regen,Project Revenue Account,"6,500.00"
2802543,THE DANWOOD GROUP LIMITED,07/06/2013,43030,Photocopying Lease/Maintenance,Housing GRF,Access and Advice Housing Options Centre,767.09
2801409,THE DAVID LEWIS CENTRE,06/06/2013,54301,Residential Provision,Adult Services,LD Purchaser Residential Care,"15,182.76"
2801492,THE GABLES CARE HOME#DR ROBERT NEIL CURZON & MRS GAIL CURZON,06/06/2013,54301,Residential Provision,Adult Services,OA  External Provision Residential,"1,560.00"
2799558,THE GREEN ESTATE LTD,06/06/2013,20401,Landscape Work,Environmental Services,Activities and Operations,"7,732.60"
2801413,THE HAMILTONS,06/06/2013,54301,Residential Provision,Adult Services,OA  External Provision Residential,"1,460.00"
2801551,THE LEAVING CARE COMPANY,06/06/2013,52000,Vol Assoc Grants  General,Children's Services,Res Serv Agency Placements,"2,059.29"
2803866,THE LEAVING CARE TEAM,10/06/2013,52300,Client Support Costs,Children's Services,Child Prot Leaving Care Team,"1,974.93"
2815034,THE LEAVING CARE TEAM,24/06/2013,52300,Client Support Costs,Children's Services,Child Prot Leaving Care Team,"3,171.76"
2815237,THE LESBIAN & GAY FOUNDATION,24/06/2013,52200,Contracted Services,Public Health,HIV,"1,798.00"
2815239,THE LESBIAN & GAY FOUNDATION,24/06/2013,52200,Contracted Services,Public Health,HIV,"1,798.00"
2801462,THE LIMES#MAKING SPACES,06/06/2013,54301,Residential Provision,Adult Services,MH Residential External Provision,"2,100.00"
2812797,THE LOCAL CARE COMPANY (BOLTON) LTD,20/06/2013,52200,Contracted Services,Adult Services,OA  Home Care Services external provision,"28,721.14"
2816609,THE NATIONAL FOSTERING AGENCY,27/06/2013,52000,Vol Assoc Grants  General,Children's Services,Res Serv Agency Placements,"2,988.40"
2801422,THE OAKS,06/06/2013,54301,Residential Provision,Adult Services,OA  External Provision Residential,"3,271.20"
2801412,THE OLD VICARAGE,06/06/2013,54301,Residential Provision,Adult Services,OA  External Provision Residential,"4,193.85"
2801473,THE OLD VICARAGE#1,06/06/2013,54301,Residential Provision,Adult Services,OA  External Provision Residential,"1,772.00"
2801370,THE SPINAL UNIT ACTION GROUP,06/06/2013,54301,Residential Provision,Adult Services,PD Purchaser Residential Care,"2,192.40"
2809724,THE SYCAMORE PROJECT#ZACS BAR,17/06/2013,52200,Contracted Services,Children's Services,Admin Commissioning,"21,300.00"
2801726,THE TOGETHER TRUST,06/06/2013,52000,Vol Assoc Grants  General,Children's Services,Disability Serv External Provision,"15,882.85"
2801724,THE TOGETHER TRUST,06/06/2013,52000,Vol Assoc Grants  General,Children's Services,Disability Serv External Provision,"14,345.80"
2801425,THE TOGETHER TRUST,06/06/2013,54301,Residential Provision,Adult Services,LD Purchaser Residential Care,"28,691.52"
2809304,THIS CREATIVE LTD,17/06/2013,40100,Operational Equipment Purchase,Finance Department,LMA External Funded Projects,"10,000.00"
2812712,THISTLETHWAITE TYRES & EXHAUSTS#FACTOR MICHELDEVER TYRE SVS LTD,20/06/2013,31303,Tyres,Environmental Services,Transport Support Service,"3,440.82"
2801424,THORLEY HOUSE,06/06/2013,54301,Residential Provision,Adult Services,OA  External Provision Residential,983.57
2801373,THORNCLIFFE NURSING HOME,06/06/2013,54301,Residential Provision,Adult Services,OA  External Provision Residential,"2,155.51"
2811359,TOM FORREST LTD,17/06/2013,48509,Other Fees,Finance Department,LMA External Funded Projects,"8,000.00"
2811360,TOM FORREST LTD,17/06/2013,48509,Other Fees,Finance Department,LMA External Funded Projects,"4,000.00"
2817048,TOM GALLAGHER LTD,27/06/2013,Z1051,Work in Progress Additions,Housing GRF,Capital  General Fund,"3,828.00"
2817041,TOM GALLAGHER LTD,27/06/2013,Z1051,Work in Progress Additions,Housing GRF,Capital  General Fund,"3,258.00"
2817045,TOM GALLAGHER LTD,27/06/2013,Z1051,Work in Progress Additions,Housing GRF,Capital  General Fund,"1,647.68"
2811560,TOTAL CLOSURE TRAFFIC MANAGEMENT LTD,20/06/2013,Z6008,Expense AP Accrual,Bolton MBC Balance Sheet,Bolton MBC Balance Sheet,"2,275.00"
2811553,TOTAL CLOSURE TRAFFIC MANAGEMENT LTD,20/06/2013,Z6008,Expense AP Accrual,Bolton MBC Balance Sheet,Bolton MBC Balance Sheet,"1,820.00"
2811552,TOTAL CLOSURE TRAFFIC MANAGEMENT LTD,20/06/2013,Z6008,Expense AP Accrual,Bolton MBC Balance Sheet,Bolton MBC Balance Sheet,"1,855.00"
2814981,TOTAL CLOSURE TRAFFIC MANAGEMENT LTD,24/06/2013,Z6008,Expense AP Accrual,Bolton MBC Balance Sheet,Bolton MBC Balance Sheet,910.00
2805555,TOTAL FIRE SERVICES LTD,13/06/2013,52200,Contracted Services,Property Services,Operational Facilities Management,"1,435.00"
2805850,TOWNS NEEDHAM LLP,13/06/2013,48502,Legal Fees,Children's Services,Tonge CC,"4,200.00"
2815061,TRAKM8 LIMITED,24/06/2013,45409,Information and Communication Technology,Environmental Services,Transport Support Service,"2,761.00"
2807523,TRANSPORT FOR GREATER MANCHESTER,13/06/2013,34403,Clients  Bus Passes,Children's Services,School Transport to Bus Passes,"82,921.31"
2803495,TRANSPORT FOR GREATER MANCHESTER,10/06/2013,40607,Maps Plans & Models,Development & Regen,Development Management,813.00
2802148,TRANSPORT FOR GREATER MANCHESTER,17/06/2013,40102,Operational Equipment Rental,Development & Regen,Metro Shuttle Bus,"9,120.00"
2799563,TRANSPORT FOR GREATER MANCHESTER,06/06/2013,40102,Operational Equipment Rental,Development & Regen,Metro Shuttle Bus,"9,120.00"
2801960,TRANSPORT FOR GREATER MANCHESTER,06/06/2013,40102,Operational Equipment Rental,Development & Regen,Metro Shuttle Bus,"9,120.00"
2801499,TREESCAPE NORTH WEST LTD,06/06/2013,52200,Contracted Services,Environmental Services,Activities and Operations,"8,950.00"
2800086,TREESCAPE NORTH WEST LTD,06/06/2013,52200,Contracted Services,Environmental Services,Activities and Operations,"1,100.00"
2817099,TRENCH-RIGHT LTD,27/06/2013,20501,Engineering Work,Environmental Services,Highway Regulation & Inspection,"6,528.00"
2805830,UNITED UTILITIES WATER PLC#1,13/06/2013,22201,Water Charges  Unmetered,Housing GRF,Communal Services Capital And Admin.,"1,558.85"
2817148,UNITED UTILITIES WATER PLC#1,27/06/2013,Z1051,Work in Progress Additions,Development & Regen,Development & Regeneration Capital,500.00
2816861,UNIVERSAL LAUNDRY SERVICES,27/06/2013,40102,Operational Equipment Rental,Environmental Services,Civic Catering  Town Hall Functions,518.54
2801549,UNIVERSAL LAUNDRY SERVICES,06/06/2013,40102,Operational Equipment Rental,Environmental Services,Civic Catering  Town Hall Functions,584.92
2815355,URBAN OUTREACH (BOLTON),24/06/2013,55700,Grant Funded Expenditure,Children's Services,Troubled Families,"8,333.00"
2801720,URBAN OUTREACH (BOLTON),06/06/2013,55700,Grant Funded Expenditure,Children's Services,Troubled Families,"8,333.00"
2812772,URBAN VISION PARTNERSHIP LTD#GMGU,20/06/2013,48509,Other Fees,Development & Regen,Divisional Development,"1,265.00"
2807680,URBAN VISION PARTNERSHIP LTD#GMGU,24/06/2013,48509,Other Fees,Development & Regen,Divisional Development,"1,237.50"
2801357,VALE HOUSE#VALE RESIDENTIAL LTD,06/06/2013,54301,Residential Provision,Adult Services,OA  External Provision Residential,577.80
2801358,VALE HOUSE#VALE RESIDENTIAL LTD,06/06/2013,54301,Residential Provision,Adult Services,OA  External Provision Residential,"13,176.61"
2815496,VIRGIN MEDIA PAYMENTS LTD,24/06/2013,40100,Operational Equipment Purchase,Children's Services,Admin IT (Schools),"2,950.00"
2800217,VISION TECHNIQUES (UK) LTD,06/06/2013,31305,Vehicle Servicing,Environmental Services,Transport Support Service,575.00
2817923,W CRAVEN & SON,27/06/2013,Z6008,Expense AP Accrual,Bolton MBC Balance Sheet,Bolton MBC Balance Sheet,592.50
2817918,W CRAVEN & SON,27/06/2013,Z6008,Expense AP Accrual,Bolton MBC Balance Sheet,Bolton MBC Balance Sheet,560.40
2802612,W CRAVEN & SON,10/06/2013,Z6008,Expense AP Accrual,Bolton MBC Balance Sheet,Bolton MBC Balance Sheet,652.00
2801403,WALSHAW HALL RESIDENTIAL HOME,06/06/2013,54301,Residential Provision,Adult Services,OA  External Provision Residential,"1,615.24"
2811543,WALTON SUMMIT TRUCK CENTRE,20/06/2013,31305,Vehicle Servicing,Environmental Services,Transport Support Service,660.00
2812336,WALTON SUMMIT TRUCK CENTRE,20/06/2013,52200,Contracted Services,Environmental Services,Transport Support Service,782.19
2812768,WALTONS THE CATERERS,20/06/2013,41101,Catering ProvisionsFood,Children's Services,Technical Innovation Centre,"1,241.45"
2811343,WELDFAST SERVICES LTD,17/06/2013,Z6008,Expense AP Accrual,Bolton MBC Balance Sheet,Bolton MBC Balance Sheet,"2,584.00"
2811341,WELDFAST SERVICES LTD,17/06/2013,Z6008,Expense AP Accrual,Bolton MBC Balance Sheet,Bolton MBC Balance Sheet,"2,208.00"
2799433,WESTHOUGHTON COACH HIRE,03/06/2013,34402,Clients  Taxi Fares,Environmental Services,SNT Childrens Servs,"1,598.00"
2817473,WHITTLE PHARMACIES LTD,27/06/2013,52200,Contracted Services,Public Health,Smoking,501.69
2811413,WIGAN BUSINESS EQUIPMENT LTD,24/06/2013,40100,Operational Equipment Purchase,Environmental Services,Pavillion Cafe,"1,018.00"
2814925,WILLMOTT DIXON CONSTRUCTION LIMITED,24/06/2013,Z1051,Work in Progress Additions,Property Services,Corporate Property Capital Project Transfers to Other Projects,"111,622.38"
2799437,WILLOWS MINIBUS,03/06/2013,34402,Clients  Taxi Fares,Environmental Services,SNT Childrens Servs,"2,924.00"
2818044,WINDER TAYLOR FALLOWS#6,27/06/2013,Z1051,Work in Progress Additions,Housing GRF,Capital  General Fund,"47,500.00"
2801360,WINGATES RESIDENTIAL HOME,06/06/2013,54301,Residential Provision,Adult Services,OA  External Provision Residential,"33,236.16"
2801359,WINGATES RESIDENTIAL HOME,06/06/2013,54301,Residential Provision,Adult Services,OA  External Provision Residential,988.28
2802422,WIRELESS CCTV LTD,10/06/2013,40141,Office Equipment Maintenance,Environmental Services,Community Safety,"1,499.98"
2801375,WITHINS RESIDENTIAL HOME,06/06/2013,54301,Residential Provision,Adult Services,OA  External Provision Residential,"84,779.13"
2801374,WITHINS RESIDENTIAL HOME,06/06/2013,54301,Residential Provision,Adult Services,OA  External Provision Residential,"4,937.87"
2801812,WLG LIMITED#WILDS OF OLDHAM,10/06/2013,41106,Bar Stock,Environmental Services,Civic Catering  Town Hall Bar,661.71
2813087,WLG LIMITED#WILDS OF OLDHAM,20/06/2013,41106,Bar Stock,Environmental Services,Civic Catering  Town Hall Bar,722.25
2813245,WLG LIMITED#WILDS OF OLDHAM,20/06/2013,41106,Bar Stock,Environmental Services,Civic Catering  Town Hall Bar,626.28
2801362,WOODLANDS HOUSE RESIDENTIAL HOME LTD,06/06/2013,54301,Residential Provision,Adult Services,OA  External Provision Residential,"26,806.48"
2801361,WOODLANDS HOUSE RESIDENTIAL HOME LTD,06/06/2013,54301,Residential Provision,Adult Services,OA  External Provision Residential,"1,080.00"
2816531,XEROX (UK) LTD,24/06/2013,43030,Photocopying Lease/Maintenance,Chief Executives Department,MFD,"31,526.15"
2799445,Y & S PRIVATE HIRE,03/06/2013,34402,Clients  Taxi Fares,Environmental Services,SNT Childrens Servs,"2,103.75"
2817629,YMCA,27/06/2013,22004,Room Hire,Children's Services,Youth Offending Team,"3,000.00"
